Organisation Name,Organisation Code,Unique Ref No,Effective Date,Directorate  where expenditure incurred,Supplier Name,Payment Date,Net Amount,Purpose of Spend,Procurement Classification (Higher Level),Procurement Classification (Lower Level),Capital/Revenue
Walsall Council,http://opendatacommunities.org/id/metropolitan-district-council/walsall,WC100-01,31/01/2019,Economy & Environment,11KBW,11/01/2019,"15,865.00",73014-LEGAL FEES-PRIV CONTRACTOR FEES,CEMETERIES CENTRAL ADMINISTRATION,Third Party Payments,Revenue
Walsall Council,http://opendatacommunities.org/id/metropolitan-district-council/walsall,WC100-02,31/01/2019,Economy & Environment,11KBW,11/01/2019,"35,125.00",73014-LEGAL FEES-PRIV CONTRACTOR FEES,CEMETERIES CENTRAL ADMINISTRATION,Third Party Payments,Revenue
Walsall Council,http://opendatacommunities.org/id/metropolitan-district-council/walsall,WC100-03,31/01/2019,Childrens,2HILLS CONSULTANCY,25/01/2019,700.00,63102-CONSULTANTS FEES - CORPORATE,SAFEGUARDING BOARD,Supplies & Services,Revenue
Walsall Council,http://opendatacommunities.org/id/metropolitan-district-council/walsall,WC100-04,31/01/2019,Adult Social Care,5 CARE SERVICES LTD,07/01/2019,252.72,73507-DOMICILIARY CARE,PHYSICAL SUPPORT,Third Party Payments,Revenue
Walsall Council,http://opendatacommunities.org/id/metropolitan-district-council/walsall,WC100-05,31/01/2019,Adult Social Care,5 CARE SERVICES LTD,07/01/2019,262.08,73507-DOMICILIARY CARE,PHYSICAL SUPPORT,Third Party Payments,Revenue
Walsall Council,http://opendatacommunities.org/id/metropolitan-district-council/walsall,WC100-06,31/01/2019,Adult Social Care,5 CARE SERVICES LTD,07/01/2019,284.69,73507-DOMICILIARY CARE,SENSORY SUPPORT,Third Party Payments,Revenue
Walsall Council,http://opendatacommunities.org/id/metropolitan-district-council/walsall,WC100-07,31/01/2019,Childrens,5 CARE SERVICES LTD,09/01/2019,301.00,63000-PROFESSIONAL FEES AND SERVICES,DIRECTLY COMMISSIONED NURSING SERVICES,Supplies & Services,Revenue
Walsall Council,http://opendatacommunities.org/id/metropolitan-district-council/walsall,WC100-08,31/01/2019,Adult Social Care,5 CARE SERVICES LTD,07/01/2019,309.43,73507-DOMICILIARY CARE,PHYSICAL SUPPORT,Third Party Payments,Revenue
Walsall Council,http://opendatacommunities.org/id/metropolitan-district-council/walsall,WC100-09,31/01/2019,Adult Social Care,5 CARE SERVICES LTD,07/01/2019,327.88,73507-DOMICILIARY CARE,PHYSICAL SUPPORT,Third Party Payments,Revenue
Walsall Council,http://opendatacommunities.org/id/metropolitan-district-council/walsall,WC100-10,31/01/2019,Adult Social Care,5 CARE SERVICES LTD,07/01/2019,344.26,73507-DOMICILIARY CARE,PHYSICAL SUPPORT,Third Party Payments,Revenue
Walsall Council,http://opendatacommunities.org/id/metropolitan-district-council/walsall,WC100-11,31/01/2019,Adult Social Care,5 CARE SERVICES LTD,07/01/2019,354.80,73507-DOMICILIARY CARE,PHYSICAL SUPPORT,Third Party Payments,Revenue
Walsall Council,http://opendatacommunities.org/id/metropolitan-district-council/walsall,WC100-12,31/01/2019,Adult Social Care,5 CARE SERVICES LTD,07/01/2019,358.29,73507-DOMICILIARY CARE,PHYSICAL SUPPORT,Third Party Payments,Revenue
Walsall Council,http://opendatacommunities.org/id/metropolitan-district-council/walsall,WC100-13,31/01/2019,Adult Social Care,5 CARE SERVICES LTD,07/01/2019,383.15,73507-DOMICILIARY CARE,SOCIAL SUPPORT,Third Party Payments,Revenue
Walsall Council,http://opendatacommunities.org/id/metropolitan-district-council/walsall,WC100-14,31/01/2019,Adult Social Care,5 CARE SERVICES LTD,07/01/2019,386.66,73507-DOMICILIARY CARE,PHYSICAL SUPPORT,Third Party Payments,Revenue
Walsall Council,http://opendatacommunities.org/id/metropolitan-district-council/walsall,WC100-15,31/01/2019,Adult Social Care,5 CARE SERVICES LTD,07/01/2019,400.72,73507-DOMICILIARY CARE,PHYSICAL SUPPORT,Third Party Payments,Revenue
Walsall Council,http://opendatacommunities.org/id/metropolitan-district-council/walsall,WC100-16,31/01/2019,Adult Social Care,5 CARE SERVICES LTD,07/01/2019,418.19,73507-DOMICILIARY CARE,PHYSICAL SUPPORT,Third Party Payments,Revenue
Walsall Council,http://opendatacommunities.org/id/metropolitan-district-council/walsall,WC100-17,31/01/2019,Adult Social Care,5 CARE SERVICES LTD,07/01/2019,442.62,73507-DOMICILIARY CARE,SUPPORT WITH MEMORY & COGNITION,Third Party Payments,Revenue
Walsall Council,http://opendatacommunities.org/id/metropolitan-district-council/walsall,WC100-18,31/01/2019,Adult Social Care,5 CARE SERVICES LTD,07/01/2019,455.41,73507-DOMICILIARY CARE,PHYSICAL SUPPORT,Third Party Payments,Revenue
Walsall Council,http://opendatacommunities.org/id/metropolitan-district-council/walsall,WC100-19,31/01/2019,Adult Social Care,5 CARE SERVICES LTD,07/01/2019,458.92,73507-DOMICILIARY CARE,SENSORY SUPPORT,Third Party Payments,Revenue
Walsall Council,http://opendatacommunities.org/id/metropolitan-district-council/walsall,WC100-20,31/01/2019,Adult Social Care,5 CARE SERVICES LTD,07/01/2019,488.45,73507-DOMICILIARY CARE,PHYSICAL SUPPORT,Third Party Payments,Revenue
Walsall Council,http://opendatacommunities.org/id/metropolitan-district-council/walsall,WC100-21,31/01/2019,Childrens,5 CARE SERVICES LTD,29/01/2019,490.00,63000-PROFESSIONAL FEES AND SERVICES,DIRECTLY COMMISSIONED NURSING SERVICES,Supplies & Services,Revenue
Walsall Council,http://opendatacommunities.org/id/metropolitan-district-council/walsall,WC100-22,31/01/2019,Adult Social Care,5 CARE SERVICES LTD,29/01/2019,491.86,73372-DOMICILIARY CARE,OP PACKAGE/PLACEMENT COSTS,Third Party Payments,Revenue
Walsall Council,http://opendatacommunities.org/id/metropolitan-district-council/walsall,WC100-23,31/01/2019,Adult Social Care,5 CARE SERVICES LTD,07/01/2019,517.11,73507-DOMICILIARY CARE,PHYSICAL SUPPORT,Third Party Payments,Revenue
Walsall Council,http://opendatacommunities.org/id/metropolitan-district-council/walsall,WC100-24,31/01/2019,Adult Social Care,5 CARE SERVICES LTD,07/01/2019,523.39,73507-DOMICILIARY CARE,PHYSICAL SUPPORT,Third Party Payments,Revenue
Walsall Council,http://opendatacommunities.org/id/metropolitan-district-council/walsall,WC100-25,31/01/2019,Adult Social Care,5 CARE SERVICES LTD,07/01/2019,536.43,73507-DOMICILIARY CARE,PHYSICAL SUPPORT,Third Party Payments,Revenue
Walsall Council,http://opendatacommunities.org/id/metropolitan-district-council/walsall,WC100-26,31/01/2019,Childrens,5 CARE SERVICES LTD,22/01/2019,553.00,63000-PROFESSIONAL FEES AND SERVICES,DIRECTLY COMMISSIONED NURSING SERVICES,Supplies & Services,Revenue
Walsall Council,http://opendatacommunities.org/id/metropolitan-district-council/walsall,WC100-27,31/01/2019,Adult Social Care,5 CARE SERVICES LTD,07/01/2019,587.00,73507-DOMICILIARY CARE,PHYSICAL SUPPORT,Third Party Payments,Revenue
Walsall Council,http://opendatacommunities.org/id/metropolitan-district-council/walsall,WC100-28,31/01/2019,Adult Social Care,5 CARE SERVICES LTD,07/01/2019,609.88,73507-DOMICILIARY CARE,PHYSICAL SUPPORT,Third Party Payments,Revenue
Walsall Council,http://opendatacommunities.org/id/metropolitan-district-council/walsall,WC100-29,31/01/2019,Adult Social Care,5 CARE SERVICES LTD,07/01/2019,619.50,73507-DOMICILIARY CARE,PHYSICAL SUPPORT,Third Party Payments,Revenue
Walsall Council,http://opendatacommunities.org/id/metropolitan-district-council/walsall,WC100-30,31/01/2019,Adult Social Care,5 CARE SERVICES LTD,07/01/2019,712.13,73507-DOMICILIARY CARE,PHYSICAL SUPPORT,Third Party Payments,Revenue
Walsall Council,http://opendatacommunities.org/id/metropolitan-district-council/walsall,WC100-31,31/01/2019,Adult Social Care,5 CARE SERVICES LTD,07/01/2019,751.94,73507-DOMICILIARY CARE,PHYSICAL SUPPORT,Third Party Payments,Revenue
Walsall Council,http://opendatacommunities.org/id/metropolitan-district-council/walsall,WC100-32,31/01/2019,Adult Social Care,5 CARE SERVICES LTD,07/01/2019,759.12,73507-DOMICILIARY CARE,PHYSICAL SUPPORT,Third Party Payments,Revenue
Walsall Council,http://opendatacommunities.org/id/metropolitan-district-council/walsall,WC100-33,31/01/2019,Adult Social Care,5 CARE SERVICES LTD,07/01/2019,766.32,73507-DOMICILIARY CARE,PHYSICAL SUPPORT,Third Party Payments,Revenue
Walsall Council,http://opendatacommunities.org/id/metropolitan-district-council/walsall,WC100-34,31/01/2019,Adult Social Care,5 CARE SERVICES LTD,07/01/2019,780.37,73507-DOMICILIARY CARE,PHYSICAL SUPPORT,Third Party Payments,Revenue
Walsall Council,http://opendatacommunities.org/id/metropolitan-district-council/walsall,WC100-35,31/01/2019,Adult Social Care,5 CARE SERVICES LTD,07/01/2019,808.38,73507-DOMICILIARY CARE,PHYSICAL SUPPORT,Third Party Payments,Revenue
Walsall Council,http://opendatacommunities.org/id/metropolitan-district-council/walsall,WC100-36,31/01/2019,Adult Social Care,5 CARE SERVICES LTD,07/01/2019,875.12,73507-DOMICILIARY CARE,PHYSICAL SUPPORT,Third Party Payments,Revenue
Walsall Council,http://opendatacommunities.org/id/metropolitan-district-council/walsall,WC100-37,31/01/2019,Adult Social Care,5 CARE SERVICES LTD,07/01/2019,885.56,73507-DOMICILIARY CARE,PHYSICAL SUPPORT,Third Party Payments,Revenue
Walsall Council,http://opendatacommunities.org/id/metropolitan-district-council/walsall,WC100-38,31/01/2019,Adult Social Care,5 CARE SERVICES LTD,07/01/2019,906.70,73507-DOMICILIARY CARE,PHYSICAL SUPPORT,Third Party Payments,Revenue
Walsall Council,http://opendatacommunities.org/id/metropolitan-district-council/walsall,WC100-39,31/01/2019,Adult Social Care,5 CARE SERVICES LTD,07/01/2019,962.88,73507-DOMICILIARY CARE,PHYSICAL SUPPORT,Third Party Payments,Revenue
Walsall Council,http://opendatacommunities.org/id/metropolitan-district-council/walsall,WC100-40,31/01/2019,Adult Social Care,5 CARE SERVICES LTD,07/01/2019,"1,078.27",73507-DOMICILIARY CARE,PHYSICAL SUPPORT,Third Party Payments,Revenue
Walsall Council,http://opendatacommunities.org/id/metropolitan-district-council/walsall,WC100-41,31/01/2019,Adult Social Care,5 CARE SERVICES LTD,07/01/2019,"1,212.03",73507-DOMICILIARY CARE,PHYSICAL SUPPORT,Third Party Payments,Revenue
Walsall Council,http://opendatacommunities.org/id/metropolitan-district-council/walsall,WC100-42,31/01/2019,Adult Social Care,5 CARE SERVICES LTD,07/01/2019,"1,349.56",73507-DOMICILIARY CARE,PHYSICAL SUPPORT,Third Party Payments,Revenue
Walsall Council,http://opendatacommunities.org/id/metropolitan-district-council/walsall,WC100-43,31/01/2019,Adult Social Care,5 CARE SERVICES LTD,07/01/2019,"1,539.62",73507-DOMICILIARY CARE,PHYSICAL SUPPORT,Third Party Payments,Revenue
Walsall Council,http://opendatacommunities.org/id/metropolitan-district-council/walsall,WC100-44,31/01/2019,Adult Social Care,5 CARE SERVICES LTD,07/01/2019,"1,581.76",73507-DOMICILIARY CARE,PHYSICAL SUPPORT,Third Party Payments,Revenue
Walsall Council,http://opendatacommunities.org/id/metropolitan-district-council/walsall,WC100-45,31/01/2019,Adult Social Care,5 CARE SERVICES LTD,07/01/2019,"1,662.32",73507-DOMICILIARY CARE,PHYSICAL SUPPORT,Third Party Payments,Revenue
Walsall Council,http://opendatacommunities.org/id/metropolitan-district-council/walsall,WC100-46,31/01/2019,Adult Social Care,5 CARE SERVICES LTD,07/01/2019,"1,701.83",73507-DOMICILIARY CARE,PHYSICAL SUPPORT,Third Party Payments,Revenue
Walsall Council,http://opendatacommunities.org/id/metropolitan-district-council/walsall,WC100-47,31/01/2019,Adult Social Care,5 CARE SERVICES LTD,07/01/2019,"1,764.24",73507-DOMICILIARY CARE,PHYSICAL SUPPORT,Third Party Payments,Revenue
Walsall Council,http://opendatacommunities.org/id/metropolitan-district-council/walsall,WC100-48,31/01/2019,Adult Social Care,5 CARE SERVICES LTD,07/01/2019,"1,771.28",73507-DOMICILIARY CARE,PHYSICAL SUPPORT,Third Party Payments,Revenue
Walsall Council,http://opendatacommunities.org/id/metropolitan-district-council/walsall,WC100-49,31/01/2019,Adult Social Care,5 CARE SERVICES LTD,07/01/2019,"1,834.30",73507-DOMICILIARY CARE,PHYSICAL SUPPORT,Third Party Payments,Revenue
Walsall Council,http://opendatacommunities.org/id/metropolitan-district-council/walsall,WC100-50,31/01/2019,Economy & Environment,A D T FIRE AND SECURITY PLC,10/01/2019,215.00,"40000-REPAIRS,ALTERATIONS & MAINTENANCE-PREM",ARBORETUM HLF,Premises,Revenue
Walsall Council,http://opendatacommunities.org/id/metropolitan-district-council/walsall,WC100-51,31/01/2019,Resources and Transformation,A D T FIRE AND SECURITY PLC,01/01/2019,274.24,73002-SECURITY-PRIV CONTRACTOR FEES,CENTRALISED MAINTENANCE,Third Party Payments,Revenue
Walsall Council,http://opendatacommunities.org/id/metropolitan-district-council/walsall,WC100-52,31/01/2019,Resources and Transformation,A D T FIRE AND SECURITY PLC,29/01/2019,351.13,73002-SECURITY-PRIV CONTRACTOR FEES,CENTRALISED MAINTENANCE,Third Party Payments,Revenue
Walsall Council,http://opendatacommunities.org/id/metropolitan-district-council/walsall,WC100-53,31/01/2019,Economy & Environment,A D T FIRE AND SECURITY PLC,10/01/2019,553.83,"40000-REPAIRS,ALTERATIONS & MAINTENANCE-PREM",ARBORETUM HLF,Premises,Revenue
Walsall Council,http://opendatacommunities.org/id/metropolitan-district-council/walsall,WC100-54,31/01/2019,Economy & Environment,A D T FIRE AND SECURITY PLC,10/01/2019,852.79,"40000-REPAIRS,ALTERATIONS & MAINTENANCE-PREM",ARBORETUM HLF,Premises,Revenue
Walsall Council,http://opendatacommunities.org/id/metropolitan-district-council/walsall,WC100-55,31/01/2019,Resources and Transformation,A D T FIRE AND SECURITY PLC,02/01/2019,935.10,73002-SECURITY-PRIV CONTRACTOR FEES,CENTRALISED MAINTENANCE,Third Party Payments,Revenue
Walsall Council,http://opendatacommunities.org/id/metropolitan-district-council/walsall,WC100-56,31/01/2019,Resources and Transformation,A D T FIRE AND SECURITY PLC,21/01/2019,"1,175.06",73002-SECURITY-PRIV CONTRACTOR FEES,CENTRALISED MAINTENANCE,Third Party Payments,Revenue
Walsall Council,http://opendatacommunities.org/id/metropolitan-district-council/walsall,WC100-57,31/01/2019,Resources and Transformation,A D T FIRE AND SECURITY PLC,02/01/2019,"2,557.53",73002-SECURITY-PRIV CONTRACTOR FEES,CENTRALISED MAINTENANCE,Third Party Payments,Revenue
Walsall Council,http://opendatacommunities.org/id/metropolitan-district-council/walsall,WC100-58,31/01/2019,Economy & Environment,A F BLAKEMORE & SON LTD,21/01/2019,270.66,61008-CONFECTIONERY/SNACKS-PROVISIONS,OAK PARK,Supplies & Services,Revenue
Walsall Council,http://opendatacommunities.org/id/metropolitan-district-council/walsall,WC100-59,31/01/2019,Economy & Environment,A F BLAKEMORE & SON LTD,01/01/2019,301.45,61008-CONFECTIONERY/SNACKS-PROVISIONS,OAK PARK,Supplies & Services,Revenue
Walsall Council,http://opendatacommunities.org/id/metropolitan-district-council/walsall,WC100-60,31/01/2019,Economy & Environment,A F BLAKEMORE & SON LTD,24/01/2019,378.84,61008-CONFECTIONERY/SNACKS-PROVISIONS,DARLASTON LEISURE CENTRE,Supplies & Services,Revenue
Walsall Council,http://opendatacommunities.org/id/metropolitan-district-council/walsall,WC100-61,31/01/2019,Economy & Environment,A F BLAKEMORE & SON LTD,21/01/2019,383.96,61008-CONFECTIONERY/SNACKS-PROVISIONS,OAK PARK,Supplies & Services,Revenue
Walsall Council,http://opendatacommunities.org/id/metropolitan-district-council/walsall,WC100-62,31/01/2019,Economy & Environment,A F BLAKEMORE & SON LTD,30/01/2019,417.42,61018-DRINKS-PROVISIONS,OAK PARK,Supplies & Services,Revenue
Walsall Council,http://opendatacommunities.org/id/metropolitan-district-council/walsall,WC100-63,31/01/2019,Adult Social Care,A F BLAKEMORE & SON LTD,18/01/2019,493.37,61016-FOOD AND BEVERAGES-PROVISIONS,GOSCOTE,Supplies & Services,Revenue
Walsall Council,http://opendatacommunities.org/id/metropolitan-district-council/walsall,WC100-64,31/01/2019,Adult Social Care,A F BLAKEMORE & SON LTD,02/01/2019,520.52,61016-FOOD AND BEVERAGES-PROVISIONS,GOSCOTE,Supplies & Services,Revenue
Walsall Council,http://opendatacommunities.org/id/metropolitan-district-council/walsall,WC100-65,31/01/2019,Economy & Environment,A F BLAKEMORE & SON LTD,11/01/2019,570.91,61018-DRINKS-PROVISIONS,OAK PARK,Supplies & Services,Revenue
Walsall Council,http://opendatacommunities.org/id/metropolitan-district-council/walsall,WC100-66,31/01/2019,Economy & Environment,A F BLAKEMORE & SON LTD,21/01/2019,911.34,61008-CONFECTIONERY/SNACKS-PROVISIONS,OAK PARK,Supplies & Services,Revenue
Walsall Council,http://opendatacommunities.org/id/metropolitan-district-council/walsall,WC100-67,31/01/2019,Resources and Transformation,A F BLAKEMORE & SON LTD,01/01/2019,"3,174.60",61007-MEAT-PROVISIONS,CA CENTRAL SUPPORT SERVICES,Supplies & Services,Revenue
Walsall Council,http://opendatacommunities.org/id/metropolitan-district-council/walsall,WC100-68,31/01/2019,Resources and Transformation,AAINA COMMUNITY HUB,21/01/2019,"4,725.00",66500-GRANTS TO OTHER ORGS,LET'S TALK ABOUT IT PROJECT,Third Party Payments,Revenue
Walsall Council,http://opendatacommunities.org/id/metropolitan-district-council/walsall,WC100-69,31/01/2019,Childrens,REDACTED,07/01/2019,378.00,73506-DIRECT PAYMENT,FAMILY SUPPORT - DIRECT PAYMENTS,Third Party Payments,Revenue
Walsall Council,http://opendatacommunities.org/id/metropolitan-district-council/walsall,WC100-70,31/01/2019,Adult Social Care,ABBEY COURT NURSING & RESIDEN,07/01/2019,"-1,660.36",73501-RESIDENTIAL EMI,SUPPORT WITH MEMORY & COGNITION,Third Party Payments,Revenue
Walsall Council,http://opendatacommunities.org/id/metropolitan-district-council/walsall,WC100-71,31/01/2019,Adult Social Care,ABBEY COURT NURSING & RESIDEN,07/01/2019,"1,876.52",73501-RESIDENTIAL EMI,PHYSICAL SUPPORT,Third Party Payments,Revenue
Walsall Council,http://opendatacommunities.org/id/metropolitan-district-council/walsall,WC100-72,31/01/2019,Adult Social Care,ABBEY COURT NURSING & RESIDEN,07/01/2019,"1,876.52",73501-RESIDENTIAL EMI,PHYSICAL SUPPORT,Third Party Payments,Revenue
Walsall Council,http://opendatacommunities.org/id/metropolitan-district-council/walsall,WC100-73,31/01/2019,Adult Social Care,ABBEY COURT NURSING & RESIDEN,07/01/2019,"1,876.52",73501-RESIDENTIAL EMI,SUPPORT WITH MEMORY & COGNITION,Third Party Payments,Revenue
Walsall Council,http://opendatacommunities.org/id/metropolitan-district-council/walsall,WC100-74,31/01/2019,Adult Social Care,ABBEY COURT NURSING & RESIDEN,07/01/2019,"1,937.08",73501-RESIDENTIAL EMI,SUPPORT WITH MEMORY & COGNITION,Third Party Payments,Revenue
Walsall Council,http://opendatacommunities.org/id/metropolitan-district-council/walsall,WC100-75,31/01/2019,Adult Social Care,ABBEY COURT NURSING & RESIDEN,07/01/2019,"1,954.01",73502-NURSING,SUPPORT WITH MEMORY & COGNITION,Third Party Payments,Revenue
Walsall Council,http://opendatacommunities.org/id/metropolitan-district-council/walsall,WC100-76,31/01/2019,Adult Social Care,ABBEY HEALTHCARE HOMES LTD,07/01/2019,"1,699.28",73502-NURSING,PHYSICAL SUPPORT,Third Party Payments,Revenue
Walsall Council,http://opendatacommunities.org/id/metropolitan-district-council/walsall,WC100-77,31/01/2019,Adult Social Care,ABBEY HEALTHCARE HOMES LTD,07/01/2019,"2,294.08",73502-NURSING,PHYSICAL SUPPORT,Third Party Payments,Revenue
Walsall Council,http://opendatacommunities.org/id/metropolitan-district-council/walsall,WC100-78,31/01/2019,Adult Social Care,ABBEY HEALTHCARE HOMES LTD,07/01/2019,"3,000.00",73500-RESIDENTIAL,LEARNING DISABILITY SUPPORT,Third Party Payments,Revenue
Walsall Council,http://opendatacommunities.org/id/metropolitan-district-council/walsall,WC100-79,31/01/2019,Adult Social Care,ABBEY HEALTHCARE HOMES LTD,07/01/2019,"3,000.00",73502-NURSING,LEARNING DISABILITY SUPPORT,Third Party Payments,Revenue
Walsall Council,http://opendatacommunities.org/id/metropolitan-district-council/walsall,WC100-80,31/01/2019,Adult Social Care,ABBEY HEALTHCARE HOMES LTD,07/01/2019,"3,000.00",73502-NURSING,LEARNING DISABILITY SUPPORT,Third Party Payments,Revenue
Walsall Council,http://opendatacommunities.org/id/metropolitan-district-council/walsall,WC100-81,31/01/2019,Adult Social Care,ABBEY HEALTHCARE HOMES LTD,07/01/2019,"3,400.00",73503-NURSING EMI,PHYSICAL SUPPORT,Third Party Payments,Revenue
Walsall Council,http://opendatacommunities.org/id/metropolitan-district-council/walsall,WC100-82,31/01/2019,Childrens,ABC DAY NURSERY (WILLENHALL) LIMITED,03/01/2019,"3,445.20",66505-OTHER-GRANTS TO OTHER ORGS,EARLY YEARS - 3 YR OLDS,Third Party Payments,Revenue
Walsall Council,http://opendatacommunities.org/id/metropolitan-district-council/walsall,WC100-83,31/01/2019,Childrens,ABC DAY NURSERY (WILLENHALL) LIMITED,03/01/2019,"9,761.40",66505-OTHER-GRANTS TO OTHER ORGS,EARLY YEARS - 3 YR OLDS,Third Party Payments,Revenue
Walsall Council,http://opendatacommunities.org/id/metropolitan-district-council/walsall,WC100-84,31/01/2019,Childrens,ABC DAY NURSERY (WILLENHALL) LIMITED,03/01/2019,"15,908.64",66505-OTHER-GRANTS TO OTHER ORGS,EARLY YEARS - 2 YR OLDS,Third Party Payments,Revenue
Walsall Council,http://opendatacommunities.org/id/metropolitan-district-council/walsall,WC100-85,31/01/2019,Childrens,ABC FOSTERING,25/01/2019,"-2,961.61",74037-INDEPENDENT FOSTER CARE-OTH AGENCY PROVISION,EXTERNAL FOSTER CARE PROVISION,Third Party Payments,Revenue
Walsall Council,http://opendatacommunities.org/id/metropolitan-district-council/walsall,WC100-86,31/01/2019,Childrens,ABC FOSTERING,25/01/2019,"-2,729.31",74037-INDEPENDENT FOSTER CARE-OTH AGENCY PROVISION,EXTERNAL FOSTER CARE PROVISION,Third Party Payments,Revenue
Walsall Council,http://opendatacommunities.org/id/metropolitan-district-council/walsall,WC100-87,31/01/2019,Childrens,ABC FOSTERING,25/01/2019,"2,527.20",74037-INDEPENDENT FOSTER CARE-OTH AGENCY PROVISION,EXTERNAL FOSTER CARE PROVISION,Third Party Payments,Revenue
Walsall Council,http://opendatacommunities.org/id/metropolitan-district-council/walsall,WC100-88,31/01/2019,Childrens,ABC FOSTERING,25/01/2019,"2,527.20",74037-INDEPENDENT FOSTER CARE-OTH AGENCY PROVISION,EXTERNAL FOSTER CARE PROVISION,Third Party Payments,Revenue
Walsall Council,http://opendatacommunities.org/id/metropolitan-district-council/walsall,WC100-89,31/01/2019,Childrens,ABC FOSTERING,25/01/2019,"2,707.20",74037-INDEPENDENT FOSTER CARE-OTH AGENCY PROVISION,EXTERNAL FOSTER CARE PROVISION,Third Party Payments,Revenue
Walsall Council,http://opendatacommunities.org/id/metropolitan-district-council/walsall,WC100-90,31/01/2019,Childrens,ABC FOSTERING,25/01/2019,"3,042.00",74037-INDEPENDENT FOSTER CARE-OTH AGENCY PROVISION,EXTERNAL FOSTER CARE PROVISION,Third Party Payments,Revenue
Walsall Council,http://opendatacommunities.org/id/metropolitan-district-council/walsall,WC100-91,31/01/2019,Childrens,ABC FOSTERING,25/01/2019,"3,264.00",74037-INDEPENDENT FOSTER CARE-OTH AGENCY PROVISION,EXTERNAL FOSTER CARE PROVISION,Third Party Payments,Revenue
Walsall Council,http://opendatacommunities.org/id/metropolitan-district-council/walsall,WC100-92,31/01/2019,Childrens,ABC FOSTERING,25/01/2019,"5,364.51",74037-INDEPENDENT FOSTER CARE-OTH AGENCY PROVISION,EXTERNAL FOSTER CARE PROVISION,Third Party Payments,Revenue
Walsall Council,http://opendatacommunities.org/id/metropolitan-district-council/walsall,WC100-93,31/01/2019,Childrens,ABC FOSTERING,25/01/2019,"5,811.56",74037-INDEPENDENT FOSTER CARE-OTH AGENCY PROVISION,EXTERNAL FOSTER CARE PROVISION,Third Party Payments,Revenue
Walsall Council,http://opendatacommunities.org/id/metropolitan-district-council/walsall,WC100-94,31/01/2019,Childrens,ABC TEACHERS LIMITED,11/01/2019,"2,610.90",63000-PROFESSIONAL FEES AND SERVICES,SCHOOL IMPROVEMENT-VIRTUAL SCHOOL,Supplies & Services,Revenue
Walsall Council,http://opendatacommunities.org/id/metropolitan-district-council/walsall,WC100-95,31/01/2019,Childrens,ABC TEACHERS LIMITED,30/01/2019,"2,610.90",63000-PROFESSIONAL FEES AND SERVICES,SCHOOL IMPROVEMENT-VIRTUAL SCHOOL,Supplies & Services,Revenue
Walsall Council,http://opendatacommunities.org/id/metropolitan-district-council/walsall,WC100-96,31/01/2019,Adult Social Care,REDACTED,07/01/2019,"1,999.20",73506-DIRECT PAYMENT,LEARNING DISABILITY SUPPORT,Third Party Payments,Revenue
Walsall Council,http://opendatacommunities.org/id/metropolitan-district-council/walsall,WC100-97,31/01/2019,Childrens,ABLEWELL CARS,10/01/2019,"5,194.28",52000-WITH DRIVER-HIRE OF VEHICLES,HOME TO SCHOOL TRANSPORT,Transport,Revenue
Walsall Council,http://opendatacommunities.org/id/metropolitan-district-council/walsall,WC100-98,31/01/2019,Childrens,ABU BAKR NURSERY,03/01/2019,"10,375.20",66505-OTHER-GRANTS TO OTHER ORGS,EARLY YEARS - 2 YR OLDS,Third Party Payments,Revenue
Walsall Council,http://opendatacommunities.org/id/metropolitan-district-council/walsall,WC100-99,31/01/2019,Childrens,ABU BAKR NURSERY,03/01/2019,"27,561.60",66505-OTHER-GRANTS TO OTHER ORGS,EARLY YEARS - 3 YR OLDS,Third Party Payments,Revenue
Walsall Council,http://opendatacommunities.org/id/metropolitan-district-council/walsall,WC100-100,31/01/2019,Economy & Environment,AC JADE TRADING LIMITED,21/01/2019,294.84,60529-SHOP STOCK-MATERIALS,NAG - NEW ART GALLERY SHOP STOCK,Supplies & Services,Revenue
Walsall Council,http://opendatacommunities.org/id/metropolitan-district-council/walsall,WC100-101,31/01/2019,Resources and Transformation,ACCESS CONTROL SOLUTIONS (UK) LTD,16/01/2019,350.00,"40000-REPAIRS,ALTERATIONS & MAINTENANCE-PREM",CENTRALISED MAINTENANCE,Premises,Revenue
Walsall Council,http://opendatacommunities.org/id/metropolitan-district-council/walsall,WC100-102,31/01/2019,Adult Social Care,ACCOMPLISH GROUP LTD,07/01/2019,"7,028.84",73500-RESIDENTIAL,MENTAL HEALTH SUPPORT,Third Party Payments,Revenue
Walsall Council,http://opendatacommunities.org/id/metropolitan-district-council/walsall,WC100-103,31/01/2019,Adult Social Care,ACCORD HOUSING ASSOCIATION LTD#135,09/01/2019,267.12,73508-COMMUNITY SUPPORTED LIVING/SUPPORTED ACCOMMODATION,MENTAL HEALTH SUPPORT,Third Party Payments,Revenue
Walsall Council,http://opendatacommunities.org/id/metropolitan-district-council/walsall,WC100-104,31/01/2019,Resources and Transformation,ACCORD HOUSING ASSOCIATION LTD#135,21/01/2019,292.00,43000-RENTS,ROUGH SLEEPING INITIATIVE GRANT,Premises,Revenue
Walsall Council,http://opendatacommunities.org/id/metropolitan-district-council/walsall,WC100-105,31/01/2019,Adult Social Care,ACCORD HOUSING ASSOCIATION LTD#135,23/01/2019,296.80,73508-COMMUNITY SUPPORTED LIVING/SUPPORTED ACCOMMODATION,MENTAL HEALTH SUPPORT,Third Party Payments,Revenue
Walsall Council,http://opendatacommunities.org/id/metropolitan-district-council/walsall,WC100-106,31/01/2019,Adult Social Care,ACCORD HOUSING ASSOCIATION LTD#135,09/01/2019,596.92,73508-COMMUNITY SUPPORTED LIVING/SUPPORTED ACCOMMODATION,MENTAL HEALTH SUPPORT,Third Party Payments,Revenue
Walsall Council,http://opendatacommunities.org/id/metropolitan-district-council/walsall,WC100-107,31/01/2019,Adult Social Care,ACCORD HOUSING ASSOCIATION LTD#135,09/01/2019,596.92,73508-COMMUNITY SUPPORTED LIVING/SUPPORTED ACCOMMODATION,MENTAL HEALTH SUPPORT,Third Party Payments,Revenue
Walsall Council,http://opendatacommunities.org/id/metropolitan-district-council/walsall,WC100-108,31/01/2019,Adult Social Care,ACCORD HOUSING ASSOCIATION LTD#135,09/01/2019,604.48,73508-COMMUNITY SUPPORTED LIVING/SUPPORTED ACCOMMODATION,MENTAL HEALTH SUPPORT,Third Party Payments,Revenue
Walsall Council,http://opendatacommunities.org/id/metropolitan-district-council/walsall,WC100-109,31/01/2019,Adult Social Care,ACCORD HOUSING ASSOCIATION LTD#135,23/01/2019,604.48,73508-COMMUNITY SUPPORTED LIVING/SUPPORTED ACCOMMODATION,MENTAL HEALTH SUPPORT,Third Party Payments,Revenue
Walsall Council,http://opendatacommunities.org/id/metropolitan-district-council/walsall,WC100-110,31/01/2019,Adult Social Care,ACCORD HOUSING ASSOCIATION LTD#135,09/01/2019,661.12,73508-COMMUNITY SUPPORTED LIVING/SUPPORTED ACCOMMODATION,MENTAL HEALTH SUPPORT,Third Party Payments,Revenue
Walsall Council,http://opendatacommunities.org/id/metropolitan-district-council/walsall,WC100-111,31/01/2019,Adult Social Care,ACCORD HOUSING ASSOCIATION LTD#135,23/01/2019,661.12,73508-COMMUNITY SUPPORTED LIVING/SUPPORTED ACCOMMODATION,MENTAL HEALTH SUPPORT,Third Party Payments,Revenue
Walsall Council,http://opendatacommunities.org/id/metropolitan-district-council/walsall,WC100-112,31/01/2019,Adult Social Care,ACCORD HOUSING ASSOCIATION LTD#135,09/01/2019,793.36,73508-COMMUNITY SUPPORTED LIVING/SUPPORTED ACCOMMODATION,MENTAL HEALTH SUPPORT,Third Party Payments,Revenue
Walsall Council,http://opendatacommunities.org/id/metropolitan-district-council/walsall,WC100-113,31/01/2019,Adult Social Care,ACCORD HOUSING ASSOCIATION LTD#135,09/01/2019,793.36,73508-COMMUNITY SUPPORTED LIVING/SUPPORTED ACCOMMODATION,MENTAL HEALTH SUPPORT,Third Party Payments,Revenue
Walsall Council,http://opendatacommunities.org/id/metropolitan-district-council/walsall,WC100-114,31/01/2019,Adult Social Care,ACCORD HOUSING ASSOCIATION LTD#135,09/01/2019,793.36,73508-COMMUNITY SUPPORTED LIVING/SUPPORTED ACCOMMODATION,MENTAL HEALTH SUPPORT,Third Party Payments,Revenue
Walsall Council,http://opendatacommunities.org/id/metropolitan-district-council/walsall,WC100-115,31/01/2019,Adult Social Care,ACCORD HOUSING ASSOCIATION LTD#135,23/01/2019,793.36,73508-COMMUNITY SUPPORTED LIVING/SUPPORTED ACCOMMODATION,MENTAL HEALTH SUPPORT,Third Party Payments,Revenue
Walsall Council,http://opendatacommunities.org/id/metropolitan-district-council/walsall,WC100-116,31/01/2019,Adult Social Care,ACCORD HOUSING ASSOCIATION LTD#135,23/01/2019,793.36,73508-COMMUNITY SUPPORTED LIVING/SUPPORTED ACCOMMODATION,MENTAL HEALTH SUPPORT,Third Party Payments,Revenue
Walsall Council,http://opendatacommunities.org/id/metropolitan-district-council/walsall,WC100-117,31/01/2019,Adult Social Care,ACCORD HOUSING ASSOCIATION LTD#135,16/01/2019,972.00,73500-RESIDENTIAL,LEARNING DISABILITY SUPPORT,Third Party Payments,Revenue
Walsall Council,http://opendatacommunities.org/id/metropolitan-district-council/walsall,WC100-118,31/01/2019,Adult Social Care,ACCORD HOUSING ASSOCIATION LTD#135,09/01/2019,982.28,73508-COMMUNITY SUPPORTED LIVING/SUPPORTED ACCOMMODATION,MENTAL HEALTH SUPPORT,Third Party Payments,Revenue
Walsall Council,http://opendatacommunities.org/id/metropolitan-district-council/walsall,WC100-119,31/01/2019,Adult Social Care,ACCORD HOUSING ASSOCIATION LTD#135,23/01/2019,982.28,73508-COMMUNITY SUPPORTED LIVING/SUPPORTED ACCOMMODATION,MENTAL HEALTH SUPPORT,Third Party Payments,Revenue
Walsall Council,http://opendatacommunities.org/id/metropolitan-district-council/walsall,WC100-120,31/01/2019,Adult Social Care,ACCORD HOUSING ASSOCIATION LTD#135,09/01/2019,"1,133.40",73508-COMMUNITY SUPPORTED LIVING/SUPPORTED ACCOMMODATION,MENTAL HEALTH SUPPORT,Third Party Payments,Revenue
Walsall Council,http://opendatacommunities.org/id/metropolitan-district-council/walsall,WC100-121,31/01/2019,Adult Social Care,ACCORD HOUSING ASSOCIATION LTD#135,09/01/2019,"1,133.40",73508-COMMUNITY SUPPORTED LIVING/SUPPORTED ACCOMMODATION,MENTAL HEALTH SUPPORT,Third Party Payments,Revenue
Walsall Council,http://opendatacommunities.org/id/metropolitan-district-council/walsall,WC100-122,31/01/2019,Adult Social Care,ACCORD HOUSING ASSOCIATION LTD#135,23/01/2019,"1,133.40",73508-COMMUNITY SUPPORTED LIVING/SUPPORTED ACCOMMODATION,MENTAL HEALTH SUPPORT,Third Party Payments,Revenue
Walsall Council,http://opendatacommunities.org/id/metropolitan-district-council/walsall,WC100-123,31/01/2019,Adult Social Care,ACCORD HOUSING ASSOCIATION LTD#135,16/01/2019,"1,134.00",73500-RESIDENTIAL,LEARNING DISABILITY SUPPORT,Third Party Payments,Revenue
Walsall Council,http://opendatacommunities.org/id/metropolitan-district-council/walsall,WC100-124,31/01/2019,Adult Social Care,ACCORD HOUSING ASSOCIATION LTD#135,09/01/2019,"1,322.28",73508-COMMUNITY SUPPORTED LIVING/SUPPORTED ACCOMMODATION,MENTAL HEALTH SUPPORT,Third Party Payments,Revenue
Walsall Council,http://opendatacommunities.org/id/metropolitan-district-council/walsall,WC100-125,31/01/2019,Adult Social Care,ACCORD HOUSING ASSOCIATION LTD#135,09/01/2019,"1,567.84",73508-COMMUNITY SUPPORTED LIVING/SUPPORTED ACCOMMODATION,MENTAL HEALTH SUPPORT,Third Party Payments,Revenue
Walsall Council,http://opendatacommunities.org/id/metropolitan-district-council/walsall,WC100-126,31/01/2019,Adult Social Care,ACCORD HOUSING ASSOCIATION LTD#135,23/01/2019,"1,567.84",73508-COMMUNITY SUPPORTED LIVING/SUPPORTED ACCOMMODATION,MENTAL HEALTH SUPPORT,Third Party Payments,Revenue
Walsall Council,http://opendatacommunities.org/id/metropolitan-district-council/walsall,WC100-127,31/01/2019,Adult Social Care,ACCORD HOUSING ASSOCIATION LTD#135,07/01/2019,"4,505.40",73500-RESIDENTIAL,LEARNING DISABILITY SUPPORT,Third Party Payments,Revenue
Walsall Council,http://opendatacommunities.org/id/metropolitan-district-council/walsall,WC100-128,31/01/2019,Adult Social Care,ACCORD HOUSING ASSOCIATION LTD#135,07/01/2019,"4,505.40",73500-RESIDENTIAL,LEARNING DISABILITY SUPPORT,Third Party Payments,Revenue
Walsall Council,http://opendatacommunities.org/id/metropolitan-district-council/walsall,WC100-129,31/01/2019,Adult Social Care,ACCORD HOUSING ASSOCIATION LTD#135,07/01/2019,"4,505.40",73500-RESIDENTIAL,LEARNING DISABILITY SUPPORT,Third Party Payments,Revenue
Walsall Council,http://opendatacommunities.org/id/metropolitan-district-council/walsall,WC100-130,31/01/2019,Adult Social Care,ACCORD HOUSING ASSOCIATION LTD#135,07/01/2019,"4,505.40",73500-RESIDENTIAL,LEARNING DISABILITY SUPPORT,Third Party Payments,Revenue
Walsall Council,http://opendatacommunities.org/id/metropolitan-district-council/walsall,WC100-131,31/01/2019,Adult Social Care,ACCORD HOUSING ASSOCIATION LTD#135,07/01/2019,"6,288.08",73500-RESIDENTIAL,LEARNING DISABILITY SUPPORT,Third Party Payments,Revenue
Walsall Council,http://opendatacommunities.org/id/metropolitan-district-council/walsall,WC100-132,31/01/2019,Adult Social Care,ACCORD HOUSING ASSOCIATION LTD#135,07/01/2019,"6,288.08",73500-RESIDENTIAL,LEARNING DISABILITY SUPPORT,Third Party Payments,Revenue
Walsall Council,http://opendatacommunities.org/id/metropolitan-district-council/walsall,WC100-133,31/01/2019,Adult Social Care,ACCORD HOUSING ASSOCIATION LTD#135,07/01/2019,"6,288.08",73500-RESIDENTIAL,LEARNING DISABILITY SUPPORT,Third Party Payments,Revenue
Walsall Council,http://opendatacommunities.org/id/metropolitan-district-council/walsall,WC100-134,31/01/2019,Childrens,ACCORD HOUSING ASSOCIATION LTD#135,01/01/2019,"6,655.50",63102-CONSULTANTS FEES - CORPORATE,TOXIC TRIO,Supplies & Services,Revenue
Walsall Council,http://opendatacommunities.org/id/metropolitan-district-council/walsall,WC100-135,31/01/2019,Economy & Environment,ACCORD HOUSING ASSOCIATION LTD#135,23/01/2019,"7,437.50",63253-PAYMENT TO CONTRACTOR,MENTAL HEALTH,Third Party Payments,Revenue
Walsall Council,http://opendatacommunities.org/id/metropolitan-district-council/walsall,WC100-136,31/01/2019,Adult Social Care,ACCORD HOUSING ASSOCIATION LTD#135,24/01/2019,"11,164.00",73365-BLOCK GROSS-SUPPORTING PEOPLE,OLDER PEOPLE SLA,Third Party Payments,Revenue
Walsall Council,http://opendatacommunities.org/id/metropolitan-district-council/walsall,WC100-137,31/01/2019,Economy & Environment,ACCORD HOUSING ASSOCIATION LTD#135,16/01/2019,"11,250.00",63253-PAYMENT TO CONTRACTOR,FALLS PREVENTION AGE UK,Third Party Payments,Revenue
Walsall Council,http://opendatacommunities.org/id/metropolitan-district-council/walsall,WC100-138,31/01/2019,Economy & Environment,ACCORD HOUSING ASSOCIATION LTD#135,24/01/2019,"11,250.00",63253-PAYMENT TO CONTRACTOR,FALLS PREVENTION AGE UK,Third Party Payments,Revenue
Walsall Council,http://opendatacommunities.org/id/metropolitan-district-council/walsall,WC100-139,31/01/2019,Resources and Transformation,ACCORD HOUSING ASSOCIATION LTD#135,21/01/2019,"26,860.01",73365-BLOCK GROSS-SUPPORTING PEOPLE,HOMELESSNESS PREVENTION STRATEGY,Third Party Payments,Revenue
Walsall Council,http://opendatacommunities.org/id/metropolitan-district-council/walsall,WC100-140,31/01/2019,Adult Social Care,ACCORD HOUSING ASSOCIATION LTD#135,24/01/2019,"29,330.75",73365-BLOCK GROSS-SUPPORTING PEOPLE,OLDER PEOPLE SLA,Third Party Payments,Revenue
Walsall Council,http://opendatacommunities.org/id/metropolitan-district-council/walsall,WC100-141,31/01/2019,Resources and Transformation,ACCORD HOUSING ASSOCIATION LTD#135,10/01/2019,"47,217.50",73365-BLOCK GROSS-SUPPORTING PEOPLE,HOMELESS PREVENTION GRANT,Third Party Payments,Revenue
Walsall Council,http://opendatacommunities.org/id/metropolitan-district-council/walsall,WC100-142,31/01/2019,Adult Social Care,ACEPAY LTD (COTTAGE NUR HOME),07/01/2019,"1,688.84",73500-RESIDENTIAL,PHYSICAL SUPPORT,Third Party Payments,Revenue
Walsall Council,http://opendatacommunities.org/id/metropolitan-district-council/walsall,WC100-143,31/01/2019,Adult Social Care,ACEPAY LTD (COTTAGE NUR HOME),07/01/2019,"2,039.68",73502-NURSING,PHYSICAL SUPPORT,Third Party Payments,Revenue
Walsall Council,http://opendatacommunities.org/id/metropolitan-district-council/walsall,WC100-144,31/01/2019,Adult Social Care,ACEPAY LTD (COTTAGE NUR HOME),07/01/2019,"2,039.68",73502-NURSING,SUPPORT WITH MEMORY & COGNITION,Third Party Payments,Revenue
Walsall Council,http://opendatacommunities.org/id/metropolitan-district-council/walsall,WC100-145,31/01/2019,Adult Social Care,ACEPAY LTD (COTTAGE NUR HOME),07/01/2019,"2,039.68",73502-NURSING,SUPPORT WITH MEMORY & COGNITION,Third Party Payments,Revenue
Walsall Council,http://opendatacommunities.org/id/metropolitan-district-council/walsall,WC100-146,31/01/2019,Adult Social Care,ACEPAY LTD (COTTAGE NUR HOME),07/01/2019,"2,039.68",73502-NURSING,PHYSICAL SUPPORT,Third Party Payments,Revenue
Walsall Council,http://opendatacommunities.org/id/metropolitan-district-council/walsall,WC100-147,31/01/2019,Adult Social Care,ACEPAY LTD (COTTAGE NUR HOME),07/01/2019,"2,039.68",73502-NURSING,PHYSICAL SUPPORT,Third Party Payments,Revenue
Walsall Council,http://opendatacommunities.org/id/metropolitan-district-council/walsall,WC100-148,31/01/2019,Adult Social Care,ACEPAY LTD (COTTAGE NUR HOME),07/01/2019,"2,039.68",73502-NURSING,PHYSICAL SUPPORT,Third Party Payments,Revenue
Walsall Council,http://opendatacommunities.org/id/metropolitan-district-council/walsall,WC100-149,31/01/2019,Adult Social Care,ACEPAY LTD (COTTAGE NUR HOME),07/01/2019,"2,039.68",73502-NURSING,PHYSICAL SUPPORT,Third Party Payments,Revenue
Walsall Council,http://opendatacommunities.org/id/metropolitan-district-council/walsall,WC100-150,31/01/2019,Adult Social Care,ACEPAY LTD (COTTAGE NUR HOME),07/01/2019,"2,039.68",73502-NURSING,PHYSICAL SUPPORT,Third Party Payments,Revenue
Walsall Council,http://opendatacommunities.org/id/metropolitan-district-council/walsall,WC100-151,31/01/2019,Adult Social Care,ACEPAY LTD (COTTAGE NUR HOME),07/01/2019,"2,039.68",73502-NURSING,PHYSICAL SUPPORT,Third Party Payments,Revenue
Walsall Council,http://opendatacommunities.org/id/metropolitan-district-council/walsall,WC100-152,31/01/2019,Adult Social Care,ACEPAY LTD (COTTAGE NUR HOME),07/01/2019,"2,039.68",73502-NURSING,SOCIAL SUPPORT,Third Party Payments,Revenue
Walsall Council,http://opendatacommunities.org/id/metropolitan-district-council/walsall,WC100-153,31/01/2019,Adult Social Care,ACEPAY LTD (COTTAGE NUR HOME),07/01/2019,"2,039.68",73502-NURSING,SUPPORT WITH MEMORY & COGNITION,Third Party Payments,Revenue
Walsall Council,http://opendatacommunities.org/id/metropolitan-district-council/walsall,WC100-154,31/01/2019,Adult Social Care,ACEPAY LTD (COTTAGE NUR HOME),07/01/2019,"2,039.68",73502-NURSING,MENTAL HEALTH SUPPORT,Third Party Payments,Revenue
Walsall Council,http://opendatacommunities.org/id/metropolitan-district-council/walsall,WC100-155,31/01/2019,Adult Social Care,ACEPAY LTD (COTTAGE NUR HOME),16/01/2019,"2,039.68",73502-NURSING,SUPPORT WITH MEMORY & COGNITION,Third Party Payments,Revenue
Walsall Council,http://opendatacommunities.org/id/metropolitan-district-council/walsall,WC100-156,31/01/2019,Adult Social Care,ACEPAY LTD (COTTAGE NUR HOME),07/01/2019,"2,659.88",73502-NURSING,PHYSICAL SUPPORT,Third Party Payments,Revenue
Walsall Council,http://opendatacommunities.org/id/metropolitan-district-council/walsall,WC100-157,31/01/2019,Adult Social Care,ACORN REST HOME,07/01/2019,"1,688.84",73500-RESIDENTIAL,PHYSICAL SUPPORT,Third Party Payments,Revenue
Walsall Council,http://opendatacommunities.org/id/metropolitan-district-council/walsall,WC100-158,31/01/2019,Adult Social Care,ACORN REST HOME,07/01/2019,"2,140.00",73500-RESIDENTIAL,SOCIAL SUPPORT,Third Party Payments,Revenue
Walsall Council,http://opendatacommunities.org/id/metropolitan-district-council/walsall,WC100-159,31/01/2019,Childrens,ACORNS CHILDRENS HOSPICE TRUST,08/01/2019,750.00,63000-PROFESSIONAL FEES AND SERVICES,DIRECTLY COMMISSIONED NURSING SERVICES,Supplies & Services,Revenue
Walsall Council,http://opendatacommunities.org/id/metropolitan-district-council/walsall,WC100-160,31/01/2019,Childrens,ACORNS CHILDRENS HOSPICE TRUST,07/01/2019,"1,309.60",63000-PROFESSIONAL FEES AND SERVICES,DIRECTLY COMMISSIONED NURSING SERVICES,Supplies & Services,Revenue
Walsall Council,http://opendatacommunities.org/id/metropolitan-district-council/walsall,WC100-161,31/01/2019,Economy & Environment,ACTION DIGITAL MEDIA LTD,15/01/2019,313.50,"62521-INTERPRETATION,TRANSLATION & HUMAN AIDS TO TRANSCRIPTION",NAG - TEMPORARY EXHIBITIONS,Supplies & Services,Revenue
Walsall Council,http://opendatacommunities.org/id/metropolitan-district-council/walsall,WC100-162,31/01/2019,Economy & Environment,ACTION DIGITAL MEDIA LTD,04/01/2019,705.50,"62521-INTERPRETATION,TRANSLATION & HUMAN AIDS TO TRANSCRIPTION",EXHIBITIONS - SPECIAL PROJECTS/PARTNERSHIPS,Supplies & Services,Revenue
Walsall Council,http://opendatacommunities.org/id/metropolitan-district-council/walsall,WC100-163,31/01/2019,Economy & Environment,ACTION MIDLANDS LTD,01/01/2019,150.00,63000-PROFESSIONAL FEES AND SERVICES,YEI (IMPACT) PROGRAMME,Supplies & Services,Revenue
Walsall Council,http://opendatacommunities.org/id/metropolitan-district-council/walsall,WC100-164,31/01/2019,Economy & Environment,ACTION MIDLANDS LTD,01/01/2019,150.00,63000-PROFESSIONAL FEES AND SERVICES,YEI ESF FUNDING,Supplies & Services,Revenue
Walsall Council,http://opendatacommunities.org/id/metropolitan-district-council/walsall,WC100-165,31/01/2019,Economy & Environment,ACTION MIDLANDS LTD,28/01/2019,150.00,63000-PROFESSIONAL FEES AND SERVICES,YEI (IMPACT) PROGRAMME,Supplies & Services,Revenue
Walsall Council,http://opendatacommunities.org/id/metropolitan-district-council/walsall,WC100-166,31/01/2019,Economy & Environment,ACTION MIDLANDS LTD,28/01/2019,150.00,63000-PROFESSIONAL FEES AND SERVICES,YEI ESF FUNDING,Supplies & Services,Revenue
Walsall Council,http://opendatacommunities.org/id/metropolitan-district-council/walsall,WC100-167,31/01/2019,Economy & Environment,ACTION MIDLANDS LTD,28/01/2019,250.00,63000-PROFESSIONAL FEES AND SERVICES,YEI (IMPACT) PROGRAMME,Supplies & Services,Revenue
Walsall Council,http://opendatacommunities.org/id/metropolitan-district-council/walsall,WC100-168,31/01/2019,Economy & Environment,ACTION MIDLANDS LTD,28/01/2019,250.00,63000-PROFESSIONAL FEES AND SERVICES,YEI ESF FUNDING,Supplies & Services,Revenue
Walsall Council,http://opendatacommunities.org/id/metropolitan-district-council/walsall,WC100-169,31/01/2019,Adult Social Care,ACTION ON HEARING LOSS,16/01/2019,571.88,73025-PROFESSIONAL SERVICES-PRIV CONTRACTOR & OTHER AGENCIES,COMMUNITY INTERMEDIATE CARE,Third Party Payments,Revenue
Walsall Council,http://opendatacommunities.org/id/metropolitan-district-council/walsall,WC100-170,31/01/2019,Adult Social Care,REDACTED,07/01/2019,-756.00,73506-DIRECT PAYMENT,PHYSICAL SUPPORT,Third Party Payments,Revenue
Walsall Council,http://opendatacommunities.org/id/metropolitan-district-council/walsall,WC100-171,31/01/2019,Adult Social Care,REDACTED,07/01/2019,"1,056.00",73506-DIRECT PAYMENT,PHYSICAL SUPPORT,Third Party Payments,Revenue
Walsall Council,http://opendatacommunities.org/id/metropolitan-district-council/walsall,WC100-172,31/01/2019,Adult Social Care,REDACTED,07/01/2019,442.52,73506-DIRECT PAYMENT,LEARNING DISABILITY SUPPORT,Third Party Payments,Revenue
Walsall Council,http://opendatacommunities.org/id/metropolitan-district-council/walsall,WC100-173,31/01/2019,Resources and Transformation,ADELIE FOODS LTD,10/01/2019,477.88,61305-CATERING,TOWN HALL RESTAURANT BISTRO,Supplies & Services,Revenue
Walsall Council,http://opendatacommunities.org/id/metropolitan-district-council/walsall,WC100-174,31/01/2019,Resources and Transformation,ADELIE FOODS LTD,24/01/2019,770.25,61305-CATERING,TOWN HALL RESTAURANT BISTRO,Supplies & Services,Revenue
Walsall Council,http://opendatacommunities.org/id/metropolitan-district-council/walsall,WC100-175,31/01/2019,Resources and Transformation,ADELIE FOODS LTD,14/01/2019,791.70,61305-CATERING,TOWN HALL RESTAURANT BISTRO,Supplies & Services,Revenue
Walsall Council,http://opendatacommunities.org/id/metropolitan-district-council/walsall,WC100-176,31/01/2019,Resources and Transformation,ADELIE FOODS LTD,29/01/2019,794.55,61305-CATERING,TOWN HALL RESTAURANT BISTRO,Supplies & Services,Revenue
Walsall Council,http://opendatacommunities.org/id/metropolitan-district-council/walsall,WC100-177,31/01/2019,Resources and Transformation,ADELIE FOODS LTD,08/01/2019,806.74,61305-CATERING,TOWN HALL RESTAURANT BISTRO,Supplies & Services,Revenue
Walsall Council,http://opendatacommunities.org/id/metropolitan-district-council/walsall,WC100-178,31/01/2019,Resources and Transformation,ADELIE FOODS LTD,01/01/2019,836.04,61305-CATERING,TOWN HALL RESTAURANT BISTRO,Supplies & Services,Revenue
Walsall Council,http://opendatacommunities.org/id/metropolitan-district-council/walsall,WC100-179,31/01/2019,Resources and Transformation,ADELIE FOODS LTD,01/01/2019,904.17,61305-CATERING,TOWN HALL RESTAURANT BISTRO,Supplies & Services,Revenue
Walsall Council,http://opendatacommunities.org/id/metropolitan-district-council/walsall,WC100-180,31/01/2019,Adult Social Care,REDACTED,07/01/2019,"1,018.60",73506-DIRECT PAYMENT,PHYSICAL SUPPORT,Third Party Payments,Revenue
Walsall Council,http://opendatacommunities.org/id/metropolitan-district-council/walsall,WC100-181,31/01/2019,Childrens,REDACTED,11/01/2019,333.12,74510-RESIDENTS ORDERS,ADOPTION ALLOWANCES,Third Party Payments,Revenue
Walsall Council,http://opendatacommunities.org/id/metropolitan-district-council/walsall,WC100-182,31/01/2019,Childrens,REDACTED,11/01/2019,361.12,74510-RESIDENTS ORDERS,ADOPTION ALLOWANCES,Third Party Payments,Revenue
Walsall Council,http://opendatacommunities.org/id/metropolitan-district-council/walsall,WC100-183,31/01/2019,Adult Social Care,REDACTED,07/01/2019,"2,083.20",73506-DIRECT PAYMENT,LEARNING DISABILITY SUPPORT,Third Party Payments,Revenue
Walsall Council,http://opendatacommunities.org/id/metropolitan-district-council/walsall,WC100-184,31/01/2019,Economy & Environment,ADS ELECTRICAL & HIGHWAY SERVICES LTD,01/01/2019,348.00,60534-VEHICLE TESTING STATION-MATERIALS,GROUNDS,Supplies & Services,Revenue
Walsall Council,http://opendatacommunities.org/id/metropolitan-district-council/walsall,WC100-185,31/01/2019,Economy & Environment,ADS ELECTRICAL & HIGHWAY SERVICES LTD,04/01/2019,920.00,63000-PROFESSIONAL FEES AND SERVICES,FESTIVE DECORATIONS,Supplies & Services,Revenue
Walsall Council,http://opendatacommunities.org/id/metropolitan-district-council/walsall,WC100-186,31/01/2019,Economy & Environment,ADS ELECTRICAL & HIGHWAY SERVICES LTD,09/01/2019,"4,466.00",60534-VEHICLE TESTING STATION-MATERIALS,GROUNDS,Supplies & Services,Revenue
Walsall Council,http://opendatacommunities.org/id/metropolitan-district-council/walsall,WC100-187,31/01/2019,Adult Social Care,ADVANCE HEALTH CARE (UK) LTD,23/01/2019,"-1,278.55",73025-PROFESSIONAL SERVICES-PRIV CONTRACTOR & OTHER AGENCIES,COMMUNITY INTERMEDIATE CARE,Third Party Payments,Revenue
Walsall Council,http://opendatacommunities.org/id/metropolitan-district-council/walsall,WC100-188,31/01/2019,Adult Social Care,ADVANCE HEALTH CARE (UK) LTD,30/01/2019,-442.58,73025-PROFESSIONAL SERVICES-PRIV CONTRACTOR & OTHER AGENCIES,COMMUNITY INTERMEDIATE CARE,Third Party Payments,Revenue
Walsall Council,http://opendatacommunities.org/id/metropolitan-district-council/walsall,WC100-189,31/01/2019,Adult Social Care,ADVANCE HEALTH CARE (UK) LTD,04/01/2019,252.90,73025-PROFESSIONAL SERVICES-PRIV CONTRACTOR & OTHER AGENCIES,COMMUNITY INTERMEDIATE CARE,Third Party Payments,Revenue
Walsall Council,http://opendatacommunities.org/id/metropolitan-district-council/walsall,WC100-190,31/01/2019,Adult Social Care,ADVANCE HEALTH CARE (UK) LTD,28/01/2019,252.90,73025-PROFESSIONAL SERVICES-PRIV CONTRACTOR & OTHER AGENCIES,COMMUNITY INTERMEDIATE CARE,Third Party Payments,Revenue
Walsall Council,http://opendatacommunities.org/id/metropolitan-district-council/walsall,WC100-191,31/01/2019,Adult Social Care,ADVANCE HEALTH CARE (UK) LTD,29/01/2019,252.90,73025-PROFESSIONAL SERVICES-PRIV CONTRACTOR & OTHER AGENCIES,COMMUNITY INTERMEDIATE CARE,Third Party Payments,Revenue
Walsall Council,http://opendatacommunities.org/id/metropolitan-district-council/walsall,WC100-192,31/01/2019,Adult Social Care,ADVANCE HEALTH CARE (UK) LTD,25/01/2019,266.95,73025-PROFESSIONAL SERVICES-PRIV CONTRACTOR & OTHER AGENCIES,COMMUNITY INTERMEDIATE CARE,Third Party Payments,Revenue
Walsall Council,http://opendatacommunities.org/id/metropolitan-district-council/walsall,WC100-193,31/01/2019,Adult Social Care,ADVANCE HEALTH CARE (UK) LTD,04/01/2019,281.00,73025-PROFESSIONAL SERVICES-PRIV CONTRACTOR & OTHER AGENCIES,COMMUNITY INTERMEDIATE CARE,Third Party Payments,Revenue
Walsall Council,http://opendatacommunities.org/id/metropolitan-district-council/walsall,WC100-194,31/01/2019,Adult Social Care,ADVANCE HEALTH CARE (UK) LTD,11/01/2019,281.00,73025-PROFESSIONAL SERVICES-PRIV CONTRACTOR & OTHER AGENCIES,COMMUNITY INTERMEDIATE CARE,Third Party Payments,Revenue
Walsall Council,http://opendatacommunities.org/id/metropolitan-district-council/walsall,WC100-195,31/01/2019,Adult Social Care,ADVANCE HEALTH CARE (UK) LTD,04/01/2019,295.05,73025-PROFESSIONAL SERVICES-PRIV CONTRACTOR & OTHER AGENCIES,COMMUNITY INTERMEDIATE CARE,Third Party Payments,Revenue
Walsall Council,http://opendatacommunities.org/id/metropolitan-district-council/walsall,WC100-196,31/01/2019,Adult Social Care,ADVANCE HEALTH CARE (UK) LTD,16/01/2019,309.28,73507-DOMICILIARY CARE,PHYSICAL SUPPORT,Third Party Payments,Revenue
Walsall Council,http://opendatacommunities.org/id/metropolitan-district-council/walsall,WC100-197,31/01/2019,Adult Social Care,ADVANCE HEALTH CARE (UK) LTD,01/01/2019,344.23,73025-PROFESSIONAL SERVICES-PRIV CONTRACTOR & OTHER AGENCIES,COMMUNITY INTERMEDIATE CARE,Third Party Payments,Revenue
Walsall Council,http://opendatacommunities.org/id/metropolitan-district-council/walsall,WC100-198,31/01/2019,Adult Social Care,ADVANCE HEALTH CARE (UK) LTD,04/01/2019,344.23,73025-PROFESSIONAL SERVICES-PRIV CONTRACTOR & OTHER AGENCIES,COMMUNITY INTERMEDIATE CARE,Third Party Payments,Revenue
Walsall Council,http://opendatacommunities.org/id/metropolitan-district-council/walsall,WC100-199,31/01/2019,Adult Social Care,ADVANCE HEALTH CARE (UK) LTD,11/01/2019,344.23,73025-PROFESSIONAL SERVICES-PRIV CONTRACTOR & OTHER AGENCIES,COMMUNITY INTERMEDIATE CARE,Third Party Payments,Revenue
Walsall Council,http://opendatacommunities.org/id/metropolitan-district-council/walsall,WC100-200,31/01/2019,Adult Social Care,ADVANCE HEALTH CARE (UK) LTD,11/01/2019,344.23,73025-PROFESSIONAL SERVICES-PRIV CONTRACTOR & OTHER AGENCIES,COMMUNITY INTERMEDIATE CARE,Third Party Payments,Revenue
Walsall Council,http://opendatacommunities.org/id/metropolitan-district-council/walsall,WC100-201,31/01/2019,Adult Social Care,ADVANCE HEALTH CARE (UK) LTD,16/01/2019,344.23,73025-PROFESSIONAL SERVICES-PRIV CONTRACTOR & OTHER AGENCIES,COMMUNITY INTERMEDIATE CARE,Third Party Payments,Revenue
Walsall Council,http://opendatacommunities.org/id/metropolitan-district-council/walsall,WC100-202,31/01/2019,Adult Social Care,ADVANCE HEALTH CARE (UK) LTD,25/01/2019,344.23,73025-PROFESSIONAL SERVICES-PRIV CONTRACTOR & OTHER AGENCIES,COMMUNITY INTERMEDIATE CARE,Third Party Payments,Revenue
Walsall Council,http://opendatacommunities.org/id/metropolitan-district-council/walsall,WC100-203,31/01/2019,Adult Social Care,ADVANCE HEALTH CARE (UK) LTD,25/01/2019,344.23,73025-PROFESSIONAL SERVICES-PRIV CONTRACTOR & OTHER AGENCIES,COMMUNITY INTERMEDIATE CARE,Third Party Payments,Revenue
Walsall Council,http://opendatacommunities.org/id/metropolitan-district-council/walsall,WC100-204,31/01/2019,Adult Social Care,ADVANCE HEALTH CARE (UK) LTD,29/01/2019,344.23,73025-PROFESSIONAL SERVICES-PRIV CONTRACTOR & OTHER AGENCIES,COMMUNITY INTERMEDIATE CARE,Third Party Payments,Revenue
Walsall Council,http://opendatacommunities.org/id/metropolitan-district-council/walsall,WC100-205,31/01/2019,Adult Social Care,ADVANCE HEALTH CARE (UK) LTD,11/01/2019,372.33,73025-PROFESSIONAL SERVICES-PRIV CONTRACTOR & OTHER AGENCIES,COMMUNITY INTERMEDIATE CARE,Third Party Payments,Revenue
Walsall Council,http://opendatacommunities.org/id/metropolitan-district-council/walsall,WC100-206,31/01/2019,Adult Social Care,ADVANCE HEALTH CARE (UK) LTD,16/01/2019,390.17,73507-DOMICILIARY CARE,PHYSICAL SUPPORT,Third Party Payments,Revenue
Walsall Council,http://opendatacommunities.org/id/metropolitan-district-council/walsall,WC100-207,31/01/2019,Adult Social Care,ADVANCE HEALTH CARE (UK) LTD,16/01/2019,393.68,73507-DOMICILIARY CARE,PHYSICAL SUPPORT,Third Party Payments,Revenue
Walsall Council,http://opendatacommunities.org/id/metropolitan-district-council/walsall,WC100-208,31/01/2019,Adult Social Care,ADVANCE HEALTH CARE (UK) LTD,16/01/2019,397.20,73507-DOMICILIARY CARE,PHYSICAL SUPPORT,Third Party Payments,Revenue
Walsall Council,http://opendatacommunities.org/id/metropolitan-district-council/walsall,WC100-209,31/01/2019,Adult Social Care,ADVANCE HEALTH CARE (UK) LTD,16/01/2019,397.20,73507-DOMICILIARY CARE,SENSORY SUPPORT,Third Party Payments,Revenue
Walsall Council,http://opendatacommunities.org/id/metropolitan-district-council/walsall,WC100-210,31/01/2019,Adult Social Care,ADVANCE HEALTH CARE (UK) LTD,16/01/2019,404.21,73507-DOMICILIARY CARE,PHYSICAL SUPPORT,Third Party Payments,Revenue
Walsall Council,http://opendatacommunities.org/id/metropolitan-district-council/walsall,WC100-211,31/01/2019,Adult Social Care,ADVANCE HEALTH CARE (UK) LTD,16/01/2019,407.81,73507-DOMICILIARY CARE,PHYSICAL SUPPORT,Third Party Payments,Revenue
Walsall Council,http://opendatacommunities.org/id/metropolitan-district-council/walsall,WC100-212,31/01/2019,Adult Social Care,ADVANCE HEALTH CARE (UK) LTD,16/01/2019,408.72,73507-DOMICILIARY CARE,SOCIAL SUPPORT,Third Party Payments,Revenue
Walsall Council,http://opendatacommunities.org/id/metropolitan-district-council/walsall,WC100-213,31/01/2019,Adult Social Care,ADVANCE HEALTH CARE (UK) LTD,28/01/2019,428.53,73025-PROFESSIONAL SERVICES-PRIV CONTRACTOR & OTHER AGENCIES,COMMUNITY INTERMEDIATE CARE,Third Party Payments,Revenue
Walsall Council,http://opendatacommunities.org/id/metropolitan-district-council/walsall,WC100-214,31/01/2019,Adult Social Care,ADVANCE HEALTH CARE (UK) LTD,16/01/2019,429.75,73507-DOMICILIARY CARE,PHYSICAL SUPPORT,Third Party Payments,Revenue
Walsall Council,http://opendatacommunities.org/id/metropolitan-district-council/walsall,WC100-215,31/01/2019,Adult Social Care,ADVANCE HEALTH CARE (UK) LTD,16/01/2019,432.28,73507-DOMICILIARY CARE,PHYSICAL SUPPORT,Third Party Payments,Revenue
Walsall Council,http://opendatacommunities.org/id/metropolitan-district-council/walsall,WC100-216,31/01/2019,Adult Social Care,ADVANCE HEALTH CARE (UK) LTD,01/01/2019,442.58,73025-PROFESSIONAL SERVICES-PRIV CONTRACTOR & OTHER AGENCIES,COMMUNITY INTERMEDIATE CARE,Third Party Payments,Revenue
Walsall Council,http://opendatacommunities.org/id/metropolitan-district-council/walsall,WC100-217,31/01/2019,Adult Social Care,ADVANCE HEALTH CARE (UK) LTD,01/01/2019,442.58,73025-PROFESSIONAL SERVICES-PRIV CONTRACTOR & OTHER AGENCIES,COMMUNITY INTERMEDIATE CARE,Third Party Payments,Revenue
Walsall Council,http://opendatacommunities.org/id/metropolitan-district-council/walsall,WC100-218,31/01/2019,Adult Social Care,ADVANCE HEALTH CARE (UK) LTD,01/01/2019,442.58,73025-PROFESSIONAL SERVICES-PRIV CONTRACTOR & OTHER AGENCIES,COMMUNITY INTERMEDIATE CARE,Third Party Payments,Revenue
Walsall Council,http://opendatacommunities.org/id/metropolitan-district-council/walsall,WC100-219,31/01/2019,Adult Social Care,ADVANCE HEALTH CARE (UK) LTD,01/01/2019,442.58,73025-PROFESSIONAL SERVICES-PRIV CONTRACTOR & OTHER AGENCIES,COMMUNITY INTERMEDIATE CARE,Third Party Payments,Revenue
Walsall Council,http://opendatacommunities.org/id/metropolitan-district-council/walsall,WC100-220,31/01/2019,Adult Social Care,ADVANCE HEALTH CARE (UK) LTD,01/01/2019,442.58,73025-PROFESSIONAL SERVICES-PRIV CONTRACTOR & OTHER AGENCIES,COMMUNITY INTERMEDIATE CARE,Third Party Payments,Revenue
Walsall Council,http://opendatacommunities.org/id/metropolitan-district-council/walsall,WC100-221,31/01/2019,Adult Social Care,ADVANCE HEALTH CARE (UK) LTD,01/01/2019,442.58,73025-PROFESSIONAL SERVICES-PRIV CONTRACTOR & OTHER AGENCIES,COMMUNITY INTERMEDIATE CARE,Third Party Payments,Revenue
Walsall Council,http://opendatacommunities.org/id/metropolitan-district-council/walsall,WC100-222,31/01/2019,Adult Social Care,ADVANCE HEALTH CARE (UK) LTD,01/01/2019,442.58,73025-PROFESSIONAL SERVICES-PRIV CONTRACTOR & OTHER AGENCIES,COMMUNITY INTERMEDIATE CARE,Third Party Payments,Revenue
Walsall Council,http://opendatacommunities.org/id/metropolitan-district-council/walsall,WC100-223,31/01/2019,Adult Social Care,ADVANCE HEALTH CARE (UK) LTD,01/01/2019,442.58,73025-PROFESSIONAL SERVICES-PRIV CONTRACTOR & OTHER AGENCIES,COMMUNITY INTERMEDIATE CARE,Third Party Payments,Revenue
Walsall Council,http://opendatacommunities.org/id/metropolitan-district-council/walsall,WC100-224,31/01/2019,Adult Social Care,ADVANCE HEALTH CARE (UK) LTD,01/01/2019,442.58,73025-PROFESSIONAL SERVICES-PRIV CONTRACTOR & OTHER AGENCIES,COMMUNITY INTERMEDIATE CARE,Third Party Payments,Revenue
Walsall Council,http://opendatacommunities.org/id/metropolitan-district-council/walsall,WC100-225,31/01/2019,Adult Social Care,ADVANCE HEALTH CARE (UK) LTD,01/01/2019,442.58,73025-PROFESSIONAL SERVICES-PRIV CONTRACTOR & OTHER AGENCIES,COMMUNITY INTERMEDIATE CARE,Third Party Payments,Revenue
Walsall Council,http://opendatacommunities.org/id/metropolitan-district-council/walsall,WC100-226,31/01/2019,Adult Social Care,ADVANCE HEALTH CARE (UK) LTD,01/01/2019,442.58,73025-PROFESSIONAL SERVICES-PRIV CONTRACTOR & OTHER AGENCIES,COMMUNITY INTERMEDIATE CARE,Third Party Payments,Revenue
Walsall Council,http://opendatacommunities.org/id/metropolitan-district-council/walsall,WC100-227,31/01/2019,Adult Social Care,ADVANCE HEALTH CARE (UK) LTD,01/01/2019,442.58,73025-PROFESSIONAL SERVICES-PRIV CONTRACTOR & OTHER AGENCIES,COMMUNITY INTERMEDIATE CARE,Third Party Payments,Revenue
Walsall Council,http://opendatacommunities.org/id/metropolitan-district-council/walsall,WC100-228,31/01/2019,Adult Social Care,ADVANCE HEALTH CARE (UK) LTD,01/01/2019,442.58,73025-PROFESSIONAL SERVICES-PRIV CONTRACTOR & OTHER AGENCIES,COMMUNITY INTERMEDIATE CARE,Third Party Payments,Revenue
Walsall Council,http://opendatacommunities.org/id/metropolitan-district-council/walsall,WC100-229,31/01/2019,Adult Social Care,ADVANCE HEALTH CARE (UK) LTD,04/01/2019,442.58,73025-PROFESSIONAL SERVICES-PRIV CONTRACTOR & OTHER AGENCIES,COMMUNITY INTERMEDIATE CARE,Third Party Payments,Revenue
Walsall Council,http://opendatacommunities.org/id/metropolitan-district-council/walsall,WC100-230,31/01/2019,Adult Social Care,ADVANCE HEALTH CARE (UK) LTD,04/01/2019,442.58,73025-PROFESSIONAL SERVICES-PRIV CONTRACTOR & OTHER AGENCIES,COMMUNITY INTERMEDIATE CARE,Third Party Payments,Revenue
Walsall Council,http://opendatacommunities.org/id/metropolitan-district-council/walsall,WC100-231,31/01/2019,Adult Social Care,ADVANCE HEALTH CARE (UK) LTD,04/01/2019,442.58,73025-PROFESSIONAL SERVICES-PRIV CONTRACTOR & OTHER AGENCIES,COMMUNITY INTERMEDIATE CARE,Third Party Payments,Revenue
Walsall Council,http://opendatacommunities.org/id/metropolitan-district-council/walsall,WC100-232,31/01/2019,Adult Social Care,ADVANCE HEALTH CARE (UK) LTD,04/01/2019,442.58,73025-PROFESSIONAL SERVICES-PRIV CONTRACTOR & OTHER AGENCIES,COMMUNITY INTERMEDIATE CARE,Third Party Payments,Revenue
Walsall Council,http://opendatacommunities.org/id/metropolitan-district-council/walsall,WC100-233,31/01/2019,Adult Social Care,ADVANCE HEALTH CARE (UK) LTD,04/01/2019,442.58,73025-PROFESSIONAL SERVICES-PRIV CONTRACTOR & OTHER AGENCIES,COMMUNITY INTERMEDIATE CARE,Third Party Payments,Revenue
Walsall Council,http://opendatacommunities.org/id/metropolitan-district-council/walsall,WC100-234,31/01/2019,Adult Social Care,ADVANCE HEALTH CARE (UK) LTD,04/01/2019,442.58,73025-PROFESSIONAL SERVICES-PRIV CONTRACTOR & OTHER AGENCIES,COMMUNITY INTERMEDIATE CARE,Third Party Payments,Revenue
Walsall Council,http://opendatacommunities.org/id/metropolitan-district-council/walsall,WC100-235,31/01/2019,Adult Social Care,ADVANCE HEALTH CARE (UK) LTD,04/01/2019,442.58,73025-PROFESSIONAL SERVICES-PRIV CONTRACTOR & OTHER AGENCIES,COMMUNITY INTERMEDIATE CARE,Third Party Payments,Revenue
Walsall Council,http://opendatacommunities.org/id/metropolitan-district-council/walsall,WC100-236,31/01/2019,Adult Social Care,ADVANCE HEALTH CARE (UK) LTD,04/01/2019,442.58,73025-PROFESSIONAL SERVICES-PRIV CONTRACTOR & OTHER AGENCIES,COMMUNITY INTERMEDIATE CARE,Third Party Payments,Revenue
Walsall Council,http://opendatacommunities.org/id/metropolitan-district-council/walsall,WC100-237,31/01/2019,Adult Social Care,ADVANCE HEALTH CARE (UK) LTD,04/01/2019,442.58,73025-PROFESSIONAL SERVICES-PRIV CONTRACTOR & OTHER AGENCIES,COMMUNITY INTERMEDIATE CARE,Third Party Payments,Revenue
Walsall Council,http://opendatacommunities.org/id/metropolitan-district-council/walsall,WC100-238,31/01/2019,Adult Social Care,ADVANCE HEALTH CARE (UK) LTD,11/01/2019,442.58,73025-PROFESSIONAL SERVICES-PRIV CONTRACTOR & OTHER AGENCIES,COMMUNITY INTERMEDIATE CARE,Third Party Payments,Revenue
Walsall Council,http://opendatacommunities.org/id/metropolitan-district-council/walsall,WC100-239,31/01/2019,Adult Social Care,ADVANCE HEALTH CARE (UK) LTD,11/01/2019,442.58,73025-PROFESSIONAL SERVICES-PRIV CONTRACTOR & OTHER AGENCIES,COMMUNITY INTERMEDIATE CARE,Third Party Payments,Revenue
Walsall Council,http://opendatacommunities.org/id/metropolitan-district-council/walsall,WC100-240,31/01/2019,Adult Social Care,ADVANCE HEALTH CARE (UK) LTD,11/01/2019,442.58,73025-PROFESSIONAL SERVICES-PRIV CONTRACTOR & OTHER AGENCIES,COMMUNITY INTERMEDIATE CARE,Third Party Payments,Revenue
Walsall Council,http://opendatacommunities.org/id/metropolitan-district-council/walsall,WC100-241,31/01/2019,Adult Social Care,ADVANCE HEALTH CARE (UK) LTD,11/01/2019,442.58,73025-PROFESSIONAL SERVICES-PRIV CONTRACTOR & OTHER AGENCIES,COMMUNITY INTERMEDIATE CARE,Third Party Payments,Revenue
Walsall Council,http://opendatacommunities.org/id/metropolitan-district-council/walsall,WC100-242,31/01/2019,Adult Social Care,ADVANCE HEALTH CARE (UK) LTD,11/01/2019,442.58,73025-PROFESSIONAL SERVICES-PRIV CONTRACTOR & OTHER AGENCIES,COMMUNITY INTERMEDIATE CARE,Third Party Payments,Revenue
Walsall Council,http://opendatacommunities.org/id/metropolitan-district-council/walsall,WC100-243,31/01/2019,Adult Social Care,ADVANCE HEALTH CARE (UK) LTD,11/01/2019,442.58,73025-PROFESSIONAL SERVICES-PRIV CONTRACTOR & OTHER AGENCIES,COMMUNITY INTERMEDIATE CARE,Third Party Payments,Revenue
Walsall Council,http://opendatacommunities.org/id/metropolitan-district-council/walsall,WC100-244,31/01/2019,Adult Social Care,ADVANCE HEALTH CARE (UK) LTD,11/01/2019,442.58,73025-PROFESSIONAL SERVICES-PRIV CONTRACTOR & OTHER AGENCIES,COMMUNITY INTERMEDIATE CARE,Third Party Payments,Revenue
Walsall Council,http://opendatacommunities.org/id/metropolitan-district-council/walsall,WC100-245,31/01/2019,Adult Social Care,ADVANCE HEALTH CARE (UK) LTD,11/01/2019,442.58,73025-PROFESSIONAL SERVICES-PRIV CONTRACTOR & OTHER AGENCIES,COMMUNITY INTERMEDIATE CARE,Third Party Payments,Revenue
Walsall Council,http://opendatacommunities.org/id/metropolitan-district-council/walsall,WC100-246,31/01/2019,Adult Social Care,ADVANCE HEALTH CARE (UK) LTD,11/01/2019,442.58,73025-PROFESSIONAL SERVICES-PRIV CONTRACTOR & OTHER AGENCIES,COMMUNITY INTERMEDIATE CARE,Third Party Payments,Revenue
Walsall Council,http://opendatacommunities.org/id/metropolitan-district-council/walsall,WC100-247,31/01/2019,Adult Social Care,ADVANCE HEALTH CARE (UK) LTD,11/01/2019,442.58,73025-PROFESSIONAL SERVICES-PRIV CONTRACTOR & OTHER AGENCIES,COMMUNITY INTERMEDIATE CARE,Third Party Payments,Revenue
Walsall Council,http://opendatacommunities.org/id/metropolitan-district-council/walsall,WC100-248,31/01/2019,Adult Social Care,ADVANCE HEALTH CARE (UK) LTD,11/01/2019,442.58,73025-PROFESSIONAL SERVICES-PRIV CONTRACTOR & OTHER AGENCIES,COMMUNITY INTERMEDIATE CARE,Third Party Payments,Revenue
Walsall Council,http://opendatacommunities.org/id/metropolitan-district-council/walsall,WC100-249,31/01/2019,Adult Social Care,ADVANCE HEALTH CARE (UK) LTD,11/01/2019,442.58,73025-PROFESSIONAL SERVICES-PRIV CONTRACTOR & OTHER AGENCIES,COMMUNITY INTERMEDIATE CARE,Third Party Payments,Revenue
Walsall Council,http://opendatacommunities.org/id/metropolitan-district-council/walsall,WC100-250,31/01/2019,Adult Social Care,ADVANCE HEALTH CARE (UK) LTD,11/01/2019,442.58,73025-PROFESSIONAL SERVICES-PRIV CONTRACTOR & OTHER AGENCIES,COMMUNITY INTERMEDIATE CARE,Third Party Payments,Revenue
Walsall Council,http://opendatacommunities.org/id/metropolitan-district-council/walsall,WC100-251,31/01/2019,Adult Social Care,ADVANCE HEALTH CARE (UK) LTD,11/01/2019,442.58,73025-PROFESSIONAL SERVICES-PRIV CONTRACTOR & OTHER AGENCIES,COMMUNITY INTERMEDIATE CARE,Third Party Payments,Revenue
Walsall Council,http://opendatacommunities.org/id/metropolitan-district-council/walsall,WC100-252,31/01/2019,Adult Social Care,ADVANCE HEALTH CARE (UK) LTD,11/01/2019,442.58,73025-PROFESSIONAL SERVICES-PRIV CONTRACTOR & OTHER AGENCIES,COMMUNITY INTERMEDIATE CARE,Third Party Payments,Revenue
Walsall Council,http://opendatacommunities.org/id/metropolitan-district-council/walsall,WC100-253,31/01/2019,Adult Social Care,ADVANCE HEALTH CARE (UK) LTD,11/01/2019,442.58,73025-PROFESSIONAL SERVICES-PRIV CONTRACTOR & OTHER AGENCIES,COMMUNITY INTERMEDIATE CARE,Third Party Payments,Revenue
Walsall Council,http://opendatacommunities.org/id/metropolitan-district-council/walsall,WC100-254,31/01/2019,Adult Social Care,ADVANCE HEALTH CARE (UK) LTD,16/01/2019,442.58,73025-PROFESSIONAL SERVICES-PRIV CONTRACTOR & OTHER AGENCIES,COMMUNITY INTERMEDIATE CARE,Third Party Payments,Revenue
Walsall Council,http://opendatacommunities.org/id/metropolitan-district-council/walsall,WC100-255,31/01/2019,Adult Social Care,ADVANCE HEALTH CARE (UK) LTD,16/01/2019,442.58,73025-PROFESSIONAL SERVICES-PRIV CONTRACTOR & OTHER AGENCIES,COMMUNITY INTERMEDIATE CARE,Third Party Payments,Revenue
Walsall Council,http://opendatacommunities.org/id/metropolitan-district-council/walsall,WC100-256,31/01/2019,Adult Social Care,ADVANCE HEALTH CARE (UK) LTD,16/01/2019,442.58,73025-PROFESSIONAL SERVICES-PRIV CONTRACTOR & OTHER AGENCIES,COMMUNITY INTERMEDIATE CARE,Third Party Payments,Revenue
Walsall Council,http://opendatacommunities.org/id/metropolitan-district-council/walsall,WC100-257,31/01/2019,Adult Social Care,ADVANCE HEALTH CARE (UK) LTD,16/01/2019,442.58,73025-PROFESSIONAL SERVICES-PRIV CONTRACTOR & OTHER AGENCIES,COMMUNITY INTERMEDIATE CARE,Third Party Payments,Revenue
Walsall Council,http://opendatacommunities.org/id/metropolitan-district-council/walsall,WC100-258,31/01/2019,Adult Social Care,ADVANCE HEALTH CARE (UK) LTD,16/01/2019,442.58,73025-PROFESSIONAL SERVICES-PRIV CONTRACTOR & OTHER AGENCIES,COMMUNITY INTERMEDIATE CARE,Third Party Payments,Revenue
Walsall Council,http://opendatacommunities.org/id/metropolitan-district-council/walsall,WC100-259,31/01/2019,Adult Social Care,ADVANCE HEALTH CARE (UK) LTD,16/01/2019,442.58,73025-PROFESSIONAL SERVICES-PRIV CONTRACTOR & OTHER AGENCIES,COMMUNITY INTERMEDIATE CARE,Third Party Payments,Revenue
Walsall Council,http://opendatacommunities.org/id/metropolitan-district-council/walsall,WC100-260,31/01/2019,Adult Social Care,ADVANCE HEALTH CARE (UK) LTD,16/01/2019,442.58,73025-PROFESSIONAL SERVICES-PRIV CONTRACTOR & OTHER AGENCIES,COMMUNITY INTERMEDIATE CARE,Third Party Payments,Revenue
Walsall Council,http://opendatacommunities.org/id/metropolitan-district-council/walsall,WC100-261,31/01/2019,Adult Social Care,ADVANCE HEALTH CARE (UK) LTD,16/01/2019,442.58,73025-PROFESSIONAL SERVICES-PRIV CONTRACTOR & OTHER AGENCIES,COMMUNITY INTERMEDIATE CARE,Third Party Payments,Revenue
Walsall Council,http://opendatacommunities.org/id/metropolitan-district-council/walsall,WC100-262,31/01/2019,Adult Social Care,ADVANCE HEALTH CARE (UK) LTD,16/01/2019,442.58,73025-PROFESSIONAL SERVICES-PRIV CONTRACTOR & OTHER AGENCIES,COMMUNITY INTERMEDIATE CARE,Third Party Payments,Revenue
Walsall Council,http://opendatacommunities.org/id/metropolitan-district-council/walsall,WC100-263,31/01/2019,Adult Social Care,ADVANCE HEALTH CARE (UK) LTD,25/01/2019,442.58,73025-PROFESSIONAL SERVICES-PRIV CONTRACTOR & OTHER AGENCIES,COMMUNITY INTERMEDIATE CARE,Third Party Payments,Revenue
Walsall Council,http://opendatacommunities.org/id/metropolitan-district-council/walsall,WC100-264,31/01/2019,Adult Social Care,ADVANCE HEALTH CARE (UK) LTD,28/01/2019,442.58,73025-PROFESSIONAL SERVICES-PRIV CONTRACTOR & OTHER AGENCIES,COMMUNITY INTERMEDIATE CARE,Third Party Payments,Revenue
Walsall Council,http://opendatacommunities.org/id/metropolitan-district-council/walsall,WC100-265,31/01/2019,Adult Social Care,ADVANCE HEALTH CARE (UK) LTD,28/01/2019,442.58,73025-PROFESSIONAL SERVICES-PRIV CONTRACTOR & OTHER AGENCIES,COMMUNITY INTERMEDIATE CARE,Third Party Payments,Revenue
Walsall Council,http://opendatacommunities.org/id/metropolitan-district-council/walsall,WC100-266,31/01/2019,Adult Social Care,ADVANCE HEALTH CARE (UK) LTD,28/01/2019,442.58,73025-PROFESSIONAL SERVICES-PRIV CONTRACTOR & OTHER AGENCIES,COMMUNITY INTERMEDIATE CARE,Third Party Payments,Revenue
Walsall Council,http://opendatacommunities.org/id/metropolitan-district-council/walsall,WC100-267,31/01/2019,Adult Social Care,ADVANCE HEALTH CARE (UK) LTD,29/01/2019,442.58,73025-PROFESSIONAL SERVICES-PRIV CONTRACTOR & OTHER AGENCIES,COMMUNITY INTERMEDIATE CARE,Third Party Payments,Revenue
Walsall Council,http://opendatacommunities.org/id/metropolitan-district-council/walsall,WC100-268,31/01/2019,Adult Social Care,ADVANCE HEALTH CARE (UK) LTD,29/01/2019,442.58,73025-PROFESSIONAL SERVICES-PRIV CONTRACTOR & OTHER AGENCIES,COMMUNITY INTERMEDIATE CARE,Third Party Payments,Revenue
Walsall Council,http://opendatacommunities.org/id/metropolitan-district-council/walsall,WC100-269,31/01/2019,Adult Social Care,ADVANCE HEALTH CARE (UK) LTD,01/01/2019,449.60,73025-PROFESSIONAL SERVICES-PRIV CONTRACTOR & OTHER AGENCIES,COMMUNITY INTERMEDIATE CARE,Third Party Payments,Revenue
Walsall Council,http://opendatacommunities.org/id/metropolitan-district-council/walsall,WC100-270,31/01/2019,Adult Social Care,ADVANCE HEALTH CARE (UK) LTD,01/01/2019,456.63,73025-PROFESSIONAL SERVICES-PRIV CONTRACTOR & OTHER AGENCIES,COMMUNITY INTERMEDIATE CARE,Third Party Payments,Revenue
Walsall Council,http://opendatacommunities.org/id/metropolitan-district-council/walsall,WC100-271,31/01/2019,Adult Social Care,ADVANCE HEALTH CARE (UK) LTD,11/01/2019,456.63,73025-PROFESSIONAL SERVICES-PRIV CONTRACTOR & OTHER AGENCIES,COMMUNITY INTERMEDIATE CARE,Third Party Payments,Revenue
Walsall Council,http://opendatacommunities.org/id/metropolitan-district-council/walsall,WC100-272,31/01/2019,Adult Social Care,ADVANCE HEALTH CARE (UK) LTD,16/01/2019,456.63,73025-PROFESSIONAL SERVICES-PRIV CONTRACTOR & OTHER AGENCIES,COMMUNITY INTERMEDIATE CARE,Third Party Payments,Revenue
Walsall Council,http://opendatacommunities.org/id/metropolitan-district-council/walsall,WC100-273,31/01/2019,Adult Social Care,ADVANCE HEALTH CARE (UK) LTD,29/01/2019,456.63,73025-PROFESSIONAL SERVICES-PRIV CONTRACTOR & OTHER AGENCIES,COMMUNITY INTERMEDIATE CARE,Third Party Payments,Revenue
Walsall Council,http://opendatacommunities.org/id/metropolitan-district-council/walsall,WC100-274,31/01/2019,Adult Social Care,ADVANCE HEALTH CARE (UK) LTD,16/01/2019,463.90,73507-DOMICILIARY CARE,CARERS,Third Party Payments,Revenue
Walsall Council,http://opendatacommunities.org/id/metropolitan-district-council/walsall,WC100-275,31/01/2019,Adult Social Care,ADVANCE HEALTH CARE (UK) LTD,04/01/2019,470.68,73025-PROFESSIONAL SERVICES-PRIV CONTRACTOR & OTHER AGENCIES,COMMUNITY INTERMEDIATE CARE,Third Party Payments,Revenue
Walsall Council,http://opendatacommunities.org/id/metropolitan-district-council/walsall,WC100-276,31/01/2019,Adult Social Care,ADVANCE HEALTH CARE (UK) LTD,04/01/2019,470.68,73025-PROFESSIONAL SERVICES-PRIV CONTRACTOR & OTHER AGENCIES,COMMUNITY INTERMEDIATE CARE,Third Party Payments,Revenue
Walsall Council,http://opendatacommunities.org/id/metropolitan-district-council/walsall,WC100-277,31/01/2019,Adult Social Care,ADVANCE HEALTH CARE (UK) LTD,11/01/2019,470.68,73025-PROFESSIONAL SERVICES-PRIV CONTRACTOR & OTHER AGENCIES,COMMUNITY INTERMEDIATE CARE,Third Party Payments,Revenue
Walsall Council,http://opendatacommunities.org/id/metropolitan-district-council/walsall,WC100-278,31/01/2019,Adult Social Care,ADVANCE HEALTH CARE (UK) LTD,11/01/2019,470.68,73025-PROFESSIONAL SERVICES-PRIV CONTRACTOR & OTHER AGENCIES,COMMUNITY INTERMEDIATE CARE,Third Party Payments,Revenue
Walsall Council,http://opendatacommunities.org/id/metropolitan-district-council/walsall,WC100-279,31/01/2019,Adult Social Care,ADVANCE HEALTH CARE (UK) LTD,16/01/2019,470.68,73025-PROFESSIONAL SERVICES-PRIV CONTRACTOR & OTHER AGENCIES,COMMUNITY INTERMEDIATE CARE,Third Party Payments,Revenue
Walsall Council,http://opendatacommunities.org/id/metropolitan-district-council/walsall,WC100-280,31/01/2019,Adult Social Care,ADVANCE HEALTH CARE (UK) LTD,16/01/2019,491.96,73507-DOMICILIARY CARE,PHYSICAL SUPPORT,Third Party Payments,Revenue
Walsall Council,http://opendatacommunities.org/id/metropolitan-district-council/walsall,WC100-281,31/01/2019,Adult Social Care,ADVANCE HEALTH CARE (UK) LTD,16/01/2019,532.94,73507-DOMICILIARY CARE,PHYSICAL SUPPORT,Third Party Payments,Revenue
Walsall Council,http://opendatacommunities.org/id/metropolitan-district-council/walsall,WC100-282,31/01/2019,Adult Social Care,ADVANCE HEALTH CARE (UK) LTD,16/01/2019,537.67,73507-DOMICILIARY CARE,PHYSICAL SUPPORT,Third Party Payments,Revenue
Walsall Council,http://opendatacommunities.org/id/metropolitan-district-council/walsall,WC100-283,31/01/2019,Adult Social Care,ADVANCE HEALTH CARE (UK) LTD,16/01/2019,554.10,73507-DOMICILIARY CARE,PHYSICAL SUPPORT,Third Party Payments,Revenue
Walsall Council,http://opendatacommunities.org/id/metropolitan-district-council/walsall,WC100-284,31/01/2019,Adult Social Care,ADVANCE HEALTH CARE (UK) LTD,04/01/2019,554.98,73025-PROFESSIONAL SERVICES-PRIV CONTRACTOR & OTHER AGENCIES,COMMUNITY INTERMEDIATE CARE,Third Party Payments,Revenue
Walsall Council,http://opendatacommunities.org/id/metropolitan-district-council/walsall,WC100-285,31/01/2019,Adult Social Care,ADVANCE HEALTH CARE (UK) LTD,11/01/2019,554.98,73025-PROFESSIONAL SERVICES-PRIV CONTRACTOR & OTHER AGENCIES,COMMUNITY INTERMEDIATE CARE,Third Party Payments,Revenue
Walsall Council,http://opendatacommunities.org/id/metropolitan-district-council/walsall,WC100-286,31/01/2019,Adult Social Care,ADVANCE HEALTH CARE (UK) LTD,16/01/2019,583.29,73507-DOMICILIARY CARE,PHYSICAL SUPPORT,Third Party Payments,Revenue
Walsall Council,http://opendatacommunities.org/id/metropolitan-district-council/walsall,WC100-287,31/01/2019,Adult Social Care,ADVANCE HEALTH CARE (UK) LTD,16/01/2019,590.53,73507-DOMICILIARY CARE,SOCIAL SUPPORT,Third Party Payments,Revenue
Walsall Council,http://opendatacommunities.org/id/metropolitan-district-council/walsall,WC100-288,31/01/2019,Adult Social Care,ADVANCE HEALTH CARE (UK) LTD,16/01/2019,693.48,73507-DOMICILIARY CARE,PHYSICAL SUPPORT,Third Party Payments,Revenue
Walsall Council,http://opendatacommunities.org/id/metropolitan-district-council/walsall,WC100-289,31/01/2019,Adult Social Care,ADVANCE HEALTH CARE (UK) LTD,16/01/2019,706.11,73507-DOMICILIARY CARE,PHYSICAL SUPPORT,Third Party Payments,Revenue
Walsall Council,http://opendatacommunities.org/id/metropolitan-district-council/walsall,WC100-290,31/01/2019,Adult Social Care,ADVANCE HEALTH CARE (UK) LTD,16/01/2019,730.81,73507-DOMICILIARY CARE,SUPPORT WITH MEMORY & COGNITION,Third Party Payments,Revenue
Walsall Council,http://opendatacommunities.org/id/metropolitan-district-council/walsall,WC100-291,31/01/2019,Adult Social Care,ADVANCE HEALTH CARE (UK) LTD,16/01/2019,783.86,73507-DOMICILIARY CARE,PHYSICAL SUPPORT,Third Party Payments,Revenue
Walsall Council,http://opendatacommunities.org/id/metropolitan-district-council/walsall,WC100-292,31/01/2019,Adult Social Care,ADVANCE HEALTH CARE (UK) LTD,16/01/2019,787.36,73507-DOMICILIARY CARE,PHYSICAL SUPPORT,Third Party Payments,Revenue
Walsall Council,http://opendatacommunities.org/id/metropolitan-district-council/walsall,WC100-293,31/01/2019,Adult Social Care,ADVANCE HEALTH CARE (UK) LTD,16/01/2019,787.36,73507-DOMICILIARY CARE,PHYSICAL SUPPORT,Third Party Payments,Revenue
Walsall Council,http://opendatacommunities.org/id/metropolitan-district-council/walsall,WC100-294,31/01/2019,Adult Social Care,ADVANCE HEALTH CARE (UK) LTD,16/01/2019,790.88,73507-DOMICILIARY CARE,PHYSICAL SUPPORT,Third Party Payments,Revenue
Walsall Council,http://opendatacommunities.org/id/metropolitan-district-council/walsall,WC100-295,31/01/2019,Adult Social Care,ADVANCE HEALTH CARE (UK) LTD,16/01/2019,804.68,73507-DOMICILIARY CARE,PHYSICAL SUPPORT,Third Party Payments,Revenue
Walsall Council,http://opendatacommunities.org/id/metropolitan-district-council/walsall,WC100-296,31/01/2019,Adult Social Care,ADVANCE HEALTH CARE (UK) LTD,16/01/2019,804.97,73507-DOMICILIARY CARE,PHYSICAL SUPPORT,Third Party Payments,Revenue
Walsall Council,http://opendatacommunities.org/id/metropolitan-district-council/walsall,WC100-297,31/01/2019,Adult Social Care,ADVANCE HEALTH CARE (UK) LTD,16/01/2019,854.30,73507-DOMICILIARY CARE,PHYSICAL SUPPORT,Third Party Payments,Revenue
Walsall Council,http://opendatacommunities.org/id/metropolitan-district-council/walsall,WC100-298,31/01/2019,Adult Social Care,ADVANCE HEALTH CARE (UK) LTD,16/01/2019,"1,004.98",73507-DOMICILIARY CARE,PHYSICAL SUPPORT,Third Party Payments,Revenue
Walsall Council,http://opendatacommunities.org/id/metropolitan-district-council/walsall,WC100-299,31/01/2019,Adult Social Care,ADVANCE HEALTH CARE (UK) LTD,16/01/2019,"1,114.11",73507-DOMICILIARY CARE,PHYSICAL SUPPORT,Third Party Payments,Revenue
Walsall Council,http://opendatacommunities.org/id/metropolitan-district-council/walsall,WC100-300,31/01/2019,Adult Social Care,ADVANCE HEALTH CARE (UK) LTD,16/01/2019,"1,142.52",73507-DOMICILIARY CARE,PHYSICAL SUPPORT,Third Party Payments,Revenue
Walsall Council,http://opendatacommunities.org/id/metropolitan-district-council/walsall,WC100-301,31/01/2019,Adult Social Care,ADVANCE HEALTH CARE (UK) LTD,16/01/2019,"1,177.54",73507-DOMICILIARY CARE,SOCIAL SUPPORT,Third Party Payments,Revenue
Walsall Council,http://opendatacommunities.org/id/metropolitan-district-council/walsall,WC100-302,31/01/2019,Adult Social Care,ADVANCE HEALTH CARE (UK) LTD,16/01/2019,"1,181.01",73507-DOMICILIARY CARE,PHYSICAL SUPPORT,Third Party Payments,Revenue
Walsall Council,http://opendatacommunities.org/id/metropolitan-district-council/walsall,WC100-303,31/01/2019,Adult Social Care,ADVANCE HEALTH CARE (UK) LTD,11/01/2019,"1,222.35",73025-PROFESSIONAL SERVICES-PRIV CONTRACTOR & OTHER AGENCIES,RAPID RESPONSE,Third Party Payments,Revenue
Walsall Council,http://opendatacommunities.org/id/metropolitan-district-council/walsall,WC100-304,31/01/2019,Adult Social Care,ADVANCE HEALTH CARE (UK) LTD,16/01/2019,"1,234.88",73507-DOMICILIARY CARE,PHYSICAL SUPPORT,Third Party Payments,Revenue
Walsall Council,http://opendatacommunities.org/id/metropolitan-district-council/walsall,WC100-305,31/01/2019,Adult Social Care,ADVANCE HEALTH CARE (UK) LTD,16/01/2019,"1,253.65",73507-DOMICILIARY CARE,SOCIAL SUPPORT,Third Party Payments,Revenue
Walsall Council,http://opendatacommunities.org/id/metropolitan-district-council/walsall,WC100-306,31/01/2019,Adult Social Care,ADVANCE HEALTH CARE (UK) LTD,16/01/2019,"1,272.53",73507-DOMICILIARY CARE,PHYSICAL SUPPORT,Third Party Payments,Revenue
Walsall Council,http://opendatacommunities.org/id/metropolitan-district-council/walsall,WC100-307,31/01/2019,Adult Social Care,ADVANCE HEALTH CARE (UK) LTD,16/01/2019,"1,293.52",73507-DOMICILIARY CARE,PHYSICAL SUPPORT,Third Party Payments,Revenue
Walsall Council,http://opendatacommunities.org/id/metropolitan-district-council/walsall,WC100-308,31/01/2019,Adult Social Care,ADVANCE HEALTH CARE (UK) LTD,16/01/2019,"1,307.48",73507-DOMICILIARY CARE,PHYSICAL SUPPORT,Third Party Payments,Revenue
Walsall Council,http://opendatacommunities.org/id/metropolitan-district-council/walsall,WC100-309,31/01/2019,Adult Social Care,ADVANCE HEALTH CARE (UK) LTD,16/01/2019,"1,317.36",73507-DOMICILIARY CARE,PHYSICAL SUPPORT,Third Party Payments,Revenue
Walsall Council,http://opendatacommunities.org/id/metropolitan-district-council/walsall,WC100-310,31/01/2019,Adult Social Care,ADVANCE HEALTH CARE (UK) LTD,16/01/2019,"1,321.35",73507-DOMICILIARY CARE,PHYSICAL SUPPORT,Third Party Payments,Revenue
Walsall Council,http://opendatacommunities.org/id/metropolitan-district-council/walsall,WC100-311,31/01/2019,Adult Social Care,ADVANCE HEALTH CARE (UK) LTD,16/01/2019,"1,433.87",73507-DOMICILIARY CARE,PHYSICAL SUPPORT,Third Party Payments,Revenue
Walsall Council,http://opendatacommunities.org/id/metropolitan-district-council/walsall,WC100-312,31/01/2019,Adult Social Care,ADVANCE HEALTH CARE (UK) LTD,16/01/2019,"1,529.15",73507-DOMICILIARY CARE,PHYSICAL SUPPORT,Third Party Payments,Revenue
Walsall Council,http://opendatacommunities.org/id/metropolitan-district-council/walsall,WC100-313,31/01/2019,Adult Social Care,ADVANCE HEALTH CARE (UK) LTD,16/01/2019,"1,549.51",73507-DOMICILIARY CARE,PHYSICAL SUPPORT,Third Party Payments,Revenue
Walsall Council,http://opendatacommunities.org/id/metropolitan-district-council/walsall,WC100-314,31/01/2019,Adult Social Care,ADVANCE HEALTH CARE (UK) LTD,16/01/2019,"1,560.85",73507-DOMICILIARY CARE,PHYSICAL SUPPORT,Third Party Payments,Revenue
Walsall Council,http://opendatacommunities.org/id/metropolitan-district-council/walsall,WC100-315,31/01/2019,Adult Social Care,ADVANCE HEALTH CARE (UK) LTD,16/01/2019,"1,570.08",73507-DOMICILIARY CARE,PHYSICAL SUPPORT,Third Party Payments,Revenue
Walsall Council,http://opendatacommunities.org/id/metropolitan-district-council/walsall,WC100-316,31/01/2019,Adult Social Care,ADVANCE HEALTH CARE (UK) LTD,16/01/2019,"1,574.72",73507-DOMICILIARY CARE,PHYSICAL SUPPORT,Third Party Payments,Revenue
Walsall Council,http://opendatacommunities.org/id/metropolitan-district-council/walsall,WC100-317,31/01/2019,Adult Social Care,ADVANCE HEALTH CARE (UK) LTD,16/01/2019,"1,582.18",73507-DOMICILIARY CARE,PHYSICAL SUPPORT,Third Party Payments,Revenue
Walsall Council,http://opendatacommunities.org/id/metropolitan-district-council/walsall,WC100-318,31/01/2019,Adult Social Care,ADVANCE HEALTH CARE (UK) LTD,16/01/2019,"1,588.80",73507-DOMICILIARY CARE,PHYSICAL SUPPORT,Third Party Payments,Revenue
Walsall Council,http://opendatacommunities.org/id/metropolitan-district-council/walsall,WC100-319,31/01/2019,Adult Social Care,ADVANCE HEALTH CARE (UK) LTD,16/01/2019,"1,595.86",73507-DOMICILIARY CARE,PHYSICAL SUPPORT,Third Party Payments,Revenue
Walsall Council,http://opendatacommunities.org/id/metropolitan-district-council/walsall,WC100-320,31/01/2019,Adult Social Care,ADVANCE HEALTH CARE (UK) LTD,16/01/2019,"1,641.44",73507-DOMICILIARY CARE,PHYSICAL SUPPORT,Third Party Payments,Revenue
Walsall Council,http://opendatacommunities.org/id/metropolitan-district-council/walsall,WC100-321,31/01/2019,Adult Social Care,ADVANCE HEALTH CARE (UK) LTD,16/01/2019,"1,746.59",73507-DOMICILIARY CARE,SOCIAL SUPPORT,Third Party Payments,Revenue
Walsall Council,http://opendatacommunities.org/id/metropolitan-district-council/walsall,WC100-322,31/01/2019,Adult Social Care,ADVANCE HEALTH CARE (UK) LTD,16/01/2019,"1,753.89",73507-DOMICILIARY CARE,PHYSICAL SUPPORT,Third Party Payments,Revenue
Walsall Council,http://opendatacommunities.org/id/metropolitan-district-council/walsall,WC100-323,31/01/2019,Adult Social Care,ADVANCE HEALTH CARE (UK) LTD,16/01/2019,"1,768.00",73507-DOMICILIARY CARE,PHYSICAL SUPPORT,Third Party Payments,Revenue
Walsall Council,http://opendatacommunities.org/id/metropolitan-district-council/walsall,WC100-324,31/01/2019,Adult Social Care,ADVANCE HEALTH CARE (UK) LTD,16/01/2019,"1,774.80",73507-DOMICILIARY CARE,PHYSICAL SUPPORT,Third Party Payments,Revenue
Walsall Council,http://opendatacommunities.org/id/metropolitan-district-council/walsall,WC100-325,31/01/2019,Adult Social Care,ADVANCE HEALTH CARE (UK) LTD,16/01/2019,"1,781.81",73507-DOMICILIARY CARE,PHYSICAL SUPPORT,Third Party Payments,Revenue
Walsall Council,http://opendatacommunities.org/id/metropolitan-district-council/walsall,WC100-326,31/01/2019,Adult Social Care,ADVANCE HEALTH CARE (UK) LTD,16/01/2019,"1,827.29",73507-DOMICILIARY CARE,PHYSICAL SUPPORT,Third Party Payments,Revenue
Walsall Council,http://opendatacommunities.org/id/metropolitan-district-council/walsall,WC100-327,31/01/2019,Adult Social Care,ADVANCE HEALTH CARE (UK) LTD,16/01/2019,"1,890.64",73507-DOMICILIARY CARE,PHYSICAL SUPPORT,Third Party Payments,Revenue
Walsall Council,http://opendatacommunities.org/id/metropolitan-district-council/walsall,WC100-328,31/01/2019,Adult Social Care,ADVANCE HEALTH CARE (UK) LTD,16/01/2019,"1,908.28",73507-DOMICILIARY CARE,PHYSICAL SUPPORT,Third Party Payments,Revenue
Walsall Council,http://opendatacommunities.org/id/metropolitan-district-council/walsall,WC100-329,31/01/2019,Adult Social Care,ADVANCE HEALTH CARE (UK) LTD,16/01/2019,"2,007.26",73507-DOMICILIARY CARE,PHYSICAL SUPPORT,Third Party Payments,Revenue
Walsall Council,http://opendatacommunities.org/id/metropolitan-district-council/walsall,WC100-330,31/01/2019,Adult Social Care,ADVANCE HEALTH CARE (UK) LTD,16/01/2019,"2,052.01",73507-DOMICILIARY CARE,PHYSICAL SUPPORT,Third Party Payments,Revenue
Walsall Council,http://opendatacommunities.org/id/metropolitan-district-council/walsall,WC100-331,31/01/2019,Adult Social Care,ADVANCE HEALTH CARE (UK) LTD,16/01/2019,"2,079.74",73507-DOMICILIARY CARE,PHYSICAL SUPPORT,Third Party Payments,Revenue
Walsall Council,http://opendatacommunities.org/id/metropolitan-district-council/walsall,WC100-332,31/01/2019,Adult Social Care,ADVANCE HEALTH CARE (UK) LTD,16/01/2019,"2,098.33",73507-DOMICILIARY CARE,PHYSICAL SUPPORT,Third Party Payments,Revenue
Walsall Council,http://opendatacommunities.org/id/metropolitan-district-council/walsall,WC100-333,31/01/2019,Adult Social Care,ADVANCE HEALTH CARE (UK) LTD,16/01/2019,"2,314.99",73507-DOMICILIARY CARE,PHYSICAL SUPPORT,Third Party Payments,Revenue
Walsall Council,http://opendatacommunities.org/id/metropolitan-district-council/walsall,WC100-334,31/01/2019,Adult Social Care,ADVANCE HEALTH CARE (UK) LTD,16/01/2019,"2,333.30",73507-DOMICILIARY CARE,PHYSICAL SUPPORT,Third Party Payments,Revenue
Walsall Council,http://opendatacommunities.org/id/metropolitan-district-council/walsall,WC100-335,31/01/2019,Adult Social Care,ADVANCE HEALTH CARE (UK) LTD,16/01/2019,"2,874.25",73507-DOMICILIARY CARE,SOCIAL SUPPORT,Third Party Payments,Revenue
Walsall Council,http://opendatacommunities.org/id/metropolitan-district-council/walsall,WC100-336,31/01/2019,Adult Social Care,ADVANCE HEALTH CARE (UK) LTD,16/01/2019,"3,057.34",73507-DOMICILIARY CARE,SOCIAL SUPPORT,Third Party Payments,Revenue
Walsall Council,http://opendatacommunities.org/id/metropolitan-district-council/walsall,WC100-337,31/01/2019,Adult Social Care,ADVANCE HEALTH CARE (UK) LTD,16/01/2019,"3,383.48",73507-DOMICILIARY CARE,PHYSICAL SUPPORT,Third Party Payments,Revenue
Walsall Council,http://opendatacommunities.org/id/metropolitan-district-council/walsall,WC100-338,31/01/2019,Adult Social Care,ADVANCE HEALTH CARE (UK) LTD,16/01/2019,"4,661.09",73507-DOMICILIARY CARE,PHYSICAL SUPPORT,Third Party Payments,Revenue
Walsall Council,http://opendatacommunities.org/id/metropolitan-district-council/walsall,WC100-339,31/01/2019,Resources and Transformation,ADVANCED CONTRACTS (MIDLANDS) LTD,11/01/2019,220.00,"40000-REPAIRS,ALTERATIONS & MAINTENANCE-PREM",CENTRALISED MAINTENANCE,Premises,Revenue
Walsall Council,http://opendatacommunities.org/id/metropolitan-district-council/walsall,WC100-340,31/01/2019,Childrens,ADVENTURELAND DAY NURSERY,25/01/2019,640.00,77200-TRANSFER PAYMENTS-OTHER SCHOOLCHILDREN/STUDENT RELATED ITEMS,EARLY YEARS - SOCIAL INCLUSION FUND - 2 YR OLDS,Transfer Payments,Revenue
Walsall Council,http://opendatacommunities.org/id/metropolitan-district-council/walsall,WC100-341,31/01/2019,Childrens,ADVENTURELAND DAY NURSERY,04/01/2019,"3,673.42",66502-TOP UP FUNDING -GRANTS TO SCHOOLS,INDEPENDENT PROVIDERS - SPECIAL & AP,Third Party Payments,Revenue
Walsall Council,http://opendatacommunities.org/id/metropolitan-district-council/walsall,WC100-342,31/01/2019,Childrens,ADVENTURELAND DAY NURSERY,03/01/2019,"12,441.00",66505-OTHER-GRANTS TO OTHER ORGS,EARLY YEARS - 3 YR OLDS,Third Party Payments,Revenue
Walsall Council,http://opendatacommunities.org/id/metropolitan-district-council/walsall,WC100-343,31/01/2019,Childrens,ADVENTURELAND DAY NURSERY,03/01/2019,"13,141.92",66505-OTHER-GRANTS TO OTHER ORGS,EARLY YEARS - 2 YR OLDS,Third Party Payments,Revenue
Walsall Council,http://opendatacommunities.org/id/metropolitan-district-council/walsall,WC100-344,31/01/2019,Childrens,ADVENTURELAND DAY NURSERY,03/01/2019,"16,651.80",66505-OTHER-GRANTS TO OTHER ORGS,EARLY YEARS - 3 YR OLDS,Third Party Payments,Revenue
Walsall Council,http://opendatacommunities.org/id/metropolitan-district-council/walsall,WC100-345,31/01/2019,Adult Social Care,ADVOCACY MATTERS LIMITED,08/01/2019,"14,482.82",70000-SOCIAL SERVICES-FEES TO VOLUNTARY BODIES,OLDER PEOPLE SLA,Third Party Payments,Revenue
Walsall Council,http://opendatacommunities.org/id/metropolitan-district-council/walsall,WC100-346,31/01/2019,Economy & Environment,AEBI SCHMIDT UK LIMITED,22/01/2019,288.32,52001-HIRE OF VEHICLES,FLEET,Transport,Revenue
Walsall Council,http://opendatacommunities.org/id/metropolitan-district-council/walsall,WC100-347,31/01/2019,Childrens,AFTER ADOPTION,24/01/2019,"31,000.00",63000-PROFESSIONAL FEES AND SERVICES,ADOPTION TEAM,Supplies & Services,Revenue
Walsall Council,http://opendatacommunities.org/id/metropolitan-district-council/walsall,WC100-348,31/01/2019,Adult Social Care,AGINCARE UK LTD,17/01/2019,"1,573.60",73507-DOMICILIARY CARE,PHYSICAL SUPPORT,Third Party Payments,Revenue
Walsall Council,http://opendatacommunities.org/id/metropolitan-district-council/walsall,WC100-349,31/01/2019,Adult Social Care,AGINCARE UK LTD,30/01/2019,"1,573.60",73507-DOMICILIARY CARE,PHYSICAL SUPPORT,Third Party Payments,Revenue
Walsall Council,http://opendatacommunities.org/id/metropolitan-district-council/walsall,WC100-350,31/01/2019,Adult Social Care,AGINCARE UK LTD,30/01/2019,"1,573.60",73507-DOMICILIARY CARE,PHYSICAL SUPPORT,Third Party Payments,Revenue
Walsall Council,http://opendatacommunities.org/id/metropolitan-district-council/walsall,WC100-351,31/01/2019,Adult Social Care,REDACTED,07/01/2019,"2,092.80",73506-DIRECT PAYMENT,LEARNING DISABILITY SUPPORT,Third Party Payments,Revenue
Walsall Council,http://opendatacommunities.org/id/metropolitan-district-council/walsall,WC100-352,31/01/2019,Adult Social Care,REDACTED,07/01/2019,"1,277.00",73506-DIRECT PAYMENT,PHYSICAL SUPPORT,Third Party Payments,Revenue
Walsall Council,http://opendatacommunities.org/id/metropolitan-district-council/walsall,WC100-353,31/01/2019,Adult Social Care,REDACTED,07/01/2019,786.80,73506-DIRECT PAYMENT,PHYSICAL SUPPORT,Third Party Payments,Revenue
Walsall Council,http://opendatacommunities.org/id/metropolitan-district-council/walsall,WC100-354,31/01/2019,Economy & Environment,REDACTED,10/01/2019,"2,000.00",62527-VISUAL ARTS,NAG - TEMPORARY EXHIBITIONS,Supplies & Services,Revenue
Walsall Council,http://opendatacommunities.org/id/metropolitan-district-council/walsall,WC100-355,31/01/2019,Economy & Environment,ALBATROSS CONSULTANCY LIMITED,24/01/2019,800.00,73014-LEGAL FEES-PRIV CONTRACTOR FEES,CEMETERIES CENTRAL ADMINISTRATION,Third Party Payments,Revenue
Walsall Council,http://opendatacommunities.org/id/metropolitan-district-council/walsall,WC100-356,31/01/2019,Childrens,ALBRIGHTON CARE LTD,25/01/2019,"9,980.00",74036-EXTERNAL RESIDENTIAL CARE-OTH AGENCY PROVISION,INDEPENDENT RESIDENTIAL HOMES,Third Party Payments,Revenue
Walsall Council,http://opendatacommunities.org/id/metropolitan-district-council/walsall,WC100-357,31/01/2019,Economy & Environment,ALDERBROOK HEALTHCARE LTD,08/01/2019,"3,028.70",63000-PROFESSIONAL FEES AND SERVICES,CORONERS SERVICE,Supplies & Services,Revenue
Walsall Council,http://opendatacommunities.org/id/metropolitan-district-council/walsall,WC100-358,31/01/2019,Adult Social Care,ALDERGROVE MANOR LTD,07/01/2019,"1,876.52",73501-RESIDENTIAL EMI,MENTAL HEALTH SUPPORT,Third Party Payments,Revenue
Walsall Council,http://opendatacommunities.org/id/metropolitan-district-council/walsall,WC100-359,31/01/2019,Adult Social Care,ALDERGROVE MANOR LTD,07/01/2019,"2,039.68",73502-NURSING,PHYSICAL SUPPORT,Third Party Payments,Revenue
Walsall Council,http://opendatacommunities.org/id/metropolitan-district-council/walsall,WC100-360,31/01/2019,Childrens,ALDRIDGE & BARONS LIMITED,03/01/2019,"2,205.00",52000-WITH DRIVER-HIRE OF VEHICLES,HOME TO SCHOOL TRANSPORT,Transport,Revenue
Walsall Council,http://opendatacommunities.org/id/metropolitan-district-council/walsall,WC100-361,31/01/2019,Childrens,ALDRIDGE & BARONS LIMITED,03/01/2019,"9,100.20",52000-WITH DRIVER-HIRE OF VEHICLES,HOME TO SCHOOL TRANSPORT,Transport,Revenue
Walsall Council,http://opendatacommunities.org/id/metropolitan-district-council/walsall,WC100-362,31/01/2019,Childrens,ALDRIDGE & BARONS LIMITED,03/01/2019,"12,690.00",52000-WITH DRIVER-HIRE OF VEHICLES,HOME TO SCHOOL TRANSPORT,Transport,Revenue
Walsall Council,http://opendatacommunities.org/id/metropolitan-district-council/walsall,WC100-363,31/01/2019,Childrens,ALDRIDGE PUMPKIN PATCH,18/01/2019,691.68,66505-OTHER-GRANTS TO OTHER ORGS,EARLY YEARS - 2 YR OLDS,Third Party Payments,Revenue
Walsall Council,http://opendatacommunities.org/id/metropolitan-district-council/walsall,WC100-364,31/01/2019,Adult Social Care,REDACTED,07/01/2019,"1,348.80",73506-DIRECT PAYMENT,PHYSICAL SUPPORT,Third Party Payments,Revenue
Walsall Council,http://opendatacommunities.org/id/metropolitan-district-council/walsall,WC100-365,31/01/2019,Adult Social Care,ALEXANDRA HOUSE CARE SERVICES LTD T/A STONEBRIDGE NURSING HOME,07/01/2019,"7,117.44",73502-NURSING,LEARNING DISABILITY SUPPORT,Third Party Payments,Revenue
Walsall Council,http://opendatacommunities.org/id/metropolitan-district-council/walsall,WC100-366,31/01/2019,Adult Social Care,REDACTED,07/01/2019,"1,771.28",73506-DIRECT PAYMENT,PHYSICAL SUPPORT,Third Party Payments,Revenue
Walsall Council,http://opendatacommunities.org/id/metropolitan-district-council/walsall,WC100-367,31/01/2019,Childrens,REDACTED,07/01/2019,288.00,73506-DIRECT PAYMENT,FAMILY SUPPORT - DIRECT PAYMENTS,Third Party Payments,Revenue
Walsall Council,http://opendatacommunities.org/id/metropolitan-district-council/walsall,WC100-368,31/01/2019,Adult Social Care,REDACTED,07/01/2019,"1,003.60",73506-DIRECT PAYMENT,PHYSICAL SUPPORT,Third Party Payments,Revenue
Walsall Council,http://opendatacommunities.org/id/metropolitan-district-council/walsall,WC100-369,31/01/2019,Resources and Transformation,ALIGNED ASSETS LTD,11/01/2019,"3,801.51",63820-RECHARGE FOR MAINTENANCE/APPLICATION COSTS-COMPUTER,APPLICATIONS,Supplies & Services,Revenue
Walsall Council,http://opendatacommunities.org/id/metropolitan-district-council/walsall,WC100-370,31/01/2019,Adult Social Care,REDACTED,01/01/2019,"1,301.64",73372-DOMICILIARY CARE,LD PACKAGE/PLACEMENT COSTS,Third Party Payments,Revenue
Walsall Council,http://opendatacommunities.org/id/metropolitan-district-council/walsall,WC100-371,31/01/2019,Adult Social Care,REDACTED,07/01/2019,"1,574.72",73506-DIRECT PAYMENT,SOCIAL SUPPORT,Third Party Payments,Revenue
Walsall Council,http://opendatacommunities.org/id/metropolitan-district-council/walsall,WC100-372,31/01/2019,Economy & Environment,ALLAN HADDOW LTD,21/01/2019,"1,450.00",30030-EXTERNAL TRAINING,FLEET,Employees,Revenue
Walsall Council,http://opendatacommunities.org/id/metropolitan-district-council/walsall,WC100-373,31/01/2019,Adult Social Care,ALLSORTS OFFICE SUPPLIES LTD,21/01/2019,670.00,60000-FURNITURE & EQUIPMENT,SHARED LIVES,Supplies & Services,Revenue
Walsall Council,http://opendatacommunities.org/id/metropolitan-district-council/walsall,WC100-374,31/01/2019,Adult Social Care,ALMA COURT,07/01/2019,-714.29,73503-NURSING EMI,PHYSICAL SUPPORT,Third Party Payments,Revenue
Walsall Council,http://opendatacommunities.org/id/metropolitan-district-council/walsall,WC100-375,31/01/2019,Adult Social Care,ALMA COURT,29/01/2019,"3,285.71",73373-RESIDENTIAL & NURSING CARE PLACEMENTS,OP PACKAGE/PLACEMENT COSTS,Third Party Payments,Revenue
Walsall Council,http://opendatacommunities.org/id/metropolitan-district-council/walsall,WC100-376,31/01/2019,Adult Social Care,ALMA COURT,07/01/2019,"5,705.56",73502-NURSING,PHYSICAL SUPPORT,Third Party Payments,Revenue
Walsall Council,http://opendatacommunities.org/id/metropolitan-district-council/walsall,WC100-377,31/01/2019,Adult Social Care,ALMA COURT,01/01/2019,"6,113.10",73373-RESIDENTIAL & NURSING CARE PLACEMENTS,MENTAL HEALTH PACKAGE/PLACEMENT COSTS,Third Party Payments,Revenue
Walsall Council,http://opendatacommunities.org/id/metropolitan-district-council/walsall,WC100-378,31/01/2019,Adult Social Care,ALMA COURT,01/01/2019,"6,316.87",73373-RESIDENTIAL & NURSING CARE PLACEMENTS,MENTAL HEALTH PACKAGE/PLACEMENT COSTS,Third Party Payments,Revenue
Walsall Council,http://opendatacommunities.org/id/metropolitan-district-council/walsall,WC100-379,31/01/2019,Adult Social Care,ALMA COURT,01/01/2019,"6,316.87",73373-RESIDENTIAL & NURSING CARE PLACEMENTS,MENTAL HEALTH PACKAGE/PLACEMENT COSTS,Third Party Payments,Revenue
Walsall Council,http://opendatacommunities.org/id/metropolitan-district-council/walsall,WC100-380,31/01/2019,Adult Social Care,ALMA COURT,01/01/2019,"6,316.87",73373-RESIDENTIAL & NURSING CARE PLACEMENTS,MENTAL HEALTH PACKAGE/PLACEMENT COSTS,Third Party Payments,Revenue
Walsall Council,http://opendatacommunities.org/id/metropolitan-district-council/walsall,WC100-381,31/01/2019,Childrens,ALMOZENE NURSERY & CHILDRENS CENTRE,03/01/2019,"4,019.40",66505-OTHER-GRANTS TO OTHER ORGS,EARLY YEARS - 3 YR OLDS,Third Party Payments,Revenue
Walsall Council,http://opendatacommunities.org/id/metropolitan-district-council/walsall,WC100-382,31/01/2019,Childrens,ALMOZENE NURSERY & CHILDRENS CENTRE,03/01/2019,"9,187.20",66505-OTHER-GRANTS TO OTHER ORGS,EARLY YEARS - 3 YR OLDS,Third Party Payments,Revenue
Walsall Council,http://opendatacommunities.org/id/metropolitan-district-council/walsall,WC100-383,31/01/2019,Childrens,ALMOZENE NURSERY & CHILDRENS CENTRE,03/01/2019,"9,683.52",66505-OTHER-GRANTS TO OTHER ORGS,EARLY YEARS - 2 YR OLDS,Third Party Payments,Revenue
Walsall Council,http://opendatacommunities.org/id/metropolitan-district-council/walsall,WC100-384,31/01/2019,Adult Social Care,ALPHA HEALTH CARE LTD,29/01/2019,388.57,73025-PROFESSIONAL SERVICES-PRIV CONTRACTOR & OTHER AGENCIES,TRANSITIONAL CARE SUPPORT TEAM,Third Party Payments,Revenue
Walsall Council,http://opendatacommunities.org/id/metropolitan-district-council/walsall,WC100-385,31/01/2019,Adult Social Care,ALPHA HEALTH CARE LTD,29/01/2019,"1,157.14",73025-PROFESSIONAL SERVICES-PRIV CONTRACTOR & OTHER AGENCIES,TRANSITIONAL CARE SUPPORT TEAM,Third Party Payments,Revenue
Walsall Council,http://opendatacommunities.org/id/metropolitan-district-council/walsall,WC100-386,31/01/2019,Adult Social Care,ALPHA HEALTH CARE LTD,07/01/2019,"1,688.84",73500-RESIDENTIAL,MENTAL HEALTH SUPPORT,Third Party Payments,Revenue
Walsall Council,http://opendatacommunities.org/id/metropolitan-district-council/walsall,WC100-387,31/01/2019,Adult Social Care,ALPHA HEALTH CARE LTD,07/01/2019,"1,876.52",73501-RESIDENTIAL EMI,PHYSICAL SUPPORT,Third Party Payments,Revenue
Walsall Council,http://opendatacommunities.org/id/metropolitan-district-council/walsall,WC100-388,31/01/2019,Adult Social Care,ALPHA HEALTH CARE LTD,07/01/2019,"2,039.68",73502-NURSING,PHYSICAL SUPPORT,Third Party Payments,Revenue
Walsall Council,http://opendatacommunities.org/id/metropolitan-district-council/walsall,WC100-389,31/01/2019,Adult Social Care,ALPHA HEALTH CARE LTD,07/01/2019,"2,160.00",73501-RESIDENTIAL EMI,SUPPORT WITH MEMORY & COGNITION,Third Party Payments,Revenue
Walsall Council,http://opendatacommunities.org/id/metropolitan-district-council/walsall,WC100-390,31/01/2019,Adult Social Care,ALPHA HEALTH CARE LTD,07/01/2019,"2,243.64",73503-NURSING EMI,MENTAL HEALTH SUPPORT,Third Party Payments,Revenue
Walsall Council,http://opendatacommunities.org/id/metropolitan-district-council/walsall,WC100-391,31/01/2019,Adult Social Care,ALPHA HEALTH CARE LTD,07/01/2019,"2,243.64",73503-NURSING EMI,MENTAL HEALTH SUPPORT,Third Party Payments,Revenue
Walsall Council,http://opendatacommunities.org/id/metropolitan-district-council/walsall,WC100-392,31/01/2019,Adult Social Care,ALPHA HEALTH CARE LTD,07/01/2019,"2,243.64",73503-NURSING EMI,PHYSICAL SUPPORT,Third Party Payments,Revenue
Walsall Council,http://opendatacommunities.org/id/metropolitan-district-council/walsall,WC100-393,31/01/2019,Adult Social Care,ALPHA HEALTH CARE LTD,07/01/2019,"2,326.00",73502-NURSING,MENTAL HEALTH SUPPORT,Third Party Payments,Revenue
Walsall Council,http://opendatacommunities.org/id/metropolitan-district-council/walsall,WC100-394,31/01/2019,Adult Social Care,ALPHA HEALTH CARE LTD,07/01/2019,"2,379.80",73503-NURSING EMI,PHYSICAL SUPPORT,Third Party Payments,Revenue
Walsall Council,http://opendatacommunities.org/id/metropolitan-district-council/walsall,WC100-395,31/01/2019,Adult Social Care,ALPHA HEALTH CARE LTD,07/01/2019,"2,400.00",73501-RESIDENTIAL EMI,MENTAL HEALTH SUPPORT,Third Party Payments,Revenue
Walsall Council,http://opendatacommunities.org/id/metropolitan-district-council/walsall,WC100-396,31/01/2019,Adult Social Care,ALPHA HEALTH CARE LTD,07/01/2019,"2,484.88",73502-NURSING,PHYSICAL SUPPORT,Third Party Payments,Revenue
Walsall Council,http://opendatacommunities.org/id/metropolitan-district-council/walsall,WC100-397,31/01/2019,Adult Social Care,ALPHA HEALTH CARE LTD,29/01/2019,"2,622.86",73025-PROFESSIONAL SERVICES-PRIV CONTRACTOR & OTHER AGENCIES,TRANSITIONAL CARE SUPPORT TEAM,Third Party Payments,Revenue
Walsall Council,http://opendatacommunities.org/id/metropolitan-district-council/walsall,WC100-398,31/01/2019,Adult Social Care,ALPHA HEALTH CARE LTD,07/01/2019,"2,688.84",73503-NURSING EMI,PHYSICAL SUPPORT,Third Party Payments,Revenue
Walsall Council,http://opendatacommunities.org/id/metropolitan-district-council/walsall,WC100-399,31/01/2019,Adult Social Care,ALPHA HEALTH CARE LTD,07/01/2019,"2,767.36",73503-NURSING EMI,MENTAL HEALTH SUPPORT,Third Party Payments,Revenue
Walsall Council,http://opendatacommunities.org/id/metropolitan-district-council/walsall,WC100-400,31/01/2019,Adult Social Care,ALPHA HEALTH CARE LTD,07/01/2019,"2,767.36",73503-NURSING EMI,MENTAL HEALTH SUPPORT,Third Party Payments,Revenue
Walsall Council,http://opendatacommunities.org/id/metropolitan-district-council/walsall,WC100-401,31/01/2019,Adult Social Care,ALPHA HEALTH CARE LTD,07/01/2019,"2,767.36",73503-NURSING EMI,PHYSICAL SUPPORT,Third Party Payments,Revenue
Walsall Council,http://opendatacommunities.org/id/metropolitan-district-council/walsall,WC100-402,31/01/2019,Adult Social Care,ALPHA HEALTH CARE LTD,07/01/2019,"2,767.40",73503-NURSING EMI,PHYSICAL SUPPORT,Third Party Payments,Revenue
Walsall Council,http://opendatacommunities.org/id/metropolitan-district-council/walsall,WC100-403,31/01/2019,Adult Social Care,ALPHA HEALTH CARE LTD,07/01/2019,"2,779.80",73503-NURSING EMI,PHYSICAL SUPPORT,Third Party Payments,Revenue
Walsall Council,http://opendatacommunities.org/id/metropolitan-district-council/walsall,WC100-404,31/01/2019,Adult Social Care,ALPHA HEALTH CARE LTD,07/01/2019,"2,823.44",73503-NURSING EMI,PHYSICAL SUPPORT,Third Party Payments,Revenue
Walsall Council,http://opendatacommunities.org/id/metropolitan-district-council/walsall,WC100-405,31/01/2019,Adult Social Care,ALPHA HEALTH CARE LTD,07/01/2019,"2,940.00",73501-RESIDENTIAL EMI,PHYSICAL SUPPORT,Third Party Payments,Revenue
Walsall Council,http://opendatacommunities.org/id/metropolitan-district-council/walsall,WC100-406,31/01/2019,Adult Social Care,ALPHA HEALTH CARE LTD,07/01/2019,"2,940.00",73501-RESIDENTIAL EMI,SUPPORT WITH MEMORY & COGNITION,Third Party Payments,Revenue
Walsall Council,http://opendatacommunities.org/id/metropolitan-district-council/walsall,WC100-407,31/01/2019,Adult Social Care,ALPHA HEALTH CARE LTD,11/01/2019,"3,985.71",73025-PROFESSIONAL SERVICES-PRIV CONTRACTOR & OTHER AGENCIES,TRANSITIONAL CARE SUPPORT TEAM,Third Party Payments,Revenue
Walsall Council,http://opendatacommunities.org/id/metropolitan-district-council/walsall,WC100-408,31/01/2019,Adult Social Care,ALPHA HEALTH CARE LTD,07/01/2019,"5,440.28",73503-NURSING EMI,MENTAL HEALTH SUPPORT,Third Party Payments,Revenue
Walsall Council,http://opendatacommunities.org/id/metropolitan-district-council/walsall,WC100-409,31/01/2019,Adult Social Care,ALPHA HEALTH CARE LTD,07/01/2019,"13,046.12",73502-NURSING,PHYSICAL SUPPORT,Third Party Payments,Revenue
Walsall Council,http://opendatacommunities.org/id/metropolitan-district-council/walsall,WC100-410,31/01/2019,Childrens,ALUMWELLIES NURSERY,04/01/2019,"2,305.66",66502-TOP UP FUNDING -GRANTS TO SCHOOLS,INDEPENDENT PROVIDERS - SPECIAL & AP,Third Party Payments,Revenue
Walsall Council,http://opendatacommunities.org/id/metropolitan-district-council/walsall,WC100-411,31/01/2019,Childrens,AMAH NURSERIES LIMITED T/A BANANA MOON WALSALL,07/01/2019,471.60,66505-OTHER-GRANTS TO OTHER ORGS,EARLY YEARS - 2 YR OLDS,Third Party Payments,Revenue
Walsall Council,http://opendatacommunities.org/id/metropolitan-district-council/walsall,WC100-412,31/01/2019,Childrens,AMAH NURSERIES LIMITED T/A BANANA MOON WALSALL,03/01/2019,"3,458.40",66505-OTHER-GRANTS TO OTHER ORGS,EARLY YEARS - 2 YR OLDS,Third Party Payments,Revenue
Walsall Council,http://opendatacommunities.org/id/metropolitan-district-council/walsall,WC100-413,31/01/2019,Childrens,AMAH NURSERIES LIMITED T/A BANANA MOON WALSALL,03/01/2019,"5,167.80",66505-OTHER-GRANTS TO OTHER ORGS,EARLY YEARS - 3 YR OLDS,Third Party Payments,Revenue
Walsall Council,http://opendatacommunities.org/id/metropolitan-district-council/walsall,WC100-414,31/01/2019,Childrens,AMAH NURSERIES LIMITED T/A BANANA MOON WALSALL,03/01/2019,"7,464.60",66505-OTHER-GRANTS TO OTHER ORGS,EARLY YEARS - 3 YR OLDS,Third Party Payments,Revenue
Walsall Council,http://opendatacommunities.org/id/metropolitan-district-council/walsall,WC100-415,31/01/2019,Childrens,REDACTED,11/01/2019,318.08,74510-RESIDENTS ORDERS,ADOPTION ALLOWANCES,Third Party Payments,Revenue
Walsall Council,http://opendatacommunities.org/id/metropolitan-district-council/walsall,WC100-416,31/01/2019,Childrens,REDACTED,11/01/2019,318.08,74510-RESIDENTS ORDERS,ADOPTION ALLOWANCES,Third Party Payments,Revenue
Walsall Council,http://opendatacommunities.org/id/metropolitan-district-council/walsall,WC100-417,31/01/2019,Adult Social Care,REDACTED,07/01/2019,"1,128.76",73506-DIRECT PAYMENT,LEARNING DISABILITY SUPPORT,Third Party Payments,Revenue
Walsall Council,http://opendatacommunities.org/id/metropolitan-district-council/walsall,WC100-418,31/01/2019,Childrens,REDACTED,11/01/2019,808.04,74009-ADOPTION ALLOWANCE,ADOPTION ALLOWANCES,Transfer Payments,Revenue
Walsall Council,http://opendatacommunities.org/id/metropolitan-district-council/walsall,WC100-419,31/01/2019,Childrens,REDACTED,01/01/2019,192.25,74506-TRAVEL-FOSTER CARERS,INTERNAL FOSTER CARE PROVISION,Transfer Payments,Revenue
Walsall Council,http://opendatacommunities.org/id/metropolitan-district-council/walsall,WC100-420,31/01/2019,Childrens,REDACTED,25/01/2019,557.14,74501-MAINTENANCE ALLOWANCE-FOSTER CARERS,INTERNAL FOSTER CARE PROVISION,Transfer Payments,Revenue
Walsall Council,http://opendatacommunities.org/id/metropolitan-district-council/walsall,WC100-421,31/01/2019,Childrens,REDACTED,01/01/2019,600.00,74501-MAINTENANCE ALLOWANCE-FOSTER CARERS,INTERNAL FOSTER CARE PROVISION,Transfer Payments,Revenue
Walsall Council,http://opendatacommunities.org/id/metropolitan-district-council/walsall,WC100-422,31/01/2019,Childrens,REDACTED,01/01/2019,"1,000.00",74508-INTERNAL FOSTER CARERS-CARER FEES,INTERNAL FOSTER CARE PROVISION,Transfer Payments,Revenue
Walsall Council,http://opendatacommunities.org/id/metropolitan-district-council/walsall,WC100-423,31/01/2019,Childrens,REDACTED,25/01/2019,"1,000.00",74508-INTERNAL FOSTER CARERS-CARER FEES,INTERNAL FOSTER CARE PROVISION,Transfer Payments,Revenue
Walsall Council,http://opendatacommunities.org/id/metropolitan-district-council/walsall,WC100-424,31/01/2019,Childrens,AMANS TRAVEL LTD,23/01/2019,"7,684.50",52000-WITH DRIVER-HIRE OF VEHICLES,HOME TO SCHOOL TRANSPORT,Transport,Revenue
Walsall Council,http://opendatacommunities.org/id/metropolitan-district-council/walsall,WC100-425,31/01/2019,Adult Social Care,REDACTED,07/01/2019,897.60,73506-DIRECT PAYMENT,LEARNING DISABILITY SUPPORT,Third Party Payments,Revenue
Walsall Council,http://opendatacommunities.org/id/metropolitan-district-council/walsall,WC100-426,31/01/2019,Economy & Environment,AMEY LG LIMITED,21/01/2019,227.11,01008-SITE WORKS DLO,CFR 1281 PINFOLD STREET (ST LAWRENCE WAY TO DANGERFIELD LANE),Capital,Capital
Walsall Council,http://opendatacommunities.org/id/metropolitan-district-council/walsall,WC100-427,31/01/2019,Resources and Transformation,AMEY LG LIMITED,07/01/2019,555.88,60008-MAINTENANCE-FURNITURE & EQUIPMENT,CCTV,Supplies & Services,Revenue
Walsall Council,http://opendatacommunities.org/id/metropolitan-district-council/walsall,WC100-428,31/01/2019,Resources and Transformation,AMEY LG LIMITED,04/01/2019,799.25,60008-MAINTENANCE-FURNITURE & EQUIPMENT,CCTV,Supplies & Services,Revenue
Walsall Council,http://opendatacommunities.org/id/metropolitan-district-council/walsall,WC100-429,31/01/2019,Resources and Transformation,AMEY LG LIMITED,07/01/2019,802.51,60008-MAINTENANCE-FURNITURE & EQUIPMENT,CCTV,Supplies & Services,Revenue
Walsall Council,http://opendatacommunities.org/id/metropolitan-district-council/walsall,WC100-430,31/01/2019,Economy & Environment,AMEY LG LIMITED,10/01/2019,"1,161.00",73025-PROFESSIONAL SERVICES-PRIV CONTRACTOR & OTHER AGENCIES,VASS IMPLEMENTATION,Third Party Payments,Revenue
Walsall Council,http://opendatacommunities.org/id/metropolitan-district-council/walsall,WC100-431,31/01/2019,Resources and Transformation,AMEY LG LIMITED,10/01/2019,"1,222.23",60008-MAINTENANCE-FURNITURE & EQUIPMENT,CCTV,Supplies & Services,Revenue
Walsall Council,http://opendatacommunities.org/id/metropolitan-district-council/walsall,WC100-432,31/01/2019,Economy & Environment,AMEY LG LIMITED,01/01/2019,"1,653.56",01006-SITE WORKS MAIN CONTRACTORS,CFR 1281 HIGHWAY EFFICIENCY PROGRAMME,Capital,Capital
Walsall Council,http://opendatacommunities.org/id/metropolitan-district-council/walsall,WC100-433,31/01/2019,Economy & Environment,AMEY LG LIMITED,16/01/2019,"10,165.38",73025-PROFESSIONAL SERVICES-PRIV CONTRACTOR & OTHER AGENCIES,TRAFFIC MANAGEMENT,Third Party Payments,Revenue
Walsall Council,http://opendatacommunities.org/id/metropolitan-district-council/walsall,WC100-434,31/01/2019,Economy & Environment,AMEY LG LIMITED,03/01/2019,"15,187.89",73025-PROFESSIONAL SERVICES-PRIV CONTRACTOR & OTHER AGENCIES,TRAFFIC MANAGEMENT,Third Party Payments,Revenue
Walsall Council,http://opendatacommunities.org/id/metropolitan-district-council/walsall,WC100-435,31/01/2019,Childrens,AMG NURSING CARE SERVICES,24/01/2019,"2,259.22",63000-PROFESSIONAL FEES AND SERVICES,DIRECTLY COMMISSIONED NURSING SERVICES,Supplies & Services,Revenue
Walsall Council,http://opendatacommunities.org/id/metropolitan-district-council/walsall,WC100-436,31/01/2019,Adult Social Care,AMG NURSING CARE SERVICES,30/01/2019,"3,653.00",73508-COMMUNITY SUPPORTED LIVING/SUPPORTED ACCOMMODATION,PHYSICAL SUPPORT,Third Party Payments,Revenue
Walsall Council,http://opendatacommunities.org/id/metropolitan-district-council/walsall,WC100-437,31/01/2019,Adult Social Care,AMG NURSING CARE SERVICES,30/01/2019,"3,659.50",73508-COMMUNITY SUPPORTED LIVING/SUPPORTED ACCOMMODATION,PHYSICAL SUPPORT,Third Party Payments,Revenue
Walsall Council,http://opendatacommunities.org/id/metropolitan-district-council/walsall,WC100-438,31/01/2019,Adult Social Care,AMG NURSING CARE SERVICES,17/01/2019,"10,711.67",73508-COMMUNITY SUPPORTED LIVING/SUPPORTED ACCOMMODATION,PHYSICAL SUPPORT,Third Party Payments,Revenue
Walsall Council,http://opendatacommunities.org/id/metropolitan-district-council/walsall,WC100-439,31/01/2019,Adult Social Care,REDACTED,07/01/2019,"1,133.44",73506-DIRECT PAYMENT,PHYSICAL SUPPORT,Third Party Payments,Revenue
Walsall Council,http://opendatacommunities.org/id/metropolitan-district-council/walsall,WC100-440,31/01/2019,Childrens,REDACTED,11/01/2019,340.00,74508-INTERNAL FOSTER CARERS-CARER FEES,FAMILY & FRIENDS FOSTER CARE PROVISION,Transfer Payments,Revenue
Walsall Council,http://opendatacommunities.org/id/metropolitan-district-council/walsall,WC100-441,31/01/2019,Childrens,REDACTED,11/01/2019,600.00,74501-MAINTENANCE ALLOWANCE-FOSTER CARERS,FAMILY & FRIENDS FOSTER CARE PROVISION,Transfer Payments,Revenue
Walsall Council,http://opendatacommunities.org/id/metropolitan-district-council/walsall,WC100-442,31/01/2019,Childrens,REDACTED,11/01/2019,425.08,74510-RESIDENTS ORDERS,ADOPTION ALLOWANCES,Third Party Payments,Revenue
Walsall Council,http://opendatacommunities.org/id/metropolitan-district-council/walsall,WC100-443,31/01/2019,Adult Social Care,ANCHOR,17/01/2019,784.47,73501-RESIDENTIAL EMI,PHYSICAL SUPPORT,Third Party Payments,Revenue
Walsall Council,http://opendatacommunities.org/id/metropolitan-district-council/walsall,WC100-444,31/01/2019,Adult Social Care,ANCHOR,07/01/2019,804.22,73501-RESIDENTIAL EMI,SUPPORT WITH MEMORY & COGNITION,Third Party Payments,Revenue
Walsall Council,http://opendatacommunities.org/id/metropolitan-district-council/walsall,WC100-445,31/01/2019,Adult Social Care,ANCHOR,07/01/2019,"1,688.84",73500-RESIDENTIAL,SUPPORT WITH MEMORY & COGNITION,Third Party Payments,Revenue
Walsall Council,http://opendatacommunities.org/id/metropolitan-district-council/walsall,WC100-446,31/01/2019,Adult Social Care,ANCHOR,07/01/2019,"1,688.84",73500-RESIDENTIAL,PHYSICAL SUPPORT,Third Party Payments,Revenue
Walsall Council,http://opendatacommunities.org/id/metropolitan-district-council/walsall,WC100-447,31/01/2019,Adult Social Care,ANCHOR,07/01/2019,"1,688.84",73500-RESIDENTIAL,PHYSICAL SUPPORT,Third Party Payments,Revenue
Walsall Council,http://opendatacommunities.org/id/metropolitan-district-council/walsall,WC100-448,31/01/2019,Adult Social Care,ANCHOR,07/01/2019,"1,840.00",73501-RESIDENTIAL EMI,PHYSICAL SUPPORT,Third Party Payments,Revenue
Walsall Council,http://opendatacommunities.org/id/metropolitan-district-council/walsall,WC100-449,31/01/2019,Adult Social Care,ANCHOR,07/01/2019,"1,840.00",73500-RESIDENTIAL,PHYSICAL SUPPORT,Third Party Payments,Revenue
Walsall Council,http://opendatacommunities.org/id/metropolitan-district-council/walsall,WC100-450,31/01/2019,Adult Social Care,ANCHOR,07/01/2019,"1,848.84",73500-RESIDENTIAL,PHYSICAL SUPPORT,Third Party Payments,Revenue
Walsall Council,http://opendatacommunities.org/id/metropolitan-district-council/walsall,WC100-451,31/01/2019,Adult Social Care,ANCHOR,07/01/2019,"1,876.52",73501-RESIDENTIAL EMI,PHYSICAL SUPPORT,Third Party Payments,Revenue
Walsall Council,http://opendatacommunities.org/id/metropolitan-district-council/walsall,WC100-452,31/01/2019,Adult Social Care,ANCHOR,07/01/2019,"1,876.52",73501-RESIDENTIAL EMI,SUPPORT WITH MEMORY & COGNITION,Third Party Payments,Revenue
Walsall Council,http://opendatacommunities.org/id/metropolitan-district-council/walsall,WC100-453,31/01/2019,Adult Social Care,ANCHOR,07/01/2019,"1,876.52",73501-RESIDENTIAL EMI,MENTAL HEALTH SUPPORT,Third Party Payments,Revenue
Walsall Council,http://opendatacommunities.org/id/metropolitan-district-council/walsall,WC100-454,31/01/2019,Adult Social Care,ANCHOR,07/01/2019,"1,876.52",73501-RESIDENTIAL EMI,SUPPORT WITH MEMORY & COGNITION,Third Party Payments,Revenue
Walsall Council,http://opendatacommunities.org/id/metropolitan-district-council/walsall,WC100-455,31/01/2019,Adult Social Care,ANCHOR,07/01/2019,"1,876.52",73501-RESIDENTIAL EMI,MENTAL HEALTH SUPPORT,Third Party Payments,Revenue
Walsall Council,http://opendatacommunities.org/id/metropolitan-district-council/walsall,WC100-456,31/01/2019,Adult Social Care,ANCHOR,07/01/2019,"1,876.52",73501-RESIDENTIAL EMI,MENTAL HEALTH SUPPORT,Third Party Payments,Revenue
Walsall Council,http://opendatacommunities.org/id/metropolitan-district-council/walsall,WC100-457,31/01/2019,Adult Social Care,ANCHOR,07/01/2019,"1,876.52",73501-RESIDENTIAL EMI,SUPPORT WITH MEMORY & COGNITION,Third Party Payments,Revenue
Walsall Council,http://opendatacommunities.org/id/metropolitan-district-council/walsall,WC100-458,31/01/2019,Adult Social Care,ANCHOR,07/01/2019,"1,876.52",73501-RESIDENTIAL EMI,MENTAL HEALTH SUPPORT,Third Party Payments,Revenue
Walsall Council,http://opendatacommunities.org/id/metropolitan-district-council/walsall,WC100-459,31/01/2019,Adult Social Care,ANCHOR,07/01/2019,"1,876.52",73501-RESIDENTIAL EMI,PHYSICAL SUPPORT,Third Party Payments,Revenue
Walsall Council,http://opendatacommunities.org/id/metropolitan-district-council/walsall,WC100-460,31/01/2019,Adult Social Care,ANCHOR,07/01/2019,"1,876.52",73501-RESIDENTIAL EMI,PHYSICAL SUPPORT,Third Party Payments,Revenue
Walsall Council,http://opendatacommunities.org/id/metropolitan-district-council/walsall,WC100-461,31/01/2019,Adult Social Care,ANCHOR,07/01/2019,"1,876.52",73501-RESIDENTIAL EMI,PHYSICAL SUPPORT,Third Party Payments,Revenue
Walsall Council,http://opendatacommunities.org/id/metropolitan-district-council/walsall,WC100-462,31/01/2019,Adult Social Care,ANCHOR,07/01/2019,"1,876.52",73501-RESIDENTIAL EMI,PHYSICAL SUPPORT,Third Party Payments,Revenue
Walsall Council,http://opendatacommunities.org/id/metropolitan-district-council/walsall,WC100-463,31/01/2019,Adult Social Care,ANCHOR,07/01/2019,"1,876.52",73501-RESIDENTIAL EMI,PHYSICAL SUPPORT,Third Party Payments,Revenue
Walsall Council,http://opendatacommunities.org/id/metropolitan-district-council/walsall,WC100-464,31/01/2019,Adult Social Care,ANCHOR,07/01/2019,"1,968.84",73500-RESIDENTIAL,SENSORY SUPPORT,Third Party Payments,Revenue
Walsall Council,http://opendatacommunities.org/id/metropolitan-district-council/walsall,WC100-465,31/01/2019,Adult Social Care,ANCHOR,07/01/2019,"2,028.84",73500-RESIDENTIAL,PHYSICAL SUPPORT,Third Party Payments,Revenue
Walsall Council,http://opendatacommunities.org/id/metropolitan-district-council/walsall,WC100-466,31/01/2019,Adult Social Care,ANCHOR,07/01/2019,"2,048.84",73501-RESIDENTIAL EMI,SENSORY SUPPORT,Third Party Payments,Revenue
Walsall Council,http://opendatacommunities.org/id/metropolitan-district-council/walsall,WC100-467,31/01/2019,Adult Social Care,ANCHOR,07/01/2019,"2,076.52",73501-RESIDENTIAL EMI,SUPPORT WITH MEMORY & COGNITION,Third Party Payments,Revenue
Walsall Council,http://opendatacommunities.org/id/metropolitan-district-council/walsall,WC100-468,31/01/2019,Adult Social Care,ANCHOR,07/01/2019,"2,080.00",73501-RESIDENTIAL EMI,MENTAL HEALTH SUPPORT,Third Party Payments,Revenue
Walsall Council,http://opendatacommunities.org/id/metropolitan-district-council/walsall,WC100-469,31/01/2019,Adult Social Care,ANCHOR,07/01/2019,"2,180.00",73500-RESIDENTIAL,PHYSICAL SUPPORT,Third Party Payments,Revenue
Walsall Council,http://opendatacommunities.org/id/metropolitan-district-council/walsall,WC100-470,31/01/2019,Adult Social Care,ANCHOR,07/01/2019,"2,200.00",73500-RESIDENTIAL,PHYSICAL SUPPORT,Third Party Payments,Revenue
Walsall Council,http://opendatacommunities.org/id/metropolitan-district-council/walsall,WC100-471,31/01/2019,Adult Social Care,ANCHOR,07/01/2019,"2,216.52",73501-RESIDENTIAL EMI,SUPPORT WITH MEMORY & COGNITION,Third Party Payments,Revenue
Walsall Council,http://opendatacommunities.org/id/metropolitan-district-council/walsall,WC100-472,31/01/2019,Adult Social Care,ANCHOR,07/01/2019,"2,216.52",73501-RESIDENTIAL EMI,PHYSICAL SUPPORT,Third Party Payments,Revenue
Walsall Council,http://opendatacommunities.org/id/metropolitan-district-council/walsall,WC100-473,31/01/2019,Adult Social Care,ANCHOR,07/01/2019,"2,236.52",73501-RESIDENTIAL EMI,PHYSICAL SUPPORT,Third Party Payments,Revenue
Walsall Council,http://opendatacommunities.org/id/metropolitan-district-council/walsall,WC100-474,31/01/2019,Adult Social Care,ANCHOR,07/01/2019,"3,860.21",73500-RESIDENTIAL,SUPPORT WITH MEMORY & COGNITION,Third Party Payments,Revenue
Walsall Council,http://opendatacommunities.org/id/metropolitan-district-council/walsall,WC100-475,31/01/2019,Adult Social Care,ANCHOR,07/01/2019,"4,735.13",73500-RESIDENTIAL,PHYSICAL SUPPORT,Third Party Payments,Revenue
Walsall Council,http://opendatacommunities.org/id/metropolitan-district-council/walsall,WC100-476,31/01/2019,Adult Social Care,ANCHOR,07/01/2019,"6,433.78",73501-RESIDENTIAL EMI,PHYSICAL SUPPORT,Third Party Payments,Revenue
Walsall Council,http://opendatacommunities.org/id/metropolitan-district-council/walsall,WC100-477,31/01/2019,Adult Social Care,ANCHOR,07/01/2019,"12,376.07",73501-RESIDENTIAL EMI,PHYSICAL SUPPORT,Third Party Payments,Revenue
Walsall Council,http://opendatacommunities.org/id/metropolitan-district-council/walsall,WC100-478,31/01/2019,Adult Social Care,ANCHOR CAREHOMES LTD - HARDEN HALL,28/01/2019,268.07,73025-PROFESSIONAL SERVICES-PRIV CONTRACTOR & OTHER AGENCIES,TRANSITIONAL CARE SUPPORT TEAM,Third Party Payments,Revenue
Walsall Council,http://opendatacommunities.org/id/metropolitan-district-council/walsall,WC100-479,31/01/2019,Adult Social Care,ANCHOR CAREHOMES LTD - HARDEN HALL,28/01/2019,646.71,73025-PROFESSIONAL SERVICES-PRIV CONTRACTOR & OTHER AGENCIES,TRANSITIONAL CARE SUPPORT TEAM,Third Party Payments,Revenue
Walsall Council,http://opendatacommunities.org/id/metropolitan-district-council/walsall,WC100-480,31/01/2019,Adult Social Care,ANCHOR CAREHOMES LTD - HARDEN HALL,28/01/2019,"1,721.86",73025-PROFESSIONAL SERVICES-PRIV CONTRACTOR & OTHER AGENCIES,TRANSITIONAL CARE SUPPORT TEAM,Third Party Payments,Revenue
Walsall Council,http://opendatacommunities.org/id/metropolitan-district-council/walsall,WC100-481,31/01/2019,Adult Social Care,ANCHOR CAREHOMES LTD - HARDEN HALL,28/01/2019,"1,796.43",73025-PROFESSIONAL SERVICES-PRIV CONTRACTOR & OTHER AGENCIES,TRANSITIONAL CARE SUPPORT TEAM,Third Party Payments,Revenue
Walsall Council,http://opendatacommunities.org/id/metropolitan-district-council/walsall,WC100-482,31/01/2019,Adult Social Care,ANCHOR CAREHOMES LTD - HARDEN HALL,28/01/2019,"1,961.59",73025-PROFESSIONAL SERVICES-PRIV CONTRACTOR & OTHER AGENCIES,TRANSITIONAL CARE SUPPORT TEAM,Third Party Payments,Revenue
Walsall Council,http://opendatacommunities.org/id/metropolitan-district-council/walsall,WC100-483,31/01/2019,Adult Social Care,ANCHOR CAREHOMES LTD - HARDEN HALL,28/01/2019,"2,008.84",73025-PROFESSIONAL SERVICES-PRIV CONTRACTOR & OTHER AGENCIES,TRANSITIONAL CARE SUPPORT TEAM,Third Party Payments,Revenue
Walsall Council,http://opendatacommunities.org/id/metropolitan-district-council/walsall,WC100-484,31/01/2019,Adult Social Care,ANCHOR CAREHOMES LTD - HARDEN HALL,28/01/2019,"2,008.84",73025-PROFESSIONAL SERVICES-PRIV CONTRACTOR & OTHER AGENCIES,TRANSITIONAL CARE SUPPORT TEAM,Third Party Payments,Revenue
Walsall Council,http://opendatacommunities.org/id/metropolitan-district-council/walsall,WC100-485,31/01/2019,Childrens,REDACTED,11/01/2019,314.44,74509-SPECIAL GUARDIANSHIP ORDERS,ADOPTION ALLOWANCES,Transfer Payments,Revenue
Walsall Council,http://opendatacommunities.org/id/metropolitan-district-council/walsall,WC100-486,31/01/2019,Childrens,REDACTED,25/01/2019,464.94,74506-TRAVEL-FOSTER CARERS,INTERNAL FOSTER CARE PROVISION,Transfer Payments,Revenue
Walsall Council,http://opendatacommunities.org/id/metropolitan-district-council/walsall,WC100-487,31/01/2019,Childrens,REDACTED,01/01/2019,720.00,74501-MAINTENANCE ALLOWANCE-FOSTER CARERS,INTERNAL FOSTER CARE PROVISION,Transfer Payments,Revenue
Walsall Council,http://opendatacommunities.org/id/metropolitan-district-council/walsall,WC100-488,31/01/2019,Childrens,REDACTED,25/01/2019,720.00,74501-MAINTENANCE ALLOWANCE-FOSTER CARERS,INTERNAL FOSTER CARE PROVISION,Transfer Payments,Revenue
Walsall Council,http://opendatacommunities.org/id/metropolitan-district-council/walsall,WC100-489,31/01/2019,Childrens,REDACTED,01/01/2019,"1,000.00",74508-INTERNAL FOSTER CARERS-CARER FEES,INTERNAL FOSTER CARE PROVISION,Transfer Payments,Revenue
Walsall Council,http://opendatacommunities.org/id/metropolitan-district-council/walsall,WC100-490,31/01/2019,Childrens,REDACTED,25/01/2019,"1,000.00",74508-INTERNAL FOSTER CARERS-CARER FEES,INTERNAL FOSTER CARE PROVISION,Transfer Payments,Revenue
Walsall Council,http://opendatacommunities.org/id/metropolitan-district-council/walsall,WC100-491,31/01/2019,Adult Social Care,REDACTED,07/01/2019,619.24,73506-DIRECT PAYMENT,LEARNING DISABILITY SUPPORT,Third Party Payments,Revenue
Walsall Council,http://opendatacommunities.org/id/metropolitan-district-council/walsall,WC100-492,31/01/2019,Adult Social Care,REDACTED,07/01/2019,"1,771.28",73506-DIRECT PAYMENT,PHYSICAL SUPPORT,Third Party Payments,Revenue
Walsall Council,http://opendatacommunities.org/id/metropolitan-district-council/walsall,WC100-493,31/01/2019,Adult Social Care,ANGEL COURT RESIDENTIAL CARE HOME,07/01/2019,289.68,73504-SHORT STAY RESIDENTIAL,PHYSICAL SUPPORT,Third Party Payments,Revenue
Walsall Council,http://opendatacommunities.org/id/metropolitan-district-council/walsall,WC100-494,31/01/2019,Adult Social Care,ANGEL COURT RESIDENTIAL CARE HOME,07/01/2019,"1,688.84",73500-RESIDENTIAL,PHYSICAL SUPPORT,Third Party Payments,Revenue
Walsall Council,http://opendatacommunities.org/id/metropolitan-district-council/walsall,WC100-495,31/01/2019,Adult Social Care,ANGEL COURT RESIDENTIAL CARE HOME,07/01/2019,"1,688.84",73500-RESIDENTIAL,PHYSICAL SUPPORT,Third Party Payments,Revenue
Walsall Council,http://opendatacommunities.org/id/metropolitan-district-council/walsall,WC100-496,31/01/2019,Adult Social Care,ANGEL COURT RESIDENTIAL CARE HOME,07/01/2019,"1,876.52",73501-RESIDENTIAL EMI,PHYSICAL SUPPORT,Third Party Payments,Revenue
Walsall Council,http://opendatacommunities.org/id/metropolitan-district-council/walsall,WC100-497,31/01/2019,Childrens,REDACTED,11/01/2019,368.76,74509-SPECIAL GUARDIANSHIP ORDERS,ADOPTION ALLOWANCES,Transfer Payments,Revenue
Walsall Council,http://opendatacommunities.org/id/metropolitan-district-council/walsall,WC100-498,31/01/2019,Childrens,REDACTED,11/01/2019,368.76,74509-SPECIAL GUARDIANSHIP ORDERS,ADOPTION ALLOWANCES,Transfer Payments,Revenue
Walsall Council,http://opendatacommunities.org/id/metropolitan-district-council/walsall,WC100-499,31/01/2019,Childrens,REDACTED,11/01/2019,500.16,74509-SPECIAL GUARDIANSHIP ORDERS,ADOPTION ALLOWANCES,Transfer Payments,Revenue
Walsall Council,http://opendatacommunities.org/id/metropolitan-district-council/walsall,WC100-500,31/01/2019,Childrens,REDACTED,11/01/2019,312.04,74509-SPECIAL GUARDIANSHIP ORDERS,ADOPTION ALLOWANCES,Transfer Payments,Revenue
Walsall Council,http://opendatacommunities.org/id/metropolitan-district-council/walsall,WC100-501,31/01/2019,Childrens,ANGELS AND BUTTERFLIES CHILDMINDING,21/01/2019,"2,075.04",66505-OTHER-GRANTS TO OTHER ORGS,EARLY YEARS - 2 YR OLDS,Third Party Payments,Revenue
Walsall Council,http://opendatacommunities.org/id/metropolitan-district-council/walsall,WC100-502,31/01/2019,Adult Social Care,REDACTED,07/01/2019,"1,152.12",73506-DIRECT PAYMENT,PHYSICAL SUPPORT,Third Party Payments,Revenue
Walsall Council,http://opendatacommunities.org/id/metropolitan-district-council/walsall,WC100-503,31/01/2019,Adult Social Care,ANSON COURT RESIDENTIAL HOME,07/01/2019,354.04,73501-RESIDENTIAL EMI,MENTAL HEALTH SUPPORT,Third Party Payments,Revenue
Walsall Council,http://opendatacommunities.org/id/metropolitan-district-council/walsall,WC100-504,31/01/2019,Adult Social Care,ANSON COURT RESIDENTIAL HOME,18/01/2019,402.11,73373-RESIDENTIAL & NURSING CARE PLACEMENTS,OP PACKAGE/PLACEMENT COSTS,Third Party Payments,Revenue
Walsall Council,http://opendatacommunities.org/id/metropolitan-district-council/walsall,WC100-505,31/01/2019,Adult Social Care,ANSON COURT RESIDENTIAL HOME,29/01/2019,998.26,73025-PROFESSIONAL SERVICES-PRIV CONTRACTOR & OTHER AGENCIES,TRANSITIONAL CARE SUPPORT TEAM,Third Party Payments,Revenue
Walsall Council,http://opendatacommunities.org/id/metropolitan-district-council/walsall,WC100-506,31/01/2019,Adult Social Care,ANSON COURT RESIDENTIAL HOME,29/01/2019,"1,711.30",73025-PROFESSIONAL SERVICES-PRIV CONTRACTOR & OTHER AGENCIES,TRANSITIONAL CARE SUPPORT TEAM,Third Party Payments,Revenue
Walsall Council,http://opendatacommunities.org/id/metropolitan-district-council/walsall,WC100-507,31/01/2019,Adult Social Care,ANSON COURT RESIDENTIAL HOME,07/01/2019,"1,876.52",73501-RESIDENTIAL EMI,PHYSICAL SUPPORT,Third Party Payments,Revenue
Walsall Council,http://opendatacommunities.org/id/metropolitan-district-council/walsall,WC100-508,31/01/2019,Adult Social Care,ANSON COURT RESIDENTIAL HOME,07/01/2019,"1,876.52",73501-RESIDENTIAL EMI,MENTAL HEALTH SUPPORT,Third Party Payments,Revenue
Walsall Council,http://opendatacommunities.org/id/metropolitan-district-council/walsall,WC100-509,31/01/2019,Adult Social Care,ANSON COURT RESIDENTIAL HOME,07/01/2019,"1,876.52",73501-RESIDENTIAL EMI,MENTAL HEALTH SUPPORT,Third Party Payments,Revenue
Walsall Council,http://opendatacommunities.org/id/metropolitan-district-council/walsall,WC100-510,31/01/2019,Adult Social Care,ANSON COURT RESIDENTIAL HOME,07/01/2019,"1,876.52",73501-RESIDENTIAL EMI,SUPPORT WITH MEMORY & COGNITION,Third Party Payments,Revenue
Walsall Council,http://opendatacommunities.org/id/metropolitan-district-council/walsall,WC100-511,31/01/2019,Adult Social Care,ANSON COURT RESIDENTIAL HOME,07/01/2019,"1,876.52",73501-RESIDENTIAL EMI,PHYSICAL SUPPORT,Third Party Payments,Revenue
Walsall Council,http://opendatacommunities.org/id/metropolitan-district-council/walsall,WC100-512,31/01/2019,Adult Social Care,ANSON COURT RESIDENTIAL HOME,07/01/2019,"1,876.52",73501-RESIDENTIAL EMI,PHYSICAL SUPPORT,Third Party Payments,Revenue
Walsall Council,http://opendatacommunities.org/id/metropolitan-district-council/walsall,WC100-513,31/01/2019,Adult Social Care,ANSON COURT RESIDENTIAL HOME,07/01/2019,"1,876.52",73501-RESIDENTIAL EMI,MENTAL HEALTH SUPPORT,Third Party Payments,Revenue
Walsall Council,http://opendatacommunities.org/id/metropolitan-district-council/walsall,WC100-514,31/01/2019,Adult Social Care,ANSON COURT RESIDENTIAL HOME,07/01/2019,"1,876.52",73501-RESIDENTIAL EMI,PHYSICAL SUPPORT,Third Party Payments,Revenue
Walsall Council,http://opendatacommunities.org/id/metropolitan-district-council/walsall,WC100-515,31/01/2019,Adult Social Care,ANSON COURT RESIDENTIAL HOME,07/01/2019,"1,876.52",73501-RESIDENTIAL EMI,PHYSICAL SUPPORT,Third Party Payments,Revenue
Walsall Council,http://opendatacommunities.org/id/metropolitan-district-council/walsall,WC100-516,31/01/2019,Adult Social Care,ANSON COURT RESIDENTIAL HOME,07/01/2019,"1,876.52",73501-RESIDENTIAL EMI,SUPPORT WITH MEMORY & COGNITION,Third Party Payments,Revenue
Walsall Council,http://opendatacommunities.org/id/metropolitan-district-council/walsall,WC100-517,31/01/2019,Adult Social Care,ANSON COURT RESIDENTIAL HOME,07/01/2019,"1,876.52",73501-RESIDENTIAL EMI,SUPPORT WITH MEMORY & COGNITION,Third Party Payments,Revenue
Walsall Council,http://opendatacommunities.org/id/metropolitan-district-council/walsall,WC100-518,31/01/2019,Adult Social Care,ANSON COURT RESIDENTIAL HOME,07/01/2019,"1,876.52",73501-RESIDENTIAL EMI,SOCIAL SUPPORT,Third Party Payments,Revenue
Walsall Council,http://opendatacommunities.org/id/metropolitan-district-council/walsall,WC100-519,31/01/2019,Adult Social Care,ANSON COURT RESIDENTIAL HOME,07/01/2019,"1,876.52",73501-RESIDENTIAL EMI,SUPPORT WITH MEMORY & COGNITION,Third Party Payments,Revenue
Walsall Council,http://opendatacommunities.org/id/metropolitan-district-council/walsall,WC100-520,31/01/2019,Adult Social Care,ANSON COURT RESIDENTIAL HOME,07/01/2019,"1,876.52",73501-RESIDENTIAL EMI,SUPPORT WITH MEMORY & COGNITION,Third Party Payments,Revenue
Walsall Council,http://opendatacommunities.org/id/metropolitan-district-council/walsall,WC100-521,31/01/2019,Adult Social Care,ANSON COURT RESIDENTIAL HOME,07/01/2019,"1,876.52",73501-RESIDENTIAL EMI,SOCIAL SUPPORT,Third Party Payments,Revenue
Walsall Council,http://opendatacommunities.org/id/metropolitan-district-council/walsall,WC100-522,31/01/2019,Adult Social Care,ANSON COURT RESIDENTIAL HOME,07/01/2019,"1,956.52",73501-RESIDENTIAL EMI,SOCIAL SUPPORT,Third Party Payments,Revenue
Walsall Council,http://opendatacommunities.org/id/metropolitan-district-council/walsall,WC100-523,31/01/2019,Adult Social Care,ANSON COURT RESIDENTIAL HOME,07/01/2019,"1,956.52",73501-RESIDENTIAL EMI,MENTAL HEALTH SUPPORT,Third Party Payments,Revenue
Walsall Council,http://opendatacommunities.org/id/metropolitan-district-council/walsall,WC100-524,31/01/2019,Adult Social Care,ANSON COURT RESIDENTIAL HOME,07/01/2019,"1,956.52",73501-RESIDENTIAL EMI,PHYSICAL SUPPORT,Third Party Payments,Revenue
Walsall Council,http://opendatacommunities.org/id/metropolitan-district-council/walsall,WC100-525,31/01/2019,Adult Social Care,ANSON COURT RESIDENTIAL HOME,07/01/2019,"1,956.52",73501-RESIDENTIAL EMI,PHYSICAL SUPPORT,Third Party Payments,Revenue
Walsall Council,http://opendatacommunities.org/id/metropolitan-district-council/walsall,WC100-526,31/01/2019,Adult Social Care,ANSON COURT RESIDENTIAL HOME,07/01/2019,"1,996.52",73501-RESIDENTIAL EMI,PHYSICAL SUPPORT,Third Party Payments,Revenue
Walsall Council,http://opendatacommunities.org/id/metropolitan-district-council/walsall,WC100-527,31/01/2019,Adult Social Care,ANSON COURT RESIDENTIAL HOME,07/01/2019,"1,996.52",73501-RESIDENTIAL EMI,PHYSICAL SUPPORT,Third Party Payments,Revenue
Walsall Council,http://opendatacommunities.org/id/metropolitan-district-council/walsall,WC100-528,31/01/2019,Adult Social Care,ANSON COURT RESIDENTIAL HOME,07/01/2019,"1,996.52",73501-RESIDENTIAL EMI,MENTAL HEALTH SUPPORT,Third Party Payments,Revenue
Walsall Council,http://opendatacommunities.org/id/metropolitan-district-council/walsall,WC100-529,31/01/2019,Childrens,REDACTED,11/01/2019,604.00,74510-RESIDENTS ORDERS,ADOPTION ALLOWANCES,Third Party Payments,Revenue
Walsall Council,http://opendatacommunities.org/id/metropolitan-district-council/walsall,WC100-530,31/01/2019,Childrens,REDACTED,11/01/2019,333.12,74509-SPECIAL GUARDIANSHIP ORDERS,ADOPTION ALLOWANCES,Transfer Payments,Revenue
Walsall Council,http://opendatacommunities.org/id/metropolitan-district-council/walsall,WC100-531,31/01/2019,Economy & Environment,APCOA PARKING SERVICES (UK) LTD,08/01/2019,"47,145.22",73025-PROFESSIONAL SERVICES-PRIV CONTRACTOR & OTHER AGENCIES,PARKING SERVICES OFF-STREET,Third Party Payments,Revenue
Walsall Council,http://opendatacommunities.org/id/metropolitan-district-council/walsall,WC100-532,31/01/2019,Childrens,APEX CONSULTANCY AND TRAINING SERVICES LTD,10/01/2019,"1,500.00",63000-PROFESSIONAL FEES AND SERVICES,GENERAL MANAGEMENT SUPPORT (INC LEGAL),Supplies & Services,Revenue
Walsall Council,http://opendatacommunities.org/id/metropolitan-district-council/walsall,WC100-533,31/01/2019,Childrens,APP CARZ,03/01/2019,"3,713.00",52000-WITH DRIVER-HIRE OF VEHICLES,HOME TO SCHOOL TRANSPORT,Transport,Revenue
Walsall Council,http://opendatacommunities.org/id/metropolitan-district-council/walsall,WC100-534,31/01/2019,Economy & Environment,AQUA PHYSICAL LIMITED,02/01/2019,"5,796.00",60006-NEW-FURNITURE & EQUIPMENT,BLOXWICH LEISURE CENTRE,Supplies & Services,Revenue
Walsall Council,http://opendatacommunities.org/id/metropolitan-district-council/walsall,WC100-535,31/01/2019,Childrens,AQUAID (BIRMINGHAM CENTRAL),15/01/2019,323.00,61009-BEVERAGES-PROVISIONS,PELSALL EDC,Supplies & Services,Revenue
Walsall Council,http://opendatacommunities.org/id/metropolitan-district-council/walsall,WC100-536,31/01/2019,Adult Social Care,ARBORETUM NURSING HOME.,07/01/2019,"2,039.68",73502-NURSING,PHYSICAL SUPPORT,Third Party Payments,Revenue
Walsall Council,http://opendatacommunities.org/id/metropolitan-district-council/walsall,WC100-537,31/01/2019,Adult Social Care,ARBORETUM NURSING HOME.,07/01/2019,"2,039.68",73502-NURSING,PHYSICAL SUPPORT,Third Party Payments,Revenue
Walsall Council,http://opendatacommunities.org/id/metropolitan-district-council/walsall,WC100-538,31/01/2019,Adult Social Care,ARBORETUM NURSING HOME.,07/01/2019,"2,039.68",73502-NURSING,SUPPORT WITH MEMORY & COGNITION,Third Party Payments,Revenue
Walsall Council,http://opendatacommunities.org/id/metropolitan-district-council/walsall,WC100-539,31/01/2019,Adult Social Care,ARBORETUM NURSING HOME.,07/01/2019,"2,039.68",73502-NURSING,PHYSICAL SUPPORT,Third Party Payments,Revenue
Walsall Council,http://opendatacommunities.org/id/metropolitan-district-council/walsall,WC100-540,31/01/2019,Adult Social Care,ARBORETUM NURSING HOME.,07/01/2019,"2,119.68",73500-RESIDENTIAL,PHYSICAL SUPPORT,Third Party Payments,Revenue
Walsall Council,http://opendatacommunities.org/id/metropolitan-district-council/walsall,WC100-541,31/01/2019,Adult Social Care,ARBORETUM NURSING HOME.,07/01/2019,"2,139.68",73502-NURSING,PHYSICAL SUPPORT,Third Party Payments,Revenue
Walsall Council,http://opendatacommunities.org/id/metropolitan-district-council/walsall,WC100-542,31/01/2019,Adult Social Care,ARBORETUM NURSING HOME.,07/01/2019,"2,159.68",73502-NURSING,PHYSICAL SUPPORT,Third Party Payments,Revenue
Walsall Council,http://opendatacommunities.org/id/metropolitan-district-council/walsall,WC100-543,31/01/2019,Adult Social Care,ARBORETUM NURSING HOME.,07/01/2019,"2,159.68",73502-NURSING,PHYSICAL SUPPORT,Third Party Payments,Revenue
Walsall Council,http://opendatacommunities.org/id/metropolitan-district-council/walsall,WC100-544,31/01/2019,Adult Social Care,ARBORETUM NURSING HOME.,07/01/2019,"2,159.68",73502-NURSING,PHYSICAL SUPPORT,Third Party Payments,Revenue
Walsall Council,http://opendatacommunities.org/id/metropolitan-district-council/walsall,WC100-545,31/01/2019,Adult Social Care,ARBORETUM NURSING HOME.,07/01/2019,"2,363.64",73503-NURSING EMI,PHYSICAL SUPPORT,Third Party Payments,Revenue
Walsall Council,http://opendatacommunities.org/id/metropolitan-district-council/walsall,WC100-546,31/01/2019,Adult Social Care,ARBORETUM NURSING HOME.,09/01/2019,"8,940.00",73025-PROFESSIONAL SERVICES-PRIV CONTRACTOR & OTHER AGENCIES,TRANSITIONAL CARE SUPPORT TEAM,Third Party Payments,Revenue
Walsall Council,http://opendatacommunities.org/id/metropolitan-district-council/walsall,WC100-547,31/01/2019,Adult Social Care,ARBORETUM NURSING HOME.,24/01/2019,"8,940.00",73025-PROFESSIONAL SERVICES-PRIV CONTRACTOR & OTHER AGENCIES,TRANSITIONAL CARE SUPPORT TEAM,Third Party Payments,Revenue
Walsall Council,http://opendatacommunities.org/id/metropolitan-district-council/walsall,WC100-548,31/01/2019,Adult Social Care,ARBORETUM NURSING HOME.,09/01/2019,"14,900.00",73019-PSE'S-PRIV CONTRACTOR FEES,TRANSITIONAL CARE SUPPORT TEAM,Third Party Payments,Revenue
Walsall Council,http://opendatacommunities.org/id/metropolitan-district-council/walsall,WC100-549,31/01/2019,Adult Social Care,ARBORETUM NURSING HOME.,24/01/2019,"14,900.00",73019-PSE'S-PRIV CONTRACTOR FEES,TRANSITIONAL CARE SUPPORT TEAM,Third Party Payments,Revenue
Walsall Council,http://opendatacommunities.org/id/metropolitan-district-council/walsall,WC100-550,31/01/2019,Economy & Environment,ARBURY WALSALL,23/01/2019,229.36,60009-LEASING/HIRE/RENTAL-EQUIPMENT,TARMAC,Supplies & Services,Revenue
Walsall Council,http://opendatacommunities.org/id/metropolitan-district-council/walsall,WC100-551,31/01/2019,Childrens,ARCHWAY ACADEMY,02/01/2019,"17,688.00",66502-TOP UP FUNDING -GRANTS TO SCHOOLS,INDEPENDENT PROVIDERS - SPECIAL & AP,Third Party Payments,Revenue
Walsall Council,http://opendatacommunities.org/id/metropolitan-district-council/walsall,WC100-552,31/01/2019,Economy & Environment,ARK FORENSICS LTD,07/01/2019,350.00,63000-PROFESSIONAL FEES AND SERVICES,CORONERS SERVICE,Supplies & Services,Revenue
Walsall Council,http://opendatacommunities.org/id/metropolitan-district-council/walsall,WC100-553,31/01/2019,Resources and Transformation,ARMADA,07/01/2019,891.00,30030-EXTERNAL TRAINING,AREA PARTNERSHIPS,Employees,Revenue
Walsall Council,http://opendatacommunities.org/id/metropolitan-district-council/walsall,WC100-554,31/01/2019,Resources and Transformation,ARMSTRONG YORK ASBESTOS ENVIRONMENTAL LIMITED,01/01/2019,380.00,"40000-REPAIRS,ALTERATIONS & MAINTENANCE-PREM",RECHARGEABLE - SCHOOLS MAINTENANCE,Premises,Revenue
Walsall Council,http://opendatacommunities.org/id/metropolitan-district-council/walsall,WC100-555,31/01/2019,Resources and Transformation,ARMSTRONG YORK ASBESTOS ENVIRONMENTAL LIMITED,01/01/2019,"7,380.00",01006-SITE WORKS MAIN CONTRACTORS,CFR 801 ASBESTOS REMOVAL EAST,Capital,Capital
Walsall Council,http://opendatacommunities.org/id/metropolitan-district-council/walsall,WC100-556,31/01/2019,Childrens,ART PRACTITIONER & PSYCHOTHERAPY SERVICES JACQUELINE MARLOW,25/01/2019,"4,125.00",63000-PROFESSIONAL FEES AND SERVICES,FAMILY PLACEMENTS,Supplies & Services,Revenue
Walsall Council,http://opendatacommunities.org/id/metropolitan-district-council/walsall,WC100-557,31/01/2019,Adult Social Care,ASH GRANGE CARE HOME,30/01/2019,655.61,73025-PROFESSIONAL SERVICES-PRIV CONTRACTOR & OTHER AGENCIES,TRANSITIONAL CARE SUPPORT TEAM,Third Party Payments,Revenue
Walsall Council,http://opendatacommunities.org/id/metropolitan-district-council/walsall,WC100-558,31/01/2019,Adult Social Care,ASH GRANGE CARE HOME,07/01/2019,801.30,73502-NURSING,PHYSICAL SUPPORT,Third Party Payments,Revenue
Walsall Council,http://opendatacommunities.org/id/metropolitan-district-council/walsall,WC100-559,31/01/2019,Adult Social Care,ASH GRANGE CARE HOME,07/01/2019,"1,688.84",73500-RESIDENTIAL,SUPPORT WITH MEMORY & COGNITION,Third Party Payments,Revenue
Walsall Council,http://opendatacommunities.org/id/metropolitan-district-council/walsall,WC100-560,31/01/2019,Adult Social Care,ASH GRANGE CARE HOME,07/01/2019,"1,688.84",73500-RESIDENTIAL,MENTAL HEALTH SUPPORT,Third Party Payments,Revenue
Walsall Council,http://opendatacommunities.org/id/metropolitan-district-council/walsall,WC100-561,31/01/2019,Adult Social Care,ASH GRANGE CARE HOME,07/01/2019,"1,748.30",73502-NURSING,PHYSICAL SUPPORT,Third Party Payments,Revenue
Walsall Council,http://opendatacommunities.org/id/metropolitan-district-council/walsall,WC100-562,31/01/2019,Adult Social Care,ASH GRANGE CARE HOME,07/01/2019,"2,039.68",73502-NURSING,PHYSICAL SUPPORT,Third Party Payments,Revenue
Walsall Council,http://opendatacommunities.org/id/metropolitan-district-council/walsall,WC100-563,31/01/2019,Adult Social Care,ASH GRANGE CARE HOME,07/01/2019,"2,039.68",73502-NURSING,PHYSICAL SUPPORT,Third Party Payments,Revenue
Walsall Council,http://opendatacommunities.org/id/metropolitan-district-council/walsall,WC100-564,31/01/2019,Adult Social Care,ASH GRANGE CARE HOME,07/01/2019,"2,039.68",73502-NURSING,SUPPORT WITH MEMORY & COGNITION,Third Party Payments,Revenue
Walsall Council,http://opendatacommunities.org/id/metropolitan-district-council/walsall,WC100-565,31/01/2019,Adult Social Care,ASH GRANGE CARE HOME,07/01/2019,"2,039.68",73502-NURSING,PHYSICAL SUPPORT,Third Party Payments,Revenue
Walsall Council,http://opendatacommunities.org/id/metropolitan-district-council/walsall,WC100-566,31/01/2019,Adult Social Care,ASH GRANGE CARE HOME,07/01/2019,"2,039.68",73502-NURSING,PHYSICAL SUPPORT,Third Party Payments,Revenue
Walsall Council,http://opendatacommunities.org/id/metropolitan-district-council/walsall,WC100-567,31/01/2019,Adult Social Care,ASH GRANGE CARE HOME,07/01/2019,"2,039.68",73502-NURSING,PHYSICAL SUPPORT,Third Party Payments,Revenue
Walsall Council,http://opendatacommunities.org/id/metropolitan-district-council/walsall,WC100-568,31/01/2019,Adult Social Care,ASH GRANGE CARE HOME,07/01/2019,"2,039.68",73502-NURSING,PHYSICAL SUPPORT,Third Party Payments,Revenue
Walsall Council,http://opendatacommunities.org/id/metropolitan-district-council/walsall,WC100-569,31/01/2019,Adult Social Care,ASH GRANGE CARE HOME,07/01/2019,"2,039.68",73502-NURSING,PHYSICAL SUPPORT,Third Party Payments,Revenue
Walsall Council,http://opendatacommunities.org/id/metropolitan-district-council/walsall,WC100-570,31/01/2019,Adult Social Care,ASH GRANGE CARE HOME,07/01/2019,"2,039.68",73502-NURSING,PHYSICAL SUPPORT,Third Party Payments,Revenue
Walsall Council,http://opendatacommunities.org/id/metropolitan-district-council/walsall,WC100-571,31/01/2019,Adult Social Care,ASH GRANGE CARE HOME,07/01/2019,"2,039.68",73502-NURSING,MENTAL HEALTH SUPPORT,Third Party Payments,Revenue
Walsall Council,http://opendatacommunities.org/id/metropolitan-district-council/walsall,WC100-572,31/01/2019,Adult Social Care,ASH GRANGE CARE HOME,07/01/2019,"2,039.68",73502-NURSING,PHYSICAL SUPPORT,Third Party Payments,Revenue
Walsall Council,http://opendatacommunities.org/id/metropolitan-district-council/walsall,WC100-573,31/01/2019,Adult Social Care,ASH GRANGE CARE HOME,07/01/2019,"2,039.68",73502-NURSING,PHYSICAL SUPPORT,Third Party Payments,Revenue
Walsall Council,http://opendatacommunities.org/id/metropolitan-district-council/walsall,WC100-574,31/01/2019,Adult Social Care,ASH GRANGE CARE HOME,07/01/2019,"2,039.68",73502-NURSING,PHYSICAL SUPPORT,Third Party Payments,Revenue
Walsall Council,http://opendatacommunities.org/id/metropolitan-district-council/walsall,WC100-575,31/01/2019,Adult Social Care,ASH GRANGE CARE HOME,07/01/2019,"2,039.68",73502-NURSING,MENTAL HEALTH SUPPORT,Third Party Payments,Revenue
Walsall Council,http://opendatacommunities.org/id/metropolitan-district-council/walsall,WC100-576,31/01/2019,Adult Social Care,ASH GRANGE CARE HOME,30/01/2019,"2,039.68",73025-PROFESSIONAL SERVICES-PRIV CONTRACTOR & OTHER AGENCIES,TRANSITIONAL CARE SUPPORT TEAM,Third Party Payments,Revenue
Walsall Council,http://opendatacommunities.org/id/metropolitan-district-council/walsall,WC100-577,31/01/2019,Adult Social Care,ASH GRANGE CARE HOME,07/01/2019,"2,243.64",73503-NURSING EMI,PHYSICAL SUPPORT,Third Party Payments,Revenue
Walsall Council,http://opendatacommunities.org/id/metropolitan-district-council/walsall,WC100-578,31/01/2019,Adult Social Care,ASH GRANGE CARE HOME,07/01/2019,"2,243.64",73503-NURSING EMI,PHYSICAL SUPPORT,Third Party Payments,Revenue
Walsall Council,http://opendatacommunities.org/id/metropolitan-district-council/walsall,WC100-579,31/01/2019,Adult Social Care,ASH GRANGE CARE HOME,07/01/2019,"2,319.68",73502-NURSING,PHYSICAL SUPPORT,Third Party Payments,Revenue
Walsall Council,http://opendatacommunities.org/id/metropolitan-district-council/walsall,WC100-580,31/01/2019,Adult Social Care,ASH GRANGE CARE HOME,07/01/2019,"2,480.00",73503-NURSING EMI,PHYSICAL SUPPORT,Third Party Payments,Revenue
Walsall Council,http://opendatacommunities.org/id/metropolitan-district-council/walsall,WC100-581,31/01/2019,Adult Social Care,ASH GRANGE CARE HOME,07/01/2019,"2,495.72",73502-NURSING,LEARNING DISABILITY SUPPORT,Third Party Payments,Revenue
Walsall Council,http://opendatacommunities.org/id/metropolitan-district-council/walsall,WC100-582,31/01/2019,Adult Social Care,ASHBOURNE LODGE,07/01/2019,"1,963.60",73500-RESIDENTIAL,PHYSICAL SUPPORT,Third Party Payments,Revenue
Walsall Council,http://opendatacommunities.org/id/metropolitan-district-council/walsall,WC100-583,31/01/2019,Economy & Environment,ASHDOWN SUPPLIES,24/01/2019,293.76,60500-GENERAL MATERIALS,STREETLY CREMATORIUM,Supplies & Services,Revenue
Walsall Council,http://opendatacommunities.org/id/metropolitan-district-council/walsall,WC100-584,31/01/2019,Economy & Environment,ASHDOWN SUPPLIES,30/01/2019,293.76,60500-GENERAL MATERIALS,STREETLY CREMATORIUM,Supplies & Services,Revenue
Walsall Council,http://opendatacommunities.org/id/metropolitan-district-council/walsall,WC100-585,31/01/2019,Adult Social Care,REDACTED,07/01/2019,"1,217.12",73506-DIRECT PAYMENT,LEARNING DISABILITY SUPPORT,Third Party Payments,Revenue
Walsall Council,http://opendatacommunities.org/id/metropolitan-district-council/walsall,WC100-586,31/01/2019,Adult Social Care,REDACTED,07/01/2019,"1,092.00",73506-DIRECT PAYMENT,LEARNING DISABILITY SUPPORT,Third Party Payments,Revenue
Walsall Council,http://opendatacommunities.org/id/metropolitan-district-council/walsall,WC100-587,31/01/2019,Economy & Environment,ASKEWS AND HOLTS LIBRARY SERVICES LTD,15/01/2019,976.36,60501-LIBRARY BOOKS,LIBRARY MANAGEMENT,Supplies & Services,Revenue
Walsall Council,http://opendatacommunities.org/id/metropolitan-district-council/walsall,WC100-588,31/01/2019,Economy & Environment,ASKEWS AND HOLTS LIBRARY SERVICES LTD,02/01/2019,"1,303.21",60501-LIBRARY BOOKS,LIBRARY MANAGEMENT,Supplies & Services,Revenue
Walsall Council,http://opendatacommunities.org/id/metropolitan-district-council/walsall,WC100-589,31/01/2019,Economy & Environment,ASKEWS AND HOLTS LIBRARY SERVICES LTD,28/01/2019,"3,700.87",60501-LIBRARY BOOKS,LIBRARY MANAGEMENT,Supplies & Services,Revenue
Walsall Council,http://opendatacommunities.org/id/metropolitan-district-council/walsall,WC100-590,31/01/2019,Adult Social Care,REDACTED,07/01/2019,775.20,73506-DIRECT PAYMENT,PHYSICAL SUPPORT,Third Party Payments,Revenue
Walsall Council,http://opendatacommunities.org/id/metropolitan-district-council/walsall,WC100-591,31/01/2019,Adult Social Care,ASSURED HEALTHCARE SOLUTIONS (PARK FARM LODGE),07/01/2019,"1,948.32",73500-RESIDENTIAL,PHYSICAL SUPPORT,Third Party Payments,Revenue
Walsall Council,http://opendatacommunities.org/id/metropolitan-district-council/walsall,WC100-592,31/01/2019,Economy & Environment,ATKINS HIGHWAYS & TRANSPORTATION,24/01/2019,"5,350.81",73025-PROFESSIONAL SERVICES-PRIV CONTRACTOR & OTHER AGENCIES,SECTION 38 OF HIGHWAYS ACT - SUPERVISION,Third Party Payments,Revenue
Walsall Council,http://opendatacommunities.org/id/metropolitan-district-council/walsall,WC100-593,31/01/2019,Economy & Environment,ATKINS HIGHWAYS & TRANSPORTATION,02/01/2019,"5,498.08",73025-PROFESSIONAL SERVICES-PRIV CONTRACTOR & OTHER AGENCIES,SECTION 38 OF HIGHWAYS ACT - SUPERVISION,Third Party Payments,Revenue
Walsall Council,http://opendatacommunities.org/id/metropolitan-district-council/walsall,WC100-594,31/01/2019,Economy & Environment,ATKINS HIGHWAYS & TRANSPORTATION,02/01/2019,"8,320.76",73025-PROFESSIONAL SERVICES-PRIV CONTRACTOR & OTHER AGENCIES,SECTION 38 OF HIGHWAYS ACT - SUPERVISION,Third Party Payments,Revenue
Walsall Council,http://opendatacommunities.org/id/metropolitan-district-council/walsall,WC100-595,31/01/2019,Economy & Environment,ATKINS HIGHWAYS & TRANSPORTATION,09/01/2019,"11,618.25",01003-ENGINEERS ASSISTANTS TIME - DESIGN,CFR 819 LTP-YORKS BRIDGE,Capital,Capital
Walsall Council,http://opendatacommunities.org/id/metropolitan-district-council/walsall,WC100-596,31/01/2019,Economy & Environment,ATKINS LIMITED,01/01/2019,"26,524.95",01003-ENGINEERS ASSISTANTS TIME - DESIGN,CFR 819 LTP-YORKS BRIDGE,Capital,Capital
Walsall Council,http://opendatacommunities.org/id/metropolitan-district-council/walsall,WC100-597,31/01/2019,Economy & Environment,ATOM,23/01/2019,"1,200.00",60501-LIBRARY BOOKS,LIBRARY MANAGEMENT,Supplies & Services,Revenue
Walsall Council,http://opendatacommunities.org/id/metropolitan-district-council/walsall,WC100-598,31/01/2019,Resources and Transformation,AURORA GRAPHICS & DISPLAYS LTD,09/01/2019,376.12,62008-OUTWORK-PRINT ROOM,PRINTING SERVICES,Supplies & Services,Revenue
Walsall Council,http://opendatacommunities.org/id/metropolitan-district-council/walsall,WC100-599,31/01/2019,Resources and Transformation,AURORA GRAPHICS & DISPLAYS LTD,25/01/2019,534.80,62008-OUTWORK-PRINT ROOM,PRINTING SERVICES,Supplies & Services,Revenue
Walsall Council,http://opendatacommunities.org/id/metropolitan-district-council/walsall,WC100-600,31/01/2019,Resources and Transformation,AURORA GRAPHICS & DISPLAYS LTD,17/01/2019,"12,812.50",62008-OUTWORK-PRINT ROOM,PRINTING SERVICES,Supplies & Services,Revenue
Walsall Council,http://opendatacommunities.org/id/metropolitan-district-council/walsall,WC100-601,31/01/2019,Adult Social Care,AUTISM WEST MIDLANDS,07/01/2019,"7,101.48",73500-RESIDENTIAL,LEARNING DISABILITY SUPPORT,Third Party Payments,Revenue
Walsall Council,http://opendatacommunities.org/id/metropolitan-district-council/walsall,WC100-602,31/01/2019,Adult Social Care,AUTISM WEST MIDLANDS 001,07/01/2019,"4,746.96",73500-RESIDENTIAL,LEARNING DISABILITY SUPPORT,Third Party Payments,Revenue
Walsall Council,http://opendatacommunities.org/id/metropolitan-district-council/walsall,WC100-603,31/01/2019,Adult Social Care,REDACTED,07/01/2019,989.04,73506-DIRECT PAYMENT,SUPPORT WITH MEMORY & COGNITION,Third Party Payments,Revenue
Walsall Council,http://opendatacommunities.org/id/metropolitan-district-council/walsall,WC100-604,31/01/2019,Economy & Environment,AXIELL LIMITED,23/01/2019,284.00,63800-COMPUTER EQUIPMENT AND SUPPLIES,BLOXWICH LIBRARY,Supplies & Services,Revenue
Walsall Council,http://opendatacommunities.org/id/metropolitan-district-council/walsall,WC100-605,31/01/2019,Economy & Environment,AXIELL LIMITED,23/01/2019,"10,000.00",01006-SITE WORKS MAIN CONTRACTORS,CFR 1070 SINGLE LIBRARY MANAGEMENT SYSTEM,Capital,Capital
Walsall Council,http://opendatacommunities.org/id/metropolitan-district-council/walsall,WC100-606,31/01/2019,Economy & Environment,AXIELL LIMITED,23/01/2019,"17,389.05",63800-COMPUTER EQUIPMENT AND SUPPLIES,BLOXWICH LIBRARY,Supplies & Services,Revenue
Walsall Council,http://opendatacommunities.org/id/metropolitan-district-council/walsall,WC100-607,31/01/2019,Economy & Environment,AXIOMATIC TECHNOLOGY LTD,22/01/2019,689.00,60008-MAINTENANCE-FURNITURE & EQUIPMENT,FOREST ARTS CENTRE,Supplies & Services,Revenue
Walsall Council,http://opendatacommunities.org/id/metropolitan-district-council/walsall,WC100-608,31/01/2019,Adult Social Care,REDACTED,07/01/2019,"3,182.40",73506-DIRECT PAYMENT,LEARNING DISABILITY SUPPORT,Third Party Payments,Revenue
Walsall Council,http://opendatacommunities.org/id/metropolitan-district-council/walsall,WC100-609,31/01/2019,Childrens,REDACTED,16/01/2019,331.43,76000-TRANSFER PAYMENTS - SOCIAL SERVICES CLIENTS,TRANSITION AND LEAVING CARE PLACEMENTS,Transfer Payments,Revenue
Walsall Council,http://opendatacommunities.org/id/metropolitan-district-council/walsall,WC100-610,31/01/2019,Childrens,REDACTED,01/01/2019,464.00,76000-TRANSFER PAYMENTS - SOCIAL SERVICES CLIENTS,TRANSITION AND LEAVING CARE PLACEMENTS,Transfer Payments,Revenue
Walsall Council,http://opendatacommunities.org/id/metropolitan-district-council/walsall,WC100-611,31/01/2019,Childrens,REDACTED,01/01/2019,464.00,76000-TRANSFER PAYMENTS - SOCIAL SERVICES CLIENTS,TRANSITION AND LEAVING CARE PLACEMENTS,Transfer Payments,Revenue
Walsall Council,http://opendatacommunities.org/id/metropolitan-district-council/walsall,WC100-612,31/01/2019,Childrens,REDACTED,16/01/2019,464.00,76000-TRANSFER PAYMENTS - SOCIAL SERVICES CLIENTS,TRANSITION AND LEAVING CARE PLACEMENTS,Transfer Payments,Revenue
Walsall Council,http://opendatacommunities.org/id/metropolitan-district-council/walsall,WC100-613,31/01/2019,Childrens,REDACTED,29/01/2019,464.00,76000-TRANSFER PAYMENTS - SOCIAL SERVICES CLIENTS,TRANSITION AND LEAVING CARE PLACEMENTS,Transfer Payments,Revenue
Walsall Council,http://opendatacommunities.org/id/metropolitan-district-council/walsall,WC100-614,31/01/2019,Childrens,BACK CARE SOLUTIONS LTD,29/01/2019,"1,007.00",60009-LEASING/HIRE/RENTAL-EQUIPMENT,SAFEGUARDING & FAMILY SUPPORT,Supplies & Services,Revenue
Walsall Council,http://opendatacommunities.org/id/metropolitan-district-council/walsall,WC100-615,31/01/2019,Childrens,BAILY GARNER LLP,28/01/2019,"2,052.00",01001-OTHER CONSULTANTS FEES,CFR 783 BASIC NEED,Capital,Capital
Walsall Council,http://opendatacommunities.org/id/metropolitan-district-council/walsall,WC100-616,31/01/2019,Economy & Environment,BAKER HALL PARTNERSHIP,15/01/2019,449.75,63000-PROFESSIONAL FEES AND SERVICES,BUILDING CONTROL REVENUE FUNDED,Supplies & Services,Revenue
Walsall Council,http://opendatacommunities.org/id/metropolitan-district-council/walsall,WC100-617,31/01/2019,Adult Social Care,REDACTED,07/01/2019,"3,328.80",73506-DIRECT PAYMENT,LEARNING DISABILITY SUPPORT,Third Party Payments,Revenue
Walsall Council,http://opendatacommunities.org/id/metropolitan-district-council/walsall,WC100-618,31/01/2019,Adult Social Care,REDACTED,07/01/2019,"1,582.88",73506-DIRECT PAYMENT,PHYSICAL SUPPORT,Third Party Payments,Revenue
Walsall Council,http://opendatacommunities.org/id/metropolitan-district-council/walsall,WC100-619,31/01/2019,Childrens,REDACTED,11/01/2019,400.00,74508-INTERNAL FOSTER CARERS-CARER FEES,FAMILY & FRIENDS FOSTER CARE PROVISION,Transfer Payments,Revenue
Walsall Council,http://opendatacommunities.org/id/metropolitan-district-council/walsall,WC100-620,31/01/2019,Childrens,REDACTED,11/01/2019,540.00,74501-MAINTENANCE ALLOWANCE-FOSTER CARERS,FAMILY & FRIENDS FOSTER CARE PROVISION,Transfer Payments,Revenue
Walsall Council,http://opendatacommunities.org/id/metropolitan-district-council/walsall,WC100-621,31/01/2019,Economy & Environment,BARCHAM TREES PLC,01/01/2019,268.00,41001-GROUNDS MAINTENANCE,ARBORETUM,Premises,Revenue
Walsall Council,http://opendatacommunities.org/id/metropolitan-district-council/walsall,WC100-622,31/01/2019,Childrens,BARNARDOS SERVICES LTD,25/01/2019,"3,116.40",74037-INDEPENDENT FOSTER CARE-OTH AGENCY PROVISION,EXTERNAL FOSTER CARE PROVISION,Third Party Payments,Revenue
Walsall Council,http://opendatacommunities.org/id/metropolitan-district-council/walsall,WC100-623,31/01/2019,Childrens,BARNARDOS SERVICES LTD,21/01/2019,"4,557.00",63000-PROFESSIONAL FEES AND SERVICES,DIRECTLY COMMISSIONED NURSING SERVICES,Supplies & Services,Revenue
Walsall Council,http://opendatacommunities.org/id/metropolitan-district-council/walsall,WC100-624,31/01/2019,Resources and Transformation,BARNBOROUGH LTD,29/01/2019,"2,685.00",60006-NEW-FURNITURE & EQUIPMENT,CA KINGSHILL SCHOOL,Supplies & Services,Revenue
Walsall Council,http://opendatacommunities.org/id/metropolitan-district-council/walsall,WC100-625,31/01/2019,Childrens,BARR BEACON SCHOOL TRUST,04/01/2019,"12,237.36",66502-TOP UP FUNDING -GRANTS TO SCHOOLS,BARR BEACON SCHOOL TRUST (ACADEMY),Third Party Payments,Revenue
Walsall Council,http://opendatacommunities.org/id/metropolitan-district-council/walsall,WC100-626,31/01/2019,Adult Social Care,BARTHOLAMEW LODGE CARE HOME,07/01/2019,"2,823.44",73503-NURSING EMI,PHYSICAL SUPPORT,Third Party Payments,Revenue
Walsall Council,http://opendatacommunities.org/id/metropolitan-district-council/walsall,WC100-627,31/01/2019,Childrens,BAT FABRICATIONS LTD,16/01/2019,600.00,01006-SITE WORKS MAIN CONTRACTORS,CFR 1297 LEIGHSWOOD PRIMARY SCHOOL EXPANSION,Capital,Capital
Walsall Council,http://opendatacommunities.org/id/metropolitan-district-council/walsall,WC100-628,31/01/2019,Economy & Environment,BAT FABRICATIONS LTD,08/01/2019,730.00,"40000-REPAIRS,ALTERATIONS & MAINTENANCE-PREM",GREEN SPACE MANAGEMENT,Premises,Revenue
Walsall Council,http://opendatacommunities.org/id/metropolitan-district-council/walsall,WC100-629,31/01/2019,Economy & Environment,BAT FABRICATIONS LTD,08/01/2019,"2,640.00","40000-REPAIRS,ALTERATIONS & MAINTENANCE-PREM",GREEN SPACE MANAGEMENT,Premises,Revenue
Walsall Council,http://opendatacommunities.org/id/metropolitan-district-council/walsall,WC100-630,31/01/2019,Childrens,BAT FABRICATIONS LTD,23/01/2019,"10,832.00",01006-SITE WORKS MAIN CONTRACTORS,CFR 1297 JANE LANE SPECIAL SCHOOL EXPANSION,Capital,Capital
Walsall Council,http://opendatacommunities.org/id/metropolitan-district-council/walsall,WC100-631,31/01/2019,Childrens,BAT FABRICATIONS LTD,08/01/2019,"19,000.00",01006-SITE WORKS MAIN CONTRACTORS,CFR 1299 LINDENS PRIMARY SECURITY FENCING,Capital,Capital
Walsall Council,http://opendatacommunities.org/id/metropolitan-district-council/walsall,WC100-632,31/01/2019,Childrens,BEACON PRIMARY,30/01/2019,575.00,63000-PROFESSIONAL FEES AND SERVICES,SCHOOL IMPROVEMENT-ASSESSMENT,Supplies & Services,Revenue
Walsall Council,http://opendatacommunities.org/id/metropolitan-district-council/walsall,WC100-633,31/01/2019,Childrens,BEACON PRIMARY,30/01/2019,"1,850.00",63000-PROFESSIONAL FEES AND SERVICES,SCHOOL IMPROVEMENT-ASSESSMENT,Supplies & Services,Revenue
Walsall Council,http://opendatacommunities.org/id/metropolitan-district-council/walsall,WC100-634,31/01/2019,Adult Social Care,REDACTED,07/01/2019,787.36,73506-DIRECT PAYMENT,PHYSICAL SUPPORT,Third Party Payments,Revenue
Walsall Council,http://opendatacommunities.org/id/metropolitan-district-council/walsall,WC100-635,31/01/2019,Childrens,BECKYS CHILDMINDING SERVICE,18/01/2019,"1,148.40",66505-OTHER-GRANTS TO OTHER ORGS,EARLY YEARS - 3 YR OLDS,Third Party Payments,Revenue
Walsall Council,http://opendatacommunities.org/id/metropolitan-district-council/walsall,WC100-636,31/01/2019,Childrens,BECKYS CHILDMINDING SERVICE,18/01/2019,"2,766.72",66505-OTHER-GRANTS TO OTHER ORGS,EARLY YEARS - 2 YR OLDS,Third Party Payments,Revenue
Walsall Council,http://opendatacommunities.org/id/metropolitan-district-council/walsall,WC100-637,31/01/2019,Adult Social Care,BELVIDERE COURT,07/01/2019,"2,000.00",73502-NURSING,MENTAL HEALTH SUPPORT,Third Party Payments,Revenue
Walsall Council,http://opendatacommunities.org/id/metropolitan-district-council/walsall,WC100-638,31/01/2019,Adult Social Care,BELVIDERE COURT,07/01/2019,"2,017.76",73502-NURSING,MENTAL HEALTH SUPPORT,Third Party Payments,Revenue
Walsall Council,http://opendatacommunities.org/id/metropolitan-district-council/walsall,WC100-639,31/01/2019,Adult Social Care,BELVIDERE COURT,07/01/2019,"2,200.00",73503-NURSING EMI,PHYSICAL SUPPORT,Third Party Payments,Revenue
Walsall Council,http://opendatacommunities.org/id/metropolitan-district-council/walsall,WC100-640,31/01/2019,Adult Social Care,BELVIDERE COURT,07/01/2019,"2,200.00",73503-NURSING EMI,PHYSICAL SUPPORT,Third Party Payments,Revenue
Walsall Council,http://opendatacommunities.org/id/metropolitan-district-council/walsall,WC100-641,31/01/2019,Childrens,BEMROSEBOOTH LTD,11/01/2019,850.00,68001-PUBLICITY & ADVERTISING (NOT STAFF ADVERTISING),CENTRAL EXP-2 YR OLD TRAJECTORY FUNDING,Supplies & Services,Revenue
Walsall Council,http://opendatacommunities.org/id/metropolitan-district-council/walsall,WC100-642,31/01/2019,Adult Social Care,REDACTED,07/01/2019,"2,569.64",73506-DIRECT PAYMENT,LEARNING DISABILITY SUPPORT,Third Party Payments,Revenue
Walsall Council,http://opendatacommunities.org/id/metropolitan-district-council/walsall,WC100-643,31/01/2019,Adult Social Care,BENTLEY COURT PRIORY,07/01/2019,"-1,602.61",73502-NURSING,PHYSICAL SUPPORT,Third Party Payments,Revenue
Walsall Council,http://opendatacommunities.org/id/metropolitan-district-council/walsall,WC100-644,31/01/2019,Adult Social Care,BENTLEY COURT PRIORY,28/01/2019,"1,035.06",73025-PROFESSIONAL SERVICES-PRIV CONTRACTOR & OTHER AGENCIES,TRANSITIONAL CARE SUPPORT TEAM,Third Party Payments,Revenue
Walsall Council,http://opendatacommunities.org/id/metropolitan-district-council/walsall,WC100-645,31/01/2019,Adult Social Care,BENTLEY COURT PRIORY,09/01/2019,"1,643.59",73025-PROFESSIONAL SERVICES-PRIV CONTRACTOR & OTHER AGENCIES,TRANSITIONAL CARE SUPPORT TEAM,Third Party Payments,Revenue
Walsall Council,http://opendatacommunities.org/id/metropolitan-district-council/walsall,WC100-646,31/01/2019,Adult Social Care,BENTLEY COURT PRIORY,07/01/2019,"1,688.84",73500-RESIDENTIAL,MENTAL HEALTH SUPPORT,Third Party Payments,Revenue
Walsall Council,http://opendatacommunities.org/id/metropolitan-district-council/walsall,WC100-647,31/01/2019,Adult Social Care,BENTLEY COURT PRIORY,07/01/2019,"2,039.68",73502-NURSING,PHYSICAL SUPPORT,Third Party Payments,Revenue
Walsall Council,http://opendatacommunities.org/id/metropolitan-district-council/walsall,WC100-648,31/01/2019,Adult Social Care,BENTLEY COURT PRIORY,28/01/2019,"2,235.00",73025-PROFESSIONAL SERVICES-PRIV CONTRACTOR & OTHER AGENCIES,TRANSITIONAL CARE SUPPORT TEAM,Third Party Payments,Revenue
Walsall Council,http://opendatacommunities.org/id/metropolitan-district-council/walsall,WC100-649,31/01/2019,Adult Social Care,BENTLEY COURT PRIORY,07/01/2019,"2,243.64",73503-NURSING EMI,PHYSICAL SUPPORT,Third Party Payments,Revenue
Walsall Council,http://opendatacommunities.org/id/metropolitan-district-council/walsall,WC100-650,31/01/2019,Adult Social Care,BENTLEY COURT PRIORY,07/01/2019,"2,243.64",73503-NURSING EMI,SUPPORT WITH MEMORY & COGNITION,Third Party Payments,Revenue
Walsall Council,http://opendatacommunities.org/id/metropolitan-district-council/walsall,WC100-651,31/01/2019,Adult Social Care,BENTLEY COURT PRIORY,07/01/2019,"2,243.64",73503-NURSING EMI,PHYSICAL SUPPORT,Third Party Payments,Revenue
Walsall Council,http://opendatacommunities.org/id/metropolitan-district-council/walsall,WC100-652,31/01/2019,Adult Social Care,BENTLEY COURT PRIORY,07/01/2019,"2,243.64",73503-NURSING EMI,PHYSICAL SUPPORT,Third Party Payments,Revenue
Walsall Council,http://opendatacommunities.org/id/metropolitan-district-council/walsall,WC100-653,31/01/2019,Adult Social Care,BENTLEY COURT PRIORY,07/01/2019,"2,243.64",73503-NURSING EMI,PHYSICAL SUPPORT,Third Party Payments,Revenue
Walsall Council,http://opendatacommunities.org/id/metropolitan-district-council/walsall,WC100-654,31/01/2019,Adult Social Care,BENTLEY COURT PRIORY,07/01/2019,"2,243.64",73503-NURSING EMI,SOCIAL SUPPORT,Third Party Payments,Revenue
Walsall Council,http://opendatacommunities.org/id/metropolitan-district-council/walsall,WC100-655,31/01/2019,Adult Social Care,BENTLEY COURT PRIORY,07/01/2019,"2,243.64",73503-NURSING EMI,SUPPORT WITH MEMORY & COGNITION,Third Party Payments,Revenue
Walsall Council,http://opendatacommunities.org/id/metropolitan-district-council/walsall,WC100-656,31/01/2019,Adult Social Care,BENTLEY COURT PRIORY,28/01/2019,"2,341.43",73025-PROFESSIONAL SERVICES-PRIV CONTRACTOR & OTHER AGENCIES,TRANSITIONAL CARE SUPPORT TEAM,Third Party Payments,Revenue
Walsall Council,http://opendatacommunities.org/id/metropolitan-district-council/walsall,WC100-657,31/01/2019,Adult Social Care,BENTLEY COURT PRIORY,11/01/2019,"3,184.45",73025-PROFESSIONAL SERVICES-PRIV CONTRACTOR & OTHER AGENCIES,TRANSITIONAL CARE SUPPORT TEAM,Third Party Payments,Revenue
Walsall Council,http://opendatacommunities.org/id/metropolitan-district-council/walsall,WC100-658,31/01/2019,Adult Social Care,BENTLEY COURT PRIORY,28/01/2019,"3,192.86",73025-PROFESSIONAL SERVICES-PRIV CONTRACTOR & OTHER AGENCIES,TRANSITIONAL CARE SUPPORT TEAM,Third Party Payments,Revenue
Walsall Council,http://opendatacommunities.org/id/metropolitan-district-council/walsall,WC100-659,31/01/2019,Adult Social Care,BENTLEY COURT PRIORY,28/01/2019,"3,299.29",73025-PROFESSIONAL SERVICES-PRIV CONTRACTOR & OTHER AGENCIES,TRANSITIONAL CARE SUPPORT TEAM,Third Party Payments,Revenue
Walsall Council,http://opendatacommunities.org/id/metropolitan-district-council/walsall,WC100-660,31/01/2019,Childrens,REDACTED,21/01/2019,691.68,66505-OTHER-GRANTS TO OTHER ORGS,EARLY YEARS - 2 YR OLDS,Third Party Payments,Revenue
Walsall Council,http://opendatacommunities.org/id/metropolitan-district-council/walsall,WC100-661,31/01/2019,Childrens,BERRICK COMPUTING LTD,15/01/2019,"1,700.00",63114-OTHER FEES & LICENCES-SERVICES-FEES,SAFEGUARDING BOARD,Supplies & Services,Revenue
Walsall Council,http://opendatacommunities.org/id/metropolitan-district-council/walsall,WC100-662,31/01/2019,Holding Accounts,BERRYMANS LACE MAWER LLP,09/01/2019,"1,046.50",67001-MISC INSURANCES - PAYMENT OF CLAIMS,PUBLIC LIABILITY,Supplies & Services,Revenue
Walsall Council,http://opendatacommunities.org/id/metropolitan-district-council/walsall,WC100-663,31/01/2019,Holding Accounts,BERRYMANS LACE MAWER LLP,09/01/2019,"7,697.44",67001-MISC INSURANCES - PAYMENT OF CLAIMS,PUBLIC LIABILITY,Supplies & Services,Revenue
Walsall Council,http://opendatacommunities.org/id/metropolitan-district-council/walsall,WC100-664,31/01/2019,Adult Social Care,REDACTED,07/01/2019,"1,082.48",73506-DIRECT PAYMENT,PHYSICAL SUPPORT,Third Party Payments,Revenue
Walsall Council,http://opendatacommunities.org/id/metropolitan-district-council/walsall,WC100-665,31/01/2019,Adult Social Care,REDACTED,07/01/2019,"1,743.20",73506-DIRECT PAYMENT,PHYSICAL SUPPORT,Third Party Payments,Revenue
Walsall Council,http://opendatacommunities.org/id/metropolitan-district-council/walsall,WC100-666,31/01/2019,Childrens,REDACTED,01/01/2019,150.00,74504-HOLIDAY/CHRISTMAS ALLOWANCE-FOSTER CARERS,INTERNAL FOSTER CARE PROVISION,Transfer Payments,Revenue
Walsall Council,http://opendatacommunities.org/id/metropolitan-district-council/walsall,WC100-667,31/01/2019,Childrens,REDACTED,01/01/2019,488.57,74501-MAINTENANCE ALLOWANCE-FOSTER CARERS,INTERNAL FOSTER CARE PROVISION,Transfer Payments,Revenue
Walsall Council,http://opendatacommunities.org/id/metropolitan-district-council/walsall,WC100-668,31/01/2019,Childrens,REDACTED,01/01/2019,738.57,74508-INTERNAL FOSTER CARERS-CARER FEES,INTERNAL FOSTER CARE PROVISION,Transfer Payments,Revenue
Walsall Council,http://opendatacommunities.org/id/metropolitan-district-council/walsall,WC100-669,31/01/2019,Adult Social Care,REDACTED,07/01/2019,"8,224.09",73506-DIRECT PAYMENT,PHYSICAL SUPPORT,Third Party Payments,Revenue
Walsall Council,http://opendatacommunities.org/id/metropolitan-district-council/walsall,WC100-670,31/01/2019,Childrens,BES REHAB LIMITED,16/01/2019,"1,000.00",60006-NEW-FURNITURE & EQUIPMENT,EARLY YEARS AND DISABILITIES SERVICE,Supplies & Services,Revenue
Walsall Council,http://opendatacommunities.org/id/metropolitan-district-council/walsall,WC100-671,31/01/2019,Adult Social Care,BESCOT LODGE RESIDENTIAL CARE HOME,18/01/2019,804.22,73025-PROFESSIONAL SERVICES-PRIV CONTRACTOR & OTHER AGENCIES,TRANSITIONAL CARE SUPPORT TEAM,Third Party Payments,Revenue
Walsall Council,http://opendatacommunities.org/id/metropolitan-district-council/walsall,WC100-672,31/01/2019,Economy & Environment,BESCOT STADIUM SUNDAY MARKET LTD,21/01/2019,"3,250.00",73025-PROFESSIONAL SERVICES-PRIV CONTRACTOR & OTHER AGENCIES,WILLENHALL MARKET,Third Party Payments,Revenue
Walsall Council,http://opendatacommunities.org/id/metropolitan-district-council/walsall,WC100-673,31/01/2019,Adult Social Care,REDACTED,07/01/2019,949.52,73506-DIRECT PAYMENT,PHYSICAL SUPPORT,Third Party Payments,Revenue
Walsall Council,http://opendatacommunities.org/id/metropolitan-district-council/walsall,WC100-674,31/01/2019,Adult Social Care,REDACTED,07/01/2019,"2,767.84",73506-DIRECT PAYMENT,PHYSICAL SUPPORT,Third Party Payments,Revenue
Walsall Council,http://opendatacommunities.org/id/metropolitan-district-council/walsall,WC100-675,31/01/2019,Economy & Environment,BHR PHARMACEUTICALS LTD,23/01/2019,"1,950.00",63253-PAYMENT TO CONTRACTOR,HEALTH CHECKS,Third Party Payments,Revenue
Walsall Council,http://opendatacommunities.org/id/metropolitan-district-council/walsall,WC100-676,31/01/2019,Childrens,REDACTED,07/01/2019,517.92,73506-DIRECT PAYMENT,FAMILY SUPPORT - DIRECT PAYMENTS,Third Party Payments,Revenue
Walsall Council,http://opendatacommunities.org/id/metropolitan-district-council/walsall,WC100-677,31/01/2019,Childrens,BIRCHILLS C OF E COMMUNITY ACADEMY,18/01/2019,"34,452.00",66505-OTHER-GRANTS TO OTHER ORGS,EARLY YEARS - 3 YR OLDS,Third Party Payments,Revenue
Walsall Council,http://opendatacommunities.org/id/metropolitan-district-council/walsall,WC100-678,31/01/2019,Childrens,BIRCHILLS C OF E COMMUNITY ACADEMY,04/01/2019,"36,115.76",66502-TOP UP FUNDING -GRANTS TO SCHOOLS,BIRCHILLS CE COMMUNITY ACADEMY,Third Party Payments,Revenue
Walsall Council,http://opendatacommunities.org/id/metropolitan-district-council/walsall,WC100-679,31/01/2019,Childrens,BIRMINGHAM CITY COUNCIL,25/01/2019,"1,956.16",74037-INDEPENDENT FOSTER CARE-OTH AGENCY PROVISION,EXTERNAL FOSTER CARE PROVISION,Third Party Payments,Revenue
Walsall Council,http://opendatacommunities.org/id/metropolitan-district-council/walsall,WC100-680,31/01/2019,Childrens,BIRMINGHAM CITY COUNCIL,04/01/2019,"18,426.25",66502-TOP UP FUNDING -GRANTS TO SCHOOLS,MAINTAINED PROVIDERS,Third Party Payments,Revenue
Walsall Council,http://opendatacommunities.org/id/metropolitan-district-council/walsall,WC100-681,31/01/2019,Economy & Environment,BIRMINGHAM WOMENS AND CHILDRENS NHS FOUNDATION TRUST,08/01/2019,"1,112.12",74000-OTHER AGENCY FEES,CORONERS SERVICE,Third Party Payments,Revenue
Walsall Council,http://opendatacommunities.org/id/metropolitan-district-council/walsall,WC100-682,31/01/2019,Economy & Environment,BLACK COUNTRY CHAMBER OF COMMERCE & INDUSTRY.,14/01/2019,"1,140.00",63000-PROFESSIONAL FEES AND SERVICES,MS-HEAD OF STRATEGIC REGENERATION,Supplies & Services,Revenue
Walsall Council,http://opendatacommunities.org/id/metropolitan-district-council/walsall,WC100-683,31/01/2019,Economy & Environment,BLACK COUNTRY CONSORTIUM LIMITED,28/01/2019,"112,911.78",65500-GRANTS TO ASSOCIATIONS,LEP- HESELTINE FUNDING,Third Party Payments,Revenue
Walsall Council,http://opendatacommunities.org/id/metropolitan-district-council/walsall,WC100-684,31/01/2019,Economy & Environment,BLACK COUNTRY TRAINING LTD T/A BRITISH HGV TRAINING GROUP,14/01/2019,"1,279.00",30030-EXTERNAL TRAINING,GREEN SPACE MANAGEMENT,Employees,Revenue
Walsall Council,http://opendatacommunities.org/id/metropolitan-district-council/walsall,WC100-685,31/01/2019,Childrens,BLACK COUNTRY WOMENS AID,01/01/2019,"16,654.50",63000-PROFESSIONAL FEES AND SERVICES,TOXIC TRIO,Supplies & Services,Revenue
Walsall Council,http://opendatacommunities.org/id/metropolitan-district-council/walsall,WC100-686,31/01/2019,Childrens,BLACK COUNTRY WOMENS AID,01/01/2019,"16,654.50",63000-PROFESSIONAL FEES AND SERVICES,TOXIC TRIO,Supplies & Services,Revenue
Walsall Council,http://opendatacommunities.org/id/metropolitan-district-council/walsall,WC100-687,31/01/2019,Childrens,BLAKENALL HEATH JMI SCHOOL,15/01/2019,900.00,63000-PROFESSIONAL FEES AND SERVICES,SCHOOL IMPROVEMENT-ASSESSMENT,Supplies & Services,Revenue
Walsall Council,http://opendatacommunities.org/id/metropolitan-district-council/walsall,WC100-688,31/01/2019,Childrens,BLAKENALL HEATH JMI SCHOOL,04/01/2019,"2,566.15",66502-TOP UP FUNDING -GRANTS TO SCHOOLS,BLAKENALL HEATH JUNIOR SCHOOL,Third Party Payments,Revenue
Walsall Council,http://opendatacommunities.org/id/metropolitan-district-council/walsall,WC100-689,31/01/2019,Childrens,BLAKENALL HEATH JMI SCHOOL,15/01/2019,"57,165.00",77302-ISB-SCHOOL STANDARDS GRANT,BLAKENALL HEATH JUNIOR SCHOOL,Transfer Payments,Revenue
Walsall Council,http://opendatacommunities.org/id/metropolitan-district-council/walsall,WC100-690,31/01/2019,Childrens,BLOXWICH ACADEMY,04/01/2019,371.54,66502-TOP UP FUNDING -GRANTS TO SCHOOLS,BLOXWICH ACADEMY,Third Party Payments,Revenue
Walsall Council,http://opendatacommunities.org/id/metropolitan-district-council/walsall,WC100-691,31/01/2019,Childrens,BLOXWICH ACADEMY,04/01/2019,"1,836.71",66502-TOP UP FUNDING -GRANTS TO SCHOOLS,BLOXWICH ACADEMY,Third Party Payments,Revenue
Walsall Council,http://opendatacommunities.org/id/metropolitan-district-council/walsall,WC100-692,31/01/2019,Childrens,BLOXWICH ACADEMY,04/01/2019,"1,917.88",66502-TOP UP FUNDING -GRANTS TO SCHOOLS,BLOXWICH ACADEMY,Third Party Payments,Revenue
Walsall Council,http://opendatacommunities.org/id/metropolitan-district-council/walsall,WC100-693,31/01/2019,Childrens,BLOXWICH ACADEMY,18/01/2019,"37,323.00",66505-OTHER-GRANTS TO OTHER ORGS,EARLY YEARS - 3 YR OLDS,Third Party Payments,Revenue
Walsall Council,http://opendatacommunities.org/id/metropolitan-district-council/walsall,WC100-694,31/01/2019,Resources and Transformation,BLOXWICH COMMUNITY PARTNERSHIP.,10/01/2019,283.33,61002-DRY FOODS-PROVISIONS,TOWN HALL RESTAURANT BISTRO,Supplies & Services,Revenue
Walsall Council,http://opendatacommunities.org/id/metropolitan-district-council/walsall,WC100-695,31/01/2019,Resources and Transformation,BLOXWICH COMMUNITY PARTNERSHIP.,10/01/2019,287.92,61002-DRY FOODS-PROVISIONS,TOWN HALL RESTAURANT BISTRO,Supplies & Services,Revenue
Walsall Council,http://opendatacommunities.org/id/metropolitan-district-council/walsall,WC100-696,31/01/2019,Resources and Transformation,BLOXWICH COMMUNITY PARTNERSHIP.,10/01/2019,293.08,61002-DRY FOODS-PROVISIONS,TOWN HALL RESTAURANT BISTRO,Supplies & Services,Revenue
Walsall Council,http://opendatacommunities.org/id/metropolitan-district-council/walsall,WC100-697,31/01/2019,Resources and Transformation,BLOXWICH COMMUNITY PARTNERSHIP.,10/01/2019,305.42,61002-DRY FOODS-PROVISIONS,TOWN HALL RESTAURANT BISTRO,Supplies & Services,Revenue
Walsall Council,http://opendatacommunities.org/id/metropolitan-district-council/walsall,WC100-698,31/01/2019,Resources and Transformation,BLOXWICH COMMUNITY PARTNERSHIP.,10/01/2019,733.00,61002-DRY FOODS-PROVISIONS,TOWN HALL RESTAURANT BISTRO,Supplies & Services,Revenue
Walsall Council,http://opendatacommunities.org/id/metropolitan-district-council/walsall,WC100-699,31/01/2019,Resources and Transformation,BLOXWICH COMMUNITY PARTNERSHIP.,30/01/2019,"3,000.00",66500-GRANTS TO OTHER ORGS,BLOXWICH COMMUNITY PARTNERSHIP,Third Party Payments,Revenue
Walsall Council,http://opendatacommunities.org/id/metropolitan-district-council/walsall,WC100-700,31/01/2019,Resources and Transformation,BLUE COAT CHURCH OF ENGLAND ACADEMY,01/01/2019,625.54,63020-CASH COLLECTION-SERVICES,CA BLUE COAT C OF E PERFORMING ARTS COLLEGE,Supplies & Services,Revenue
Walsall Council,http://opendatacommunities.org/id/metropolitan-district-council/walsall,WC100-701,31/01/2019,Childrens,BLUE COAT CHURCH OF ENGLAND ACADEMY,04/01/2019,"19,502.45",66502-TOP UP FUNDING -GRANTS TO SCHOOLS,BLUE COAT CofE ACADEMY,Third Party Payments,Revenue
Walsall Council,http://opendatacommunities.org/id/metropolitan-district-council/walsall,WC100-702,31/01/2019,Childrens,BLUE GIRAFFE CHILDCARE,03/01/2019,"7,464.60",66505-OTHER-GRANTS TO OTHER ORGS,EARLY YEARS - 3 YR OLDS,Third Party Payments,Revenue
Walsall Council,http://opendatacommunities.org/id/metropolitan-district-council/walsall,WC100-703,31/01/2019,Childrens,BLUE GIRAFFE CHILDCARE,03/01/2019,"9,761.40",66505-OTHER-GRANTS TO OTHER ORGS,EARLY YEARS - 3 YR OLDS,Third Party Payments,Revenue
Walsall Council,http://opendatacommunities.org/id/metropolitan-district-council/walsall,WC100-704,31/01/2019,Childrens,BLUE GIRAFFE CHILDCARE,03/01/2019,"13,141.92",66505-OTHER-GRANTS TO OTHER ORGS,EARLY YEARS - 2 YR OLDS,Third Party Payments,Revenue
Walsall Council,http://opendatacommunities.org/id/metropolitan-district-council/walsall,WC100-705,31/01/2019,Resources and Transformation,BLUETOWNONLINE LTD,16/01/2019,"1,645.00",34000-RECRUITMENT EXPENSES (ALL TYPES INCL RELOCATION),SCHOOLS HR TRANSACTIONAL TEAM,Employees,Revenue
Walsall Council,http://opendatacommunities.org/id/metropolitan-district-council/walsall,WC100-706,31/01/2019,Economy & Environment,BM3 ARCHITECTURE,22/01/2019,"1,200.00",63000-PROFESSIONAL FEES AND SERVICES,UNCAPITALISED SPEND,Supplies & Services,Revenue
Walsall Council,http://opendatacommunities.org/id/metropolitan-district-council/walsall,WC100-707,31/01/2019,Economy & Environment,BME UNITED LTD,17/01/2019,"5,056.80",63253-PAYMENT TO CONTRACTOR,SMOKING CESSATION,Third Party Payments,Revenue
Walsall Council,http://opendatacommunities.org/id/metropolitan-district-council/walsall,WC100-708,31/01/2019,Childrens,REDACTED,07/01/2019,"1,440.00",73506-DIRECT PAYMENT,FAMILY SUPPORT - DIRECT PAYMENTS,Third Party Payments,Revenue
Walsall Council,http://opendatacommunities.org/id/metropolitan-district-council/walsall,WC100-709,31/01/2019,Economy & Environment,BOOKS ASIA,01/01/2019,447.25,60501-LIBRARY BOOKS,LIBRARY MANAGEMENT,Supplies & Services,Revenue
Walsall Council,http://opendatacommunities.org/id/metropolitan-district-council/walsall,WC100-710,31/01/2019,Resources and Transformation,BORSHCH LTD,24/01/2019,225.00,60000-FURNITURE & EQUIPMENT,WALSALL CRISIS SUPPORT SCHEME,Supplies & Services,Revenue
Walsall Council,http://opendatacommunities.org/id/metropolitan-district-council/walsall,WC100-711,31/01/2019,Resources and Transformation,BORSHCH LTD,01/01/2019,237.49,60000-FURNITURE & EQUIPMENT,WALSALL CRISIS SUPPORT SCHEME,Supplies & Services,Revenue
Walsall Council,http://opendatacommunities.org/id/metropolitan-district-council/walsall,WC100-712,31/01/2019,Resources and Transformation,BORSHCH LTD,01/01/2019,237.49,60000-FURNITURE & EQUIPMENT,WALSALL CRISIS SUPPORT SCHEME,Supplies & Services,Revenue
Walsall Council,http://opendatacommunities.org/id/metropolitan-district-council/walsall,WC100-713,31/01/2019,Resources and Transformation,BORSHCH LTD,21/01/2019,237.49,60000-FURNITURE & EQUIPMENT,WALSALL CRISIS SUPPORT SCHEME,Supplies & Services,Revenue
Walsall Council,http://opendatacommunities.org/id/metropolitan-district-council/walsall,WC100-714,31/01/2019,Resources and Transformation,BORSHCH LTD,24/01/2019,237.49,60000-FURNITURE & EQUIPMENT,WALSALL CRISIS SUPPORT SCHEME,Supplies & Services,Revenue
Walsall Council,http://opendatacommunities.org/id/metropolitan-district-council/walsall,WC100-715,31/01/2019,Resources and Transformation,BORSHCH LTD,01/01/2019,266.66,60000-FURNITURE & EQUIPMENT,WALSALL CRISIS SUPPORT SCHEME,Supplies & Services,Revenue
Walsall Council,http://opendatacommunities.org/id/metropolitan-district-council/walsall,WC100-716,31/01/2019,Resources and Transformation,BORSHCH LTD,10/01/2019,287.50,60000-FURNITURE & EQUIPMENT,WALSALL CRISIS SUPPORT SCHEME,Supplies & Services,Revenue
Walsall Council,http://opendatacommunities.org/id/metropolitan-district-council/walsall,WC100-717,31/01/2019,Resources and Transformation,BORSHCH LTD,14/01/2019,287.50,60000-FURNITURE & EQUIPMENT,WALSALL CRISIS SUPPORT SCHEME,Supplies & Services,Revenue
Walsall Council,http://opendatacommunities.org/id/metropolitan-district-council/walsall,WC100-718,31/01/2019,Resources and Transformation,BORSHCH LTD,14/01/2019,287.50,60000-FURNITURE & EQUIPMENT,WALSALL CRISIS SUPPORT SCHEME,Supplies & Services,Revenue
Walsall Council,http://opendatacommunities.org/id/metropolitan-district-council/walsall,WC100-719,31/01/2019,Resources and Transformation,BORSHCH LTD,16/01/2019,287.50,60000-FURNITURE & EQUIPMENT,WALSALL CRISIS SUPPORT SCHEME,Supplies & Services,Revenue
Walsall Council,http://opendatacommunities.org/id/metropolitan-district-council/walsall,WC100-720,31/01/2019,Resources and Transformation,BORSHCH LTD,21/01/2019,287.50,60000-FURNITURE & EQUIPMENT,WALSALL CRISIS SUPPORT SCHEME,Supplies & Services,Revenue
Walsall Council,http://opendatacommunities.org/id/metropolitan-district-council/walsall,WC100-721,31/01/2019,Resources and Transformation,BORSHCH LTD,01/01/2019,291.66,60000-FURNITURE & EQUIPMENT,WALSALL CRISIS SUPPORT SCHEME,Supplies & Services,Revenue
Walsall Council,http://opendatacommunities.org/id/metropolitan-district-council/walsall,WC100-722,31/01/2019,Resources and Transformation,BORSHCH LTD,01/01/2019,291.66,60000-FURNITURE & EQUIPMENT,WALSALL CRISIS SUPPORT SCHEME,Supplies & Services,Revenue
Walsall Council,http://opendatacommunities.org/id/metropolitan-district-council/walsall,WC100-723,31/01/2019,Resources and Transformation,BORSHCH LTD,01/01/2019,291.66,60000-FURNITURE & EQUIPMENT,WALSALL CRISIS SUPPORT SCHEME,Supplies & Services,Revenue
Walsall Council,http://opendatacommunities.org/id/metropolitan-district-council/walsall,WC100-724,31/01/2019,Resources and Transformation,BORSHCH LTD,10/01/2019,291.66,60000-FURNITURE & EQUIPMENT,WALSALL CRISIS SUPPORT SCHEME,Supplies & Services,Revenue
Walsall Council,http://opendatacommunities.org/id/metropolitan-district-council/walsall,WC100-725,31/01/2019,Resources and Transformation,BORSHCH LTD,16/01/2019,291.66,60000-FURNITURE & EQUIPMENT,WALSALL CRISIS SUPPORT SCHEME,Supplies & Services,Revenue
Walsall Council,http://opendatacommunities.org/id/metropolitan-district-council/walsall,WC100-726,31/01/2019,Resources and Transformation,BORSHCH LTD,30/01/2019,291.66,60000-FURNITURE & EQUIPMENT,WALSALL CRISIS SUPPORT SCHEME,Supplies & Services,Revenue
Walsall Council,http://opendatacommunities.org/id/metropolitan-district-council/walsall,WC100-727,31/01/2019,Resources and Transformation,BORSHCH LTD,14/01/2019,295.83,60000-FURNITURE & EQUIPMENT,WALSALL CRISIS SUPPORT SCHEME,Supplies & Services,Revenue
Walsall Council,http://opendatacommunities.org/id/metropolitan-district-council/walsall,WC100-728,31/01/2019,Resources and Transformation,BORSHCH LTD,10/01/2019,300.00,60000-FURNITURE & EQUIPMENT,WALSALL CRISIS SUPPORT SCHEME,Supplies & Services,Revenue
Walsall Council,http://opendatacommunities.org/id/metropolitan-district-council/walsall,WC100-729,31/01/2019,Resources and Transformation,BORSHCH LTD,03/01/2019,362.50,60000-FURNITURE & EQUIPMENT,WALSALL CRISIS SUPPORT SCHEME,Supplies & Services,Revenue
Walsall Council,http://opendatacommunities.org/id/metropolitan-district-council/walsall,WC100-730,31/01/2019,Resources and Transformation,BORSHCH LTD,01/01/2019,379.16,60000-FURNITURE & EQUIPMENT,WALSALL CRISIS SUPPORT SCHEME,Supplies & Services,Revenue
Walsall Council,http://opendatacommunities.org/id/metropolitan-district-council/walsall,WC100-731,31/01/2019,Resources and Transformation,BORSHCH LTD,01/01/2019,416.67,60000-FURNITURE & EQUIPMENT,WALSALL CRISIS SUPPORT SCHEME,Supplies & Services,Revenue
Walsall Council,http://opendatacommunities.org/id/metropolitan-district-council/walsall,WC100-732,31/01/2019,Resources and Transformation,BORSHCH LTD,01/01/2019,425.00,60000-FURNITURE & EQUIPMENT,WALSALL CRISIS SUPPORT SCHEME,Supplies & Services,Revenue
Walsall Council,http://opendatacommunities.org/id/metropolitan-district-council/walsall,WC100-733,31/01/2019,Resources and Transformation,BORSHCH LTD,01/01/2019,425.00,60000-FURNITURE & EQUIPMENT,WALSALL CRISIS SUPPORT SCHEME,Supplies & Services,Revenue
Walsall Council,http://opendatacommunities.org/id/metropolitan-district-council/walsall,WC100-734,31/01/2019,Resources and Transformation,BORSHCH LTD,01/01/2019,425.00,60000-FURNITURE & EQUIPMENT,WALSALL CRISIS SUPPORT SCHEME,Supplies & Services,Revenue
Walsall Council,http://opendatacommunities.org/id/metropolitan-district-council/walsall,WC100-735,31/01/2019,Resources and Transformation,BORSHCH LTD,01/01/2019,425.00,60000-FURNITURE & EQUIPMENT,WALSALL CRISIS SUPPORT SCHEME,Supplies & Services,Revenue
Walsall Council,http://opendatacommunities.org/id/metropolitan-district-council/walsall,WC100-736,31/01/2019,Resources and Transformation,BORSHCH LTD,10/01/2019,425.00,60000-FURNITURE & EQUIPMENT,WALSALL CRISIS SUPPORT SCHEME,Supplies & Services,Revenue
Walsall Council,http://opendatacommunities.org/id/metropolitan-district-council/walsall,WC100-737,31/01/2019,Resources and Transformation,BORSHCH LTD,16/01/2019,425.00,60000-FURNITURE & EQUIPMENT,WALSALL CRISIS SUPPORT SCHEME,Supplies & Services,Revenue
Walsall Council,http://opendatacommunities.org/id/metropolitan-district-council/walsall,WC100-738,31/01/2019,Resources and Transformation,BORSHCH LTD,21/01/2019,425.00,60000-FURNITURE & EQUIPMENT,WALSALL CRISIS SUPPORT SCHEME,Supplies & Services,Revenue
Walsall Council,http://opendatacommunities.org/id/metropolitan-district-council/walsall,WC100-739,31/01/2019,Resources and Transformation,BORSHCH LTD,24/01/2019,425.00,60000-FURNITURE & EQUIPMENT,WALSALL CRISIS SUPPORT SCHEME,Supplies & Services,Revenue
Walsall Council,http://opendatacommunities.org/id/metropolitan-district-council/walsall,WC100-740,31/01/2019,Resources and Transformation,BORSHCH LTD,24/01/2019,425.00,60000-FURNITURE & EQUIPMENT,WALSALL CRISIS SUPPORT SCHEME,Supplies & Services,Revenue
Walsall Council,http://opendatacommunities.org/id/metropolitan-district-council/walsall,WC100-741,31/01/2019,Resources and Transformation,BORSHCH LTD,23/01/2019,429.17,60000-FURNITURE & EQUIPMENT,WALSALL CRISIS SUPPORT SCHEME,Supplies & Services,Revenue
Walsall Council,http://opendatacommunities.org/id/metropolitan-district-council/walsall,WC100-742,31/01/2019,Resources and Transformation,BORSHCH LTD,01/01/2019,433.33,60000-FURNITURE & EQUIPMENT,WALSALL CRISIS SUPPORT SCHEME,Supplies & Services,Revenue
Walsall Council,http://opendatacommunities.org/id/metropolitan-district-council/walsall,WC100-743,31/01/2019,Resources and Transformation,BORSHCH LTD,01/01/2019,433.33,60000-FURNITURE & EQUIPMENT,WALSALL CRISIS SUPPORT SCHEME,Supplies & Services,Revenue
Walsall Council,http://opendatacommunities.org/id/metropolitan-district-council/walsall,WC100-744,31/01/2019,Resources and Transformation,BORSHCH LTD,01/01/2019,433.33,60000-FURNITURE & EQUIPMENT,WALSALL CRISIS SUPPORT SCHEME,Supplies & Services,Revenue
Walsall Council,http://opendatacommunities.org/id/metropolitan-district-council/walsall,WC100-745,31/01/2019,Resources and Transformation,BORSHCH LTD,10/01/2019,433.33,60000-FURNITURE & EQUIPMENT,WALSALL CRISIS SUPPORT SCHEME,Supplies & Services,Revenue
Walsall Council,http://opendatacommunities.org/id/metropolitan-district-council/walsall,WC100-746,31/01/2019,Resources and Transformation,BORSHCH LTD,10/01/2019,433.33,60000-FURNITURE & EQUIPMENT,WALSALL CRISIS SUPPORT SCHEME,Supplies & Services,Revenue
Walsall Council,http://opendatacommunities.org/id/metropolitan-district-council/walsall,WC100-747,31/01/2019,Resources and Transformation,BORSHCH LTD,10/01/2019,433.33,60000-FURNITURE & EQUIPMENT,WALSALL CRISIS SUPPORT SCHEME,Supplies & Services,Revenue
Walsall Council,http://opendatacommunities.org/id/metropolitan-district-council/walsall,WC100-748,31/01/2019,Resources and Transformation,BORSHCH LTD,11/01/2019,433.33,60000-FURNITURE & EQUIPMENT,WALSALL CRISIS SUPPORT SCHEME,Supplies & Services,Revenue
Walsall Council,http://opendatacommunities.org/id/metropolitan-district-council/walsall,WC100-749,31/01/2019,Resources and Transformation,BORSHCH LTD,14/01/2019,433.33,60000-FURNITURE & EQUIPMENT,WALSALL CRISIS SUPPORT SCHEME,Supplies & Services,Revenue
Walsall Council,http://opendatacommunities.org/id/metropolitan-district-council/walsall,WC100-750,31/01/2019,Resources and Transformation,BORSHCH LTD,16/01/2019,433.33,60000-FURNITURE & EQUIPMENT,WALSALL CRISIS SUPPORT SCHEME,Supplies & Services,Revenue
Walsall Council,http://opendatacommunities.org/id/metropolitan-district-council/walsall,WC100-751,31/01/2019,Resources and Transformation,BORSHCH LTD,16/01/2019,433.33,60000-FURNITURE & EQUIPMENT,WALSALL CRISIS SUPPORT SCHEME,Supplies & Services,Revenue
Walsall Council,http://opendatacommunities.org/id/metropolitan-district-council/walsall,WC100-752,31/01/2019,Resources and Transformation,BORSHCH LTD,16/01/2019,433.33,60000-FURNITURE & EQUIPMENT,WALSALL CRISIS SUPPORT SCHEME,Supplies & Services,Revenue
Walsall Council,http://opendatacommunities.org/id/metropolitan-district-council/walsall,WC100-753,31/01/2019,Resources and Transformation,BORSHCH LTD,16/01/2019,433.33,60000-FURNITURE & EQUIPMENT,WALSALL CRISIS SUPPORT SCHEME,Supplies & Services,Revenue
Walsall Council,http://opendatacommunities.org/id/metropolitan-district-council/walsall,WC100-754,31/01/2019,Resources and Transformation,BORSHCH LTD,22/01/2019,433.33,60000-FURNITURE & EQUIPMENT,WALSALL CRISIS SUPPORT SCHEME,Supplies & Services,Revenue
Walsall Council,http://opendatacommunities.org/id/metropolitan-district-council/walsall,WC100-755,31/01/2019,Adult Social Care,BOWDEN DERRA PARK,07/01/2019,"11,041.12",73500-RESIDENTIAL,LEARNING DISABILITY SUPPORT,Third Party Payments,Revenue
Walsall Council,http://opendatacommunities.org/id/metropolitan-district-council/walsall,WC100-756,31/01/2019,Childrens,BRADLEY ENVIRONMENTAL,16/01/2019,495.00,01006-SITE WORKS MAIN CONTRACTORS,CFR 1297 JANE LANE SPECIAL SCHOOL EXPANSION,Capital,Capital
Walsall Council,http://opendatacommunities.org/id/metropolitan-district-council/walsall,WC100-757,31/01/2019,Economy & Environment,BRADVALE LTD T/A INSPIRE HEALTHCARE SERVICES,29/01/2019,288.88,60008-MAINTENANCE-FURNITURE & EQUIPMENT,WALSALL GALA CENTRE,Supplies & Services,Revenue
Walsall Council,http://opendatacommunities.org/id/metropolitan-district-council/walsall,WC100-758,31/01/2019,Economy & Environment,BRADVALE LTD T/A INSPIRE HEALTHCARE SERVICES,25/01/2019,336.98,60008-MAINTENANCE-FURNITURE & EQUIPMENT,DARLASTON LEISURE CENTRE,Supplies & Services,Revenue
Walsall Council,http://opendatacommunities.org/id/metropolitan-district-council/walsall,WC100-759,31/01/2019,Economy & Environment,BRADVALE LTD T/A INSPIRE HEALTHCARE SERVICES,16/01/2019,600.23,60008-MAINTENANCE-FURNITURE & EQUIPMENT,OAK PARK,Supplies & Services,Revenue
Walsall Council,http://opendatacommunities.org/id/metropolitan-district-council/walsall,WC100-760,31/01/2019,Economy & Environment,BRADVALE LTD T/A INSPIRE HEALTHCARE SERVICES,10/01/2019,612.25,60500-GENERAL MATERIALS,ARBORETUM VISITOR CENTRE,Supplies & Services,Revenue
Walsall Council,http://opendatacommunities.org/id/metropolitan-district-council/walsall,WC100-761,31/01/2019,Economy & Environment,BRADVALE LTD T/A INSPIRE HEALTHCARE SERVICES,24/01/2019,612.25,60500-GENERAL MATERIALS,ARBORETUM VISITOR CENTRE,Supplies & Services,Revenue
Walsall Council,http://opendatacommunities.org/id/metropolitan-district-council/walsall,WC100-762,31/01/2019,Economy & Environment,BRADVALE LTD T/A INSPIRE HEALTHCARE SERVICES,01/01/2019,622.31,73025-PROFESSIONAL SERVICES-PRIV CONTRACTOR & OTHER AGENCIES,DEPOT,Third Party Payments,Revenue
Walsall Council,http://opendatacommunities.org/id/metropolitan-district-council/walsall,WC100-763,31/01/2019,Economy & Environment,BRADVALE LTD T/A INSPIRE HEALTHCARE SERVICES,10/01/2019,926.53,60008-MAINTENANCE-FURNITURE & EQUIPMENT,BLOXWICH LEISURE CENTRE,Supplies & Services,Revenue
Walsall Council,http://opendatacommunities.org/id/metropolitan-district-council/walsall,WC100-764,31/01/2019,Resources and Transformation,BRELMAYNE LTD,01/01/2019,225.00,60008-MAINTENANCE-FURNITURE & EQUIPMENT,CA OLD HALL SPECIAL SCHOOL,Supplies & Services,Revenue
Walsall Council,http://opendatacommunities.org/id/metropolitan-district-council/walsall,WC100-765,31/01/2019,Resources and Transformation,BRELMAYNE LTD,29/01/2019,650.00,01044-PURCHASE OF FURNITURE & EQUIPMENT,CFR 1190 SCHOOLS PROJECT,Capital,Capital
Walsall Council,http://opendatacommunities.org/id/metropolitan-district-council/walsall,WC100-766,31/01/2019,Resources and Transformation,BRELMAYNE LTD,02/01/2019,"3,719.04",01044-PURCHASE OF FURNITURE & EQUIPMENT,CFR 1190 SCHOOLS PROJECT,Capital,Capital
Walsall Council,http://opendatacommunities.org/id/metropolitan-district-council/walsall,WC100-767,31/01/2019,Childrens,BRELMAYNE LTD,02/01/2019,"3,833.89",01006-SITE WORKS MAIN CONTRACTORS,CFR 1137 KINGS HILL PRIMARY EXPANSION,Capital,Capital
Walsall Council,http://opendatacommunities.org/id/metropolitan-district-council/walsall,WC100-768,31/01/2019,Childrens,BRELMAYNE LTD,02/01/2019,"4,156.00",01006-SITE WORKS MAIN CONTRACTORS,CFR 1024 UNIVERSAL INFANT FREE SCHOOL MEALS PHASE 3,Capital,Capital
Walsall Council,http://opendatacommunities.org/id/metropolitan-district-council/walsall,WC100-769,31/01/2019,Adult Social Care,REDACTED,07/01/2019,440.00,73506-DIRECT PAYMENT,LEARNING DISABILITY SUPPORT,Third Party Payments,Revenue
Walsall Council,http://opendatacommunities.org/id/metropolitan-district-council/walsall,WC100-770,31/01/2019,Childrens,REDACTED,01/01/2019,499.26,74506-TRAVEL-FOSTER CARERS,INTERNAL FOSTER CARE PROVISION,Transfer Payments,Revenue
Walsall Council,http://opendatacommunities.org/id/metropolitan-district-council/walsall,WC100-771,31/01/2019,Childrens,REDACTED,01/01/2019,720.00,74501-MAINTENANCE ALLOWANCE-FOSTER CARERS,INTERNAL FOSTER CARE PROVISION,Transfer Payments,Revenue
Walsall Council,http://opendatacommunities.org/id/metropolitan-district-council/walsall,WC100-772,31/01/2019,Childrens,REDACTED,01/01/2019,720.00,74501-MAINTENANCE ALLOWANCE-FOSTER CARERS,INTERNAL FOSTER CARE PROVISION,Transfer Payments,Revenue
Walsall Council,http://opendatacommunities.org/id/metropolitan-district-council/walsall,WC100-773,31/01/2019,Childrens,REDACTED,25/01/2019,720.00,74501-MAINTENANCE ALLOWANCE-FOSTER CARERS,INTERNAL FOSTER CARE PROVISION,Transfer Payments,Revenue
Walsall Council,http://opendatacommunities.org/id/metropolitan-district-council/walsall,WC100-774,31/01/2019,Childrens,REDACTED,25/01/2019,720.00,74501-MAINTENANCE ALLOWANCE-FOSTER CARERS,INTERNAL FOSTER CARE PROVISION,Transfer Payments,Revenue
Walsall Council,http://opendatacommunities.org/id/metropolitan-district-council/walsall,WC100-775,31/01/2019,Childrens,REDACTED,01/01/2019,"1,600.00",74508-INTERNAL FOSTER CARERS-CARER FEES,INTERNAL FOSTER CARE PROVISION,Transfer Payments,Revenue
Walsall Council,http://opendatacommunities.org/id/metropolitan-district-council/walsall,WC100-776,31/01/2019,Childrens,REDACTED,25/01/2019,"1,600.00",74508-INTERNAL FOSTER CARERS-CARER FEES,INTERNAL FOSTER CARE PROVISION,Transfer Payments,Revenue
Walsall Council,http://opendatacommunities.org/id/metropolitan-district-council/walsall,WC100-777,31/01/2019,Economy & Environment,BRENNTAG UK LIMITED,23/01/2019,406.39,60503-CHEMICALS & SCIENTIFIC MATS-MATERIALS,OAK PARK,Supplies & Services,Revenue
Walsall Council,http://opendatacommunities.org/id/metropolitan-district-council/walsall,WC100-778,31/01/2019,Economy & Environment,BRENNTAG UK LIMITED,29/01/2019,710.00,50301-FUEL-TRANSPORT RUN COSTS,FUEL STOCK ACCOUNT,Transport,Revenue
Walsall Council,http://opendatacommunities.org/id/metropolitan-district-council/walsall,WC100-779,31/01/2019,Adult Social Care,REDACTED,10/01/2019,"1,105.21",73372-DOMICILIARY CARE,LD PACKAGE/PLACEMENT COSTS,Third Party Payments,Revenue
Walsall Council,http://opendatacommunities.org/id/metropolitan-district-council/walsall,WC100-780,31/01/2019,Adult Social Care,REDACTED,10/01/2019,"1,597.60",73372-DOMICILIARY CARE,LD PACKAGE/PLACEMENT COSTS,Third Party Payments,Revenue
